﻿Department family,Entity,Date of payment,Expense type,Expense area,Supplier,Transaction number,Amount in Sterling,Supplier VAT Registration Number
Department of Health,Guys and St Thomas NHS Foundation Trust,12/11/2021,(81900) Lab Equipment Purchase,(id:111406) Pathology,VIAPATH ANALYTICS LLP,id:14623745 ,  2221844.95
Department of Health,Guys and St Thomas NHS Foundation Trust,26/11/2021,(83410) Office Equipment,(id:42137) Pathology,RICOH UK LTD,id:14642827  ,  24.33
Department of Health,Guys and St Thomas NHS Foundation Trust,26/11/2021,(81275) Medical Surgical Supplies & Equipment,(id:42134) Pathology,GRIFOLS UK,id:14176675   ,6562.50
Department of Health,Guys and St Thomas NHS Foundation Trust,26/11/2021,(81275) Medical Surgical Supplies & Equipment,(id:42134) Pathology,GRIFOLS UK,id:14645279   ,6562.50
Department of Health,Guys and St Thomas NHS Foundation Trust,26/11/2021,(89600) Non-Healthcare from other NHS bodies,(id:42134) Pathology,NHS BLOOD AND TRANSPLANT,id:14649734,6909.00
Department of Health,Guys and St Thomas NHS Foundation Trust,26/11/2021,(84650) Establishment,(id:4988419) TAP,MEDACS HEALTHCARE SERVICES PLC,id:14624838 ,2278.80
Department of Health,Guys and St Thomas NHS Foundation Trust,12/11/2021,(84650) Establishment,(id:4988419) TAP,MSI GROUP LTD,id:14624754   ,1490.10
Department of Health,Guys and St Thomas NHS Foundation Trust,26/11/2021,(81200) Medical Surgical Supplies & Equipment,(id:4621419) TAP,MEDTRONIC LTD,id:14618234    , 972.00
Department of Health,Guys and St Thomas NHS Foundation Trust,12/11/2021,(82800) Bedding & Linen,(id:41907) TAP,NHS SUPPLY CHAIN (MAIDSTONE),id:14555946   , 347.72
Department of Health,Guys and St Thomas NHS Foundation Trust,17/11/2021,(81230) Medical Surgical Supplies & Equipment,(id:41907) TAP,NHS SUPPLY CHAIN (MAIDSTONE),id:14617322 , 173.86
Department of Health,Guys and St Thomas NHS Foundation Trust,26/11/2021,(81230) Medical Surgical Supplies & Equipment,(id:41907) TAP,NHS SUPPLY CHAIN (MAIDSTONE),id:14593975 ,1057.27
Department of Health,Guys and St Thomas NHS Foundation Trust,26/11/2021,(83400) Office Equipment,(id:41906) TAP,NHS SUPPLY CHAIN (MAIDSTONE),id:14593975  , 123.36
Department of Health,Guys and St Thomas NHS Foundation Trust,19/11/2021,(81200) Medical Surgical Supplies & Equipment,(id:41906) TAP,EDWARDS LIFESCIENCES LTD,id:14648094, 864.00
Department of Health,Guys and St Thomas NHS Foundation Trust,05/11/2021,(81100) Dressings,(id:41906) TAP,NHS SUPPLY CHAIN (MAIDSTONE),id:14526935    , 319.78
Department of Health,Guys and St Thomas NHS Foundation Trust,26/11/2021,(81100) Dressings,(id:41906) TAP,NHS SUPPLY CHAIN (MAIDSTONE),id:14577034    , 704.72
Department of Health,Guys and St Thomas NHS Foundation Trust,26/11/2021,(82600) Uniforms & Clothing,(id:41906) TAP,NHS SUPPLY CHAIN (MAIDSTONE),id:14577034    , 331.78
Department of Health,Guys and St Thomas NHS Foundation Trust,05/11/2021,(81200) Medical Surgical Supplies & Equipment,(id:41905) TAP,NHS SUPPLY CHAIN (MAIDSTONE),id:14526935 ,6077.17
Department of Health,Guys and St Thomas NHS Foundation Trust,19/11/2021,(81200) Medical Surgical Supplies & Equipment,(id:41905) TAP,INTEGRA NEUROSCIENCES LIMITED,id:14636059, 702.65
Department of Health,Guys and St Thomas NHS Foundation Trust,26/11/2021,(83410) Office Equipment,(id:41905) TAP,RICOH UK LTD,id:14642828   ,   2.72
Department of Health,Guys and St Thomas NHS Foundation Trust,05/11/2021,(81200) Medical Surgical Supplies & Equipment,(id:850419) TAP,NHS SUPPLY CHAIN (MAIDSTONE),id:14526935, 779.18
Department of Health,Guys and St Thomas NHS Foundation Trust,17/11/2021,(81100) Dressings,(id:850419) TAP,NHS SUPPLY CHAIN (MAIDSTONE),id:14617322   ,  24.20
Department of Health,Guys and St Thomas NHS Foundation Trust,12/11/2021,(82700) Uniforms & Clothing,(id:41918) TAP,NHS SUPPLY CHAIN (MAIDSTONE),id:14555946    ,  63.36
Department of Health,Guys and St Thomas NHS Foundation Trust,17/11/2021,(82700) Uniforms & Clothing,(id:41918) TAP,NHS SUPPLY CHAIN (MAIDSTONE),id:14617322    , 340.75
Department of Health,Guys and St Thomas NHS Foundation Trust,12/11/2021,(81200) Medical Surgical Supplies & Equipment,(id:41918) TAP,NHS SUPPLY CHAIN (MAIDSTONE),id:14555946 ,2160.24
Department of Health,Guys and St Thomas NHS Foundation Trust,26/11/2021,(81200) Medical Surgical Supplies & Equipment,(id:41918) TAP,NHS SUPPLY CHAIN (MAIDSTONE),id:14577034 ,2451.18
Department of Health,Guys and St Thomas NHS Foundation Trust,05/11/2021,(81100) Dressings,(id:41918) TAP,ELIS UK LIMITED,id:14551248  ,1098.60
Department of Health,Guys and St Thomas NHS Foundation Trust,26/11/2021,(81225) Medical Surgical Supplies & Equipment,(id:41918) TAP,NHS SUPPLY CHAIN (MAIDSTONE),id:14577034 ,  15.23
Department of Health,Guys and St Thomas NHS Foundation Trust,12/11/2021,(50562) Qualified Nursing Staff,(id:41918) TAP,STAFFING PROFESSIONALS LTD,id:14623934  , 573.30
Department of Health,Guys and St Thomas NHS Foundation Trust,12/11/2021,(82600) Uniforms & Clothing,(id:41916) TAP,TOFFELN (BRISTOL),id:14616915, 684.60
Department of Health,Guys and St Thomas NHS Foundation Trust,26/11/2021,(82800) Bedding & Linen,(id:41916) TAP,NHS SUPPLY CHAIN (MAIDSTONE),id:14577034   , 105.54
Department of Health,Guys and St Thomas NHS Foundation Trust,26/11/2021,(83400) Office Equipment,(id:41916) TAP,NHS SUPPLY CHAIN (MAIDSTONE),id:14593975  , 290.96
Department of Health,Guys and St Thomas NHS Foundation Trust,12/11/2021,(81700) Lab Equipment Purchase,(id:4851419) TAP,NHS SUPPLY CHAIN (MAIDSTONE),id:14555946    , 847.20
Department of Health,Guys and St Thomas NHS Foundation Trust,26/11/2021,(81700) Lab Equipment Purchase,(id:4851419) TAP,NHS SUPPLY CHAIN (MAIDSTONE),id:14593975    , 713.02
Department of Health,Guys and St Thomas NHS Foundation Trust,26/11/2021,(81700) Lab Equipment Purchase,(id:41924) TAP,NHS SUPPLY CHAIN (MAIDSTONE),id:14593975 ,  15.44
Department of Health,Guys and St Thomas NHS Foundation Trust,05/11/2021,(81275) Medical Surgical Supplies & Equipment,(id:41924) TAP,NHS SUPPLY CHAIN (MAIDSTONE),id:14526935 ,  28.92
Department of Health,Guys and St Thomas NHS Foundation Trust,17/11/2021,(81700) Lab Equipment Purchase,(id:41923) TAP,NHS SUPPLY CHAIN (MAIDSTONE),id:14617322 ,  19.40
Department of Health,Guys and St Thomas NHS Foundation Trust,12/11/2021,(81200) Medical Surgical Supplies & Equipment,(id:41923) TAP,NHS SUPPLY CHAIN (MAIDSTONE),id:14555946 ,  28.09
Department of Health,Guys and St Thomas NHS Foundation Trust,26/11/2021,(82700) Uniforms & Clothing,(id:41923) TAP,NHS SUPPLY CHAIN (MAIDSTONE),id:14577034    ,  68.09
Department of Health,Guys and St Thomas NHS Foundation Trust,12/11/2021,(82800) Bedding & Linen,(id:41922) TAP,NHS SUPPLY CHAIN (MAIDSTONE),id:14555946   ,  21.31
Department of Health,Guys and St Thomas NHS Foundation Trust,12/11/2021,(81275) Medical Surgical Supplies & Equipment,(id:41922) TAP,NHS SUPPLY CHAIN (MAIDSTONE),id:14555946 , 289.20
Department of Health,Guys and St Thomas NHS Foundation Trust,05/11/2021,(83400) Office Equipment,(id:41922) TAP,NHS SUPPLY CHAIN (MAIDSTONE),id:14526935  ,  28.16
Department of Health,Guys and St Thomas NHS Foundation Trust,12/11/2021,(83410) Office Equipment,(id:41890) TAP,RICOH UK LTD,id:14546704   , 127.19
Department of Health,Guys and St Thomas NHS Foundation Trust,05/11/2021,(82600) Uniforms & Clothing,(id:41883) TAP,NHS SUPPLY CHAIN (MAIDSTONE),id:14526935    ,   2.16
Department of Health,Guys and St Thomas NHS Foundation Trust,05/11/2021,(82800) Bedding & Linen,(id:41883) TAP,NHS SUPPLY CHAIN (MAIDSTONE),id:14526935   , 254.90
Department of Health,Guys and St Thomas NHS Foundation Trust,17/11/2021,(81100) Dressings,(id:41883) TAP,NHS SUPPLY CHAIN (MAIDSTONE),id:14617322    ,1108.36
Department of Health,Guys and St Thomas NHS Foundation Trust,05/11/2021,(81200) Medical Surgical Supplies & Equipment,(id:41883) TAP,NHS SUPPLY CHAIN (MAIDSTONE),id:14526935 ,6369.31
Department of Health,Guys and St Thomas NHS Foundation Trust,26/11/2021,(84500) Establishment,(id:41883) TAP,CDP  PRINT MANAGEMENT,id:14642454  ,  27.90
Department of Health,Guys and St Thomas NHS Foundation Trust,12/11/2021,(50552) Qualified Nursing Staff,(id:41883) TAP,CONTINENTAL NURSE LTD,id:14623849  , 333.70
Department of Health,Guys and St Thomas NHS Foundation Trust,26/11/2021,(83400) Office Equipment,(id:41883) TAP,NHS SUPPLY CHAIN (MAIDSTONE),id:14577034  ,1042.22
Department of Health,Guys and St Thomas NHS Foundation Trust,12/11/2021,(50562) Qualified Nursing Staff,(id:41883) TAP,STAFFING PROFESSIONALS LTD,id:14623812  ,1212.11
Department of Health,Guys and St Thomas NHS Foundation Trust,05/11/2021,(50562) Qualified Nursing Staff,(id:41883) TAP,STAFFING PROFESSIONALS LTD,id:14597909  ,1162.98
Department of Health,Guys and St Thomas NHS Foundation Trust,26/11/2021,(50562) Qualified Nursing Staff,(id:41883) TAP,CARE PROVIDERS HEALTHCARE,id:14669478   ,1359.55
Department of Health,Guys and St Thomas NHS Foundation Trust,26/11/2021,(50562) Qualified Nursing Staff,(id:41883) TAP,CONTINENTAL NURSE LTD,id:14669376  ,2599.06
Department of Health,Guys and St Thomas NHS Foundation Trust,26/11/2021,(81100) Dressings,(id:2549419) TAP,NHS SUPPLY CHAIN (MAIDSTONE),id:14593975  ,  20.97
Department of Health,Guys and St Thomas NHS Foundation Trust,26/11/2021,(81200) Medical Surgical Supplies & Equipment,(id:41897) TAP,MEDTRONIC LTD,id:14536044 ,1380.89
Department of Health,Guys and St Thomas NHS Foundation Trust,05/11/2021,(81100) Dressings,(id:41897) TAP,ELIS UK LIMITED,id:14551214  , 717.25
Department of Health,Guys and St Thomas NHS Foundation Trust,26/11/2021,(81100) Dressings,(id:41897) TAP,NHS SUPPLY CHAIN (MAIDSTONE),id:14593975    , 970.76
Department of Health,Guys and St Thomas NHS Foundation Trust,05/11/2021,(81100) Dressings,(id:41897) TAP,ELIS UK LIMITED,id:14551237  , 559.05
Department of Health,Guys and St Thomas NHS Foundation Trust,17/11/2021,(81225) Medical Surgical Supplies & Equipment,(id:41897) TAP,NHS SUPPLY CHAIN (MAIDSTONE),id:14617322 ,  87.68
Department of Health,Guys and St Thomas NHS Foundation Trust,12/11/2021,(82800) Bedding & Linen,(id:41894) TAP,NHS SUPPLY CHAIN (MAIDSTONE),id:14555946   ,  17.03
Department of Health,Guys and St Thomas NHS Foundation Trust,26/11/2021,(83400) Office Equipment,(id:41894) TAP,NHS SUPPLY CHAIN (MAIDSTONE),id:14577034  ,  39.90
Department of Health,Guys and St Thomas NHS Foundation Trust,17/11/2021,(81200) Medical Surgical Supplies & Equipment,(id:41894) TAP,NHS SUPPLY CHAIN (MAIDSTONE),id:14617322 , 604.64
Department of Health,Guys and St Thomas NHS Foundation Trust,12/11/2021,(81200) Medical Surgical Supplies & Equipment,(id:5182419) Gastrointestinal Medicine & Surgery,TELEFLEX MEDICAL,id:14554418    , 894.60
Department of Health,Guys and St Thomas NHS Foundation Trust,26/11/2021,(83400) Office Equipment,(id:41958) Gastrointestinal Medicine & Surgery,NHS SUPPLY CHAIN (MAIDSTONE),id:14577034,  96.11
Department of Health,Guys and St Thomas NHS Foundation Trust,05/11/2021,(82800) Bedding & Linen,(id:41958) Gastrointestinal Medicine & Surgery,NHS SUPPLY CHAIN (MAIDSTONE),id:14526935 ,  17.49
Department of Health,Guys and St Thomas NHS Foundation Trust,26/11/2021,(50552) Qualified Nursing Staff,(id:41958) Gastrointestinal Medicine & Surgery,CONTINENTAL NURSE LTD,id:14669155,1727.53
Department of Health,Guys and St Thomas NHS Foundation Trust,05/11/2021,(50522) Unqualified Nursing Staff,(id:41958) Gastrointestinal Medicine & Surgery,CARE PROVIDERS HEALTHCARE,id:14597863    , 252.92
Department of Health,Guys and St Thomas NHS Foundation Trust,05/11/2021,(50522) Unqualified Nursing Staff,(id:41958) Gastrointestinal Medicine & Surgery,MSI GROUP LTD,id:14598302 , 258.37
Department of Health,Guys and St Thomas NHS Foundation Trust,05/11/2021,(50522) Unqualified Nursing Staff,(id:41958) Gastrointestinal Medicine & Surgery,MSI GROUP LTD,id:14598014 , 264.41
Department of Health,Guys and St Thomas NHS Foundation Trust,26/11/2021,(50522) Unqualified Nursing Staff,(id:41958) Gastrointestinal Medicine & Surgery,MSI GROUP LTD,id:14669243 , 258.37
Department of Health,Guys and St Thomas NHS Foundation Trust,26/11/2021,(82700) Uniforms & Clothing,(id:41954) Gastrointestinal Medicine & Surgery,NHS SUPPLY CHAIN (MAIDSTONE),id:14593975  , 137.62
Department of Health,Guys and St Thomas NHS Foundation Trust,19/11/2021,(50552) Qualified Nursing Staff,(id:41954) Gastrointestinal Medicine & Surgery,CONTINENTAL NURSE LTD,id:14646315, 325.01
Department of Health,Guys and St Thomas NHS Foundation Trust,19/11/2021,(83410) Office Equipment,(id:41954) Gastrointestinal Medicine & Surgery,RICOH UK LTD,id:14642873 , 467.37
Department of Health,Guys and St Thomas NHS Foundation Trust,12/11/2021,(81275) Medical Surgical Supplies & Equipment,(id:41954) Gastrointestinal Medicine & Surgery,NHS SUPPLY CHAIN (MAIDSTONE),id:14555946    ,  14.46
Department of Health,Guys and St Thomas NHS Foundation Trust,12/11/2021,(83400) Office Equipment,(id:41949) Gastrointestinal Medicine & Surgery,NHS SUPPLY CHAIN (MAIDSTONE),id:14555946, 193.94
Department of Health,Guys and St Thomas NHS Foundation Trust,05/11/2021,(81200) Medical Surgical Supplies & Equipment,(id:41949) Gastrointestinal Medicine & Surgery,NHS SUPPLY CHAIN (MAIDSTONE),id:14526935    ,1598.23
Department of Health,Guys and St Thomas NHS Foundation Trust,05/11/2021,(81200) Medical Surgical Supplies & Equipment,(id:41949) Gastrointestinal Medicine & Surgery,JOHNSON & JOHNSON MEDICAL LTD,id:14551921   , 689.27
Department of Health,Guys and St Thomas NHS Foundation Trust,05/11/2021,(81200) Medical Surgical Supplies & Equipment,(id:41949) Gastrointestinal Medicine & Surgery,JOHNSON & JOHNSON MEDICAL LTD,id:14545754   ,1221.02
Department of Health,Guys and St Thomas NHS Foundation Trust,19/11/2021,(81200) Medical Surgical Supplies & Equipment,(id:41949) Gastrointestinal Medicine & Surgery,DELTEX MEDICAL GROUP PLC,id:14616337   , 526.50
Department of Health,Guys and St Thomas NHS Foundation Trust,05/11/2021,(81000) Surgical Appliances,(id:41944) Gastrointestinal Medicine & Surgery,TALAR MADE ORTHOTICS LTD,id:14592678 ,  46.50
Department of Health,Guys and St Thomas NHS Foundation Trust,17/11/2021,(83400) Office Equipment,(id:4740419) Gastrointestinal Medicine & Surgery,NHS SUPPLY CHAIN (MAIDSTONE),id:14617322   ,  24.29
Department of Health,Guys and St Thomas NHS Foundation Trust,05/11/2021,(50522) Unqualified Nursing Staff,(id:2367419) Gastrointestinal Medicine & Surgery,CARE PROVIDERS HEALTHCARE,id:14598205  , 252.92
Department of Health,Guys and St Thomas NHS Foundation Trust,05/11/2021,(81200) Medical Surgical Supplies & Equipment,(id:2367419) Gastrointestinal Medicine & Surgery,NHS SUPPLY CHAIN (MAIDSTONE),id:14526935  , 656.53
Department of Health,Guys and St Thomas NHS Foundation Trust,17/11/2021,(81200) Medical Surgical Supplies & Equipment,(id:2367419) Gastrointestinal Medicine & Surgery,NHS SUPPLY CHAIN (MAIDSTONE),id:14617322  , 647.36
Department of Health,Guys and St Thomas NHS Foundation Trust,26/11/2021,(83400) Office Equipment,(id:2367419) Gastrointestinal Medicine & Surgery,NHS SUPPLY CHAIN (MAIDSTONE),id:14577034   ,  83.65
Department of Health,Guys and St Thomas NHS Foundation Trust,26/11/2021,(81230) Medical Surgical Supplies & Equipment,(id:2367419) Gastrointestinal Medicine & Surgery,NHS SUPPLY CHAIN (MAIDSTONE),id:14593975  , 134.64
Department of Health,Guys and St Thomas NHS Foundation Trust,05/11/2021,(50552) Qualified Nursing Staff,(id:2367419) Gastrointestinal Medicine & Surgery,CONTINENTAL NURSE LTD,id:14602021   ,2178.89
Department of Health,Guys and St Thomas NHS Foundation Trust,05/11/2021,(89595) Non-Healthcare from Foundation Trusts,(id:41942) Gastrointestinal Medicine & Surgery,NOTTINGHAMSHIRE HEALTHCARE NHS FOUNDATION TRUST,id:14336460,1080.73
Department of Health,Guys and St Thomas NHS Foundation Trust,26/11/2021,(84656) Establishment,(id:41942) Gastrointestinal Medicine & Surgery,DICT8 LIMITED,id:14502440   ,1478.04
Department of Health,Guys and St Thomas NHS Foundation Trust,26/11/2021,(83400) Office Equipment,(id:41917) Gastrointestinal Medicine & Surgery,NHS SUPPLY CHAIN (MAIDSTONE),id:14577034, 334.74
Department of Health,Guys and St Thomas NHS Foundation Trust,12/11/2021,(81235) Medical Surgical Supplies & Equipment,(id:41917) Gastrointestinal Medicine & Surgery,BOSTON SCIENTIFIC LTD,id:14581795 , 900.84
Department of Health,Guys and St Thomas NHS Foundation Trust,12/11/2021,(81200) Medical Surgical Supplies & Equipment,(id:41917) Gastrointestinal Medicine & Surgery,DIAGMED HEALTHCARE LTD,id:14602288,1170.00
Department of Health,Guys and St Thomas NHS Foundation Trust,26/11/2021,(81200) Medical Surgical Supplies & Equipment,(id:41917) Gastrointestinal Medicine & Surgery,OLYMPUS KEYMED,id:14660154   ,1410.00
Department of Health,Guys and St Thomas NHS Foundation Trust,05/11/2021,(81200) Medical Surgical Supplies & Equipment,(id:41917) Gastrointestinal Medicine & Surgery,BOSTON SCIENTIFIC LTD,id:14551890 ,2182.28
Department of Health,Guys and St Thomas NHS Foundation Trust,05/11/2021,(81200) Medical Surgical Supplies & Equipment,(id:41917) Gastrointestinal Medicine & Surgery,MEDTRONIC LTD,id:14531482    ,4824.00
Department of Health,Guys and St Thomas NHS Foundation Trust,19/11/2021,(81200) Medical Surgical Supplies & Equipment,(id:41917) Gastrointestinal Medicine & Surgery,BOSTON SCIENTIFIC LTD,id:14598852 ,2646.24
Department of Health,Guys and St Thomas NHS Foundation Trust,05/11/2021,(81200) Medical Surgical Supplies & Equipment,(id:41917) Gastrointestinal Medicine & Surgery,PENTLAND MEDICAL LTD,id:14589516  ,2894.40
Department of Health,Guys and St Thomas NHS Foundation Trust,05/11/2021,(81200) Medical Surgical Supplies & Equipment,(id:41917) Gastrointestinal Medicine & Surgery,18 WEEK SUPPORT LIMITED,id:14593954    ,    17850.00
Department of Health,Guys and St Thomas NHS Foundation Trust,26/11/2021,(81100) Dressings,(id:41917) Gastrointestinal Medicine & Surgery,NHS SUPPLY CHAIN (MAIDSTONE),id:14577034  ,  69.60
Department of Health,Guys and St Thomas NHS Foundation Trust,12/11/2021,(81100) Dressings,(id:41917) Gastrointestinal Medicine & Surgery,NHS SUPPLY CHAIN (MAIDSTONE),id:14555946  ,  69.60
Department of Health,Guys and St Thomas NHS Foundation Trust,19/11/2021,(81400) Medical Surgical Supplies & Equipment,(id:41917) Gastrointestinal Medicine & Surgery,BOSTON SCIENTIFIC LTD,id:14598852 , 116.00
Department of Health,Guys and St Thomas NHS Foundation Trust,12/11/2021,(50532) Unqualified Nursing Staff,(id:41917) Gastrointestinal Medicine & Surgery,CONTINENTAL NURSE LTD,id:14623963   ,1772.04
Department of Health,Guys and St Thomas NHS Foundation Trust,19/11/2021,(50532) Unqualified Nursing Staff,(id:41917) Gastrointestinal Medicine & Surgery,CONTINENTAL NURSE LTD,id:14646537   ,1531.30
Department of Health,Guys and St Thomas NHS Foundation Trust,26/11/2021,(81700) Lab Equipment Purchase,(id:41917) Gastrointestinal Medicine & Surgery,NHS SUPPLY CHAIN (MAIDSTONE),id:14577034    , 144.00
Department of Health,Guys and St Thomas NHS Foundation Trust,17/11/2021,(81255) Medical Surgical Supplies & Equipment,(id:41917) Gastrointestinal Medicine & Surgery,NHS SUPPLY CHAIN (MAIDSTONE),id:14617322    ,  82.80
Department of Health,Guys and St Thomas NHS Foundation Trust,26/11/2021,(84400) Transport,(id:2625419) Transplant Renal and Urology,IMT MEDICAL TRANSPORT LTD,id:14666034,3289.98
Department of Health,Guys and St Thomas NHS Foundation Trust,17/11/2021,(81275) Medical Surgical Supplies & Equipment,(id:42423) Transplant Renal and Urology,NHS SUPPLY CHAIN (MAIDSTONE),id:14617322 ,  14.46
Department of Health,Guys and St Thomas NHS Foundation Trust,12/11/2021,(81100) Dressings,(id:42423) Transplant Renal and Urology,NHS SUPPLY CHAIN (MAIDSTONE),id:14555946    , 261.28
Department of Health,Guys and St Thomas NHS Foundation Trust,30/11/2021,(54032) Technical Officers,(id:42423) Transplant Renal and Urology,PRICEWATERHOUSECOOPERS LLP,id:14686482  , 289.01
Department of Health,Guys and St Thomas NHS Foundation Trust,05/11/2021,(81200) Medical Surgical Supplies & Equipment,(id:42423) Transplant Renal and Urology,COLOPLAST LTD,id:14544154 ,1350.00
Department of Health,Guys and St Thomas NHS Foundation Trust,17/11/2021,(82800) Bedding & Linen,(id:42419) Transplant Renal and Urology,NHS SUPPLY CHAIN (MAIDSTONE),id:14617322   , 106.02
Department of Health,Guys and St Thomas NHS Foundation Trust,05/11/2021,(81200) Medical Surgical Supplies & Equipment,(id:42419) Transplant Renal and Urology,NHS SUPPLY CHAIN (MAIDSTONE),id:14526935 , 626.69
Department of Health,Guys and St Thomas NHS Foundation Trust,05/11/2021,(83400) Office Equipment,(id:42419) Transplant Renal and Urology,NHS SUPPLY CHAIN (MAIDSTONE),id:14526935  , 144.49
Department of Health,Guys and St Thomas NHS Foundation Trust,17/11/2021,(81225) Medical Surgical Supplies & Equipment,(id:42419) Transplant Renal and Urology,NHS SUPPLY CHAIN (MAIDSTONE),id:14617322 ,  15.23
Department of Health,Guys and St Thomas NHS Foundation Trust,26/11/2021,(81700) Lab Equipment Purchase,(id:42419) Transplant Renal and Urology,NHS SUPPLY CHAIN (MAIDSTONE),id:14577034 ,  40.09
Department of Health,Guys and St Thomas NHS Foundation Trust,05/11/2021,(81400) Medical Surgical Supplies & Equipment,(id:2882419) Transplant Renal and Urology,NHS SUPPLY CHAIN (MAIDSTONE),id:14526935    ,1000.00
Department of Health,Guys and St Thomas NHS Foundation Trust,26/11/2021,(84500) Establishment,(id:2882419) Transplant Renal and Urology,CDP  PRINT MANAGEMENT,id:14642475,   6.20
Department of Health,Guys and St Thomas NHS Foundation Trust,26/11/2021,(82000) Provisions & Kitchens,(id:969419) Transplant Renal and Urology,NHS SUPPLY CHAIN (MAIDSTONE),id:14577034 ,  34.10
Department of Health,Guys and St Thomas NHS Foundation Trust,26/11/2021,(81100) Dressings,(id:969419) Transplant Renal and Urology,NHS SUPPLY CHAIN (MAIDSTONE),id:14577034   , 142.88
Department of Health,Guys and St Thomas NHS Foundation Trust,05/11/2021,(81100) Dressings,(id:969419) Transplant Renal and Urology,NHS SUPPLY CHAIN (MAIDSTONE),id:14526935   ,   4.91
Department of Health,Guys and St Thomas NHS Foundation Trust,19/11/2021,(81200) Medical Surgical Supplies & Equipment,(id:42449) Transplant Renal and Urology,DIGITIMER LTD,id:14638594 , 531.60
Department of Health,Guys and St Thomas NHS Foundation Trust,17/11/2021,(81200) Medical Surgical Supplies & Equipment,(id:42449) Transplant Renal and Urology,NHS SUPPLY CHAIN (MAIDSTONE),id:14617322 ,1379.76
Department of Health,Guys and St Thomas NHS Foundation Trust,26/11/2021,(50552) Qualified Nursing Staff,(id:42449) Transplant Renal and Urology,CONTINENTAL NURSE LTD,id:14668954  ,1964.57
Department of Health,Guys and St Thomas NHS Foundation Trust,12/11/2021,(81100) Dressings,(id:42449) Transplant Renal and Urology,NHS SUPPLY CHAIN (MAIDSTONE),id:14555946    , 100.18
Department of Health,Guys and St Thomas NHS Foundation Trust,05/11/2021,(82800) Bedding & Linen,(id:42447) Transplant Renal and Urology,NHS SUPPLY CHAIN (MAIDSTONE),id:14526935   , 209.64
Department of Health,Guys and St Thomas NHS Foundation Trust,05/11/2021,(81200) Medical Surgical Supplies & Equipment,(id:42447) Transplant Renal and Urology,NHS SUPPLY CHAIN (MAIDSTONE),id:14526935 , 454.37
Department of Health,Guys and St Thomas NHS Foundation Trust,26/11/2021,(81100) Dressings,(id:42447) Transplant Renal and Urology,NHS SUPPLY CHAIN (MAIDSTONE),id:14577034    ,  42.78
Department of Health,Guys and St Thomas NHS Foundation Trust,17/11/2021,(81225) Medical Surgical Supplies & Equipment,(id:42447) Transplant Renal and Urology,NHS SUPPLY CHAIN (MAIDSTONE),id:14617322 ,   6.24
Department of Health,Guys and St Thomas NHS Foundation Trust,19/11/2021,(50203) Consultants,(id:42447) Transplant Renal and Urology,KINGS COLLEGE LONDON:03529700,id:14482586 ,2369.94
Department of Health,Guys and St Thomas NHS Foundation Trust,12/11/2021,(81200) Medical Surgical Supplies & Equipment,(id:42446) Transplant Renal and Urology,SIGMACON (UK) LTD,id:14610174  ,1454.40
Department of Health,Guys and St Thomas NHS Foundation Trust,12/11/2021,(81200) Medical Surgical Supplies & Equipment,(id:42446) Transplant Renal and Urology,SIGMACON (UK) LTD,id:14609975  , 738.00
Department of Health,Guys and St Thomas NHS Foundation Trust,05/11/2021,(81200) Medical Surgical Supplies & Equipment,(id:42446) Transplant Renal and Urology,STRYKER UK LTD,id:14596371, 504.00
Department of Health,Guys and St Thomas NHS Foundation Trust,17/11/2021,(81200) Medical Surgical Supplies & Equipment,(id:42446) Transplant Renal and Urology,NHS SUPPLY CHAIN (MAIDSTONE),id:14617322 ,    19831.50
Department of Health,Guys and St Thomas NHS Foundation Trust,17/11/2021,(81200) Medical Surgical Supplies & Equipment,(id:42444) Transplant Renal and Urology,NHS SUPPLY CHAIN (MAIDSTONE),id:14617322 ,  31.20
Department of Health,Guys and St Thomas NHS Foundation Trust,05/11/2021,(82000) Provisions & Kitchens,(id:42443) Transplant Renal and Urology,NHS SUPPLY CHAIN (MAIDSTONE),id:14526935  ,   6.62
Department of Health,Guys and St Thomas NHS Foundation Trust,26/11/2021,(82600) Uniforms & Clothing,(id:42443) Transplant Renal and Urology,NHS SUPPLY CHAIN (MAIDSTONE),id:14577034    ,  21.05
Department of Health,Guys and St Thomas NHS Foundation Trust,05/11/2021,(82800) Bedding & Linen,(id:42443) Transplant Renal and Urology,NHS SUPPLY CHAIN (MAIDSTONE),id:14526935   , 167.66
Department of Health,Guys and St Thomas NHS Foundation Trust,26/11/2021,(84500) Establishment,(id:42443) Transplant Renal and Urology,CDP  PRINT MANAGEMENT,id:14642434  ,  24.80
Department of Health,Guys and St Thomas NHS Foundation Trust,05/11/2021,(81200) Medical Surgical Supplies & Equipment,(id:42443) Transplant Renal and Urology,3M UNITED KINGDOM PLC,id:14601736   , 176.40
Department of Health,Guys and St Thomas NHS Foundation Trust,05/11/2021,(81200) Medical Surgical Supplies & Equipment,(id:42443) Transplant Renal and Urology,UK MEDICAL LTD,id:14571295, 515.94
Department of Health,Guys and St Thomas NHS Foundation Trust,12/11/2021,(83400) Office Equipment,(id:42443) Transplant Renal and Urology,NHS SUPPLY CHAIN (MAIDSTONE),id:14555946  ,  76.13
Department of Health,Guys and St Thomas NHS Foundation Trust,17/11/2021,(82000) Provisions & Kitchens,(id:42442) Transplant Renal and Urology,NHS SUPPLY CHAIN (MAIDSTONE),id:14617322  ,  24.36
Department of Health,Guys and St Thomas NHS Foundation Trust,05/11/2021,(82800) Bedding & Linen,(id:42442) Transplant Renal and Urology,NHS SUPPLY CHAIN (MAIDSTONE),id:14526935   , 179.81
Department of Health,Guys and St Thomas NHS Foundation Trust,12/11/2021,(81200) Medical Surgical Supplies & Equipment,(id:42442) Transplant Renal and Urology,NHS SUPPLY CHAIN (MAIDSTONE),id:14555946 , 242.18
Department of Health,Guys and St Thomas NHS Foundation Trust,12/11/2021,(83410) Office Equipment,(id:42442) Transplant Renal and Urology,RICOH UK LTD,id:14546704   ,  59.73
Department of Health,Guys and St Thomas NHS Foundation Trust,12/11/2021,(83400) Office Equipment,(id:42442) Transplant Renal and Urology,NHS SUPPLY CHAIN (MAIDSTONE),id:14555946  ,  60.77
Department of Health,Guys and St Thomas NHS Foundation Trust,17/11/2021,(81275) Medical Surgical Supplies & Equipment,(id:42442) Transplant Renal and Urology,NHS SUPPLY CHAIN (MAIDSTONE),id:14617322 ,  14.46
Department of Health,Guys and St Thomas NHS Foundation Trust,17/11/2021,(81700) Lab Equipment Purchase,(id:42442) Transplant Renal and Urology,NHS SUPPLY CHAIN (MAIDSTONE),id:14617322 ,  29.00
Department of Health,Guys and St Thomas NHS Foundation Trust,17/11/2021,(81230) Medical Surgical Supplies & Equipment,(id:42442) Transplant Renal and Urology,NHS SUPPLY CHAIN (MAIDSTONE),id:14617322 ,  68.94
Department of Health,Guys and St Thomas NHS Foundation Trust,17/11/2021,(81255) Medical Surgical Supplies & Equipment,(id:42442) Transplant Renal and Urology,NHS SUPPLY CHAIN (MAIDSTONE),id:14617322 ,   3.74
Department of Health,Guys and St Thomas NHS Foundation Trust,26/11/2021,(81200) Medical Surgical Supplies & Equipment,(id:42439) Transplant Renal and Urology,INTUITIVE SURGICAL LTD,id:14668298  ,    35383.20
Department of Health,Guys and St Thomas NHS Foundation Trust,05/11/2021,(81200) Medical Surgical Supplies & Equipment,(id:42439) Transplant Renal and Urology,INTUITIVE SURGICAL LTD,id:14589479  ,    43652.40
Department of Health,Guys and St Thomas NHS Foundation Trust,12/11/2021,(81200) Medical Surgical Supplies & Equipment,(id:42439) Transplant Renal and Urology,INTUITIVE SURGICAL LTD,id:14594228  ,    25440.00
Department of Health,Guys and St Thomas NHS Foundation Trust,26/11/2021,(83400) Office Equipment,(id:3671419) Transplant Renal and Urology,NHS SUPPLY CHAIN (MAIDSTONE),id:14577034, 182.59
Department of Health,Guys and St Thomas NHS Foundation Trust,26/11/2021,(81275) Medical Surgical Supplies & Equipment,(id:3671419) Transplant Renal and Urology,NHS SUPPLY CHAIN (MAIDSTONE),id:14577034    , 706.02
Department of Health,Guys and St Thomas NHS Foundation Trust,26/11/2021,(81200) Medical Surgical Supplies & Equipment,(id:2653419) Transplant Renal and Urology,NHS SUPPLY CHAIN (MAIDSTONE),id:14593975    ,1645.20
Department of Health,Guys and St Thomas NHS Foundation Trust,17/11/2021,(81200) Medical Surgical Supplies & Equipment,(id:2653419) Transplant Renal and Urology,NHS SUPPLY CHAIN (MAIDSTONE),id:14617322    ,  18.13
Department of Health,Guys and St Thomas NHS Foundation Trust,05/11/2021,(82700) Uniforms & Clothing,(id:42435) Transplant Renal and Urology,NHS SUPPLY CHAIN (MAIDSTONE),id:14526935    ,  21.84
Department of Health,Guys and St Thomas NHS Foundation Trust,26/11/2021,(84500) Establishment,(id:42435) Transplant Renal and Urology,CDP  PRINT MANAGEMENT,id:14642454  ,   3.10
Department of Health,Guys and St Thomas NHS Foundation Trust,26/11/2021,(81255) Medical Surgical Supplies & Equipment,(id:42435) Transplant Renal and Urology,NHS SUPPLY CHAIN (MAIDSTONE),id:14593975 ,  10.92
Department of Health,Guys and St Thomas NHS Foundation Trust,05/11/2021,(81700) Lab Equipment Purchase,(id:42435) Transplant Renal and Urology,NHS SUPPLY CHAIN (MAIDSTONE),id:14526935 ,   3.10
Department of Health,Guys and St Thomas NHS Foundation Trust,05/11/2021,(50552) Qualified Nursing Staff,(id:42435) Transplant Renal and Urology,GLOBE LOCUMS LTD,id:14597890  , 636.41
Department of Health,Guys and St Thomas NHS Foundation Trust,05/11/2021,(81200) Medical Surgical Supplies & Equipment,(id:42433) Transplant Renal and Urology,MERCIAN SURGICAL SUPPLY CO LTD,id:14589885    ,    10482.00
Department of Health,Guys and St Thomas NHS Foundation Trust,05/11/2021,(81200) Medical Surgical Supplies & Equipment,(id:42433) Transplant Renal and Urology,BOSTON SCIENTIFIC LTD,id:14539259   , 792.00
Department of Health,Guys and St Thomas NHS Foundation Trust,26/11/2021,(81200) Medical Surgical Supplies & Equipment,(id:42433) Transplant Renal and Urology,JOHNSON & JOHNSON MEDICAL LTD,id:14621088,1600.20
Department of Health,Guys and St Thomas NHS Foundation Trust,12/11/2021,(81200) Medical Surgical Supplies & Equipment,(id:42433) Transplant Renal and Urology,JOHNSON & JOHNSON MEDICAL LTD,id:14557347,1600.20
Department of Health,Guys and St Thomas NHS Foundation Trust,19/11/2021,(81200) Medical Surgical Supplies & Equipment,(id:42433) Transplant Renal and Urology,TELEFLEX MEDICAL,id:14588369   , 510.00
Department of Health,Guys and St Thomas NHS Foundation Trust,05/11/2021,(81200) Medical Surgical Supplies & Equipment,(id:42430) Transplant Renal and Urology,BAXTER HEALTHCARE LTD,id:14585694   ,1928.77
Department of Health,Guys and St Thomas NHS Foundation Trust,26/11/2021,(81200) Medical Surgical Supplies & Equipment,(id:42430) Transplant Renal and Urology,B.BRAUN MEDICAL LTD,id:14640175, 811.76
Department of Health,Guys and St Thomas NHS Foundation Trust,19/11/2021,(81200) Medical Surgical Supplies & Equipment,(id:42430) Transplant Renal and Urology,B.BRAUN MEDICAL LTD,id:14634686,2191.07
Department of Health,Guys and St Thomas NHS Foundation Trust,12/11/2021,(82800) Bedding & Linen,(id:42428) Transplant Renal and Urology,NHS SUPPLY CHAIN (MAIDSTONE),id:14555946   ,  40.20
Department of Health,Guys and St Thomas NHS Foundation Trust,19/11/2021,(83410) Office Equipment,(id:42428) Transplant Renal and Urology,RICOH UK LTD,id:14642820   ,  88.32
Department of Health,Guys and St Thomas NHS Foundation Trust,26/11/2021,(83410) Office Equipment,(id:42428) Transplant Renal and Urology,RICOH UK LTD,id:14642828   , 954.30
Department of Health,Guys and St Thomas NHS Foundation Trust,26/11/2021,(81200) Medical Surgical Supplies & Equipment,(id:42420) Transplant Renal and Urology,NHS SUPPLY CHAIN (MAIDSTONE),id:14593975 ,2850.45
Department of Health,Guys and St Thomas NHS Foundation Trust,26/11/2021,(81200) Medical Surgical Supplies & Equipment,(id:42420) Transplant Renal and Urology,FRESENIUS MEDICAL CARE UK LTD,id:14633741,3677.04
Department of Health,Guys and St Thomas NHS Foundation Trust,12/11/2021,(81200) Medical Surgical Supplies & Equipment,(id:42420) Transplant Renal and Urology,FRESENIUS MEDICAL CARE UK LTD,id:14590194,2211.84
Department of Health,Guys and St Thomas NHS Foundation Trust,19/11/2021,(80150) Drug Costs,(id:42420) Transplant Renal and Urology,BAXTER HEALTHCARE LTD,id:14600054,  57.60
Department of Health,Guys and St Thomas NHS Foundation Trust,26/11/2021,(84500) Establishment,(id:42420) Transplant Renal and Urology,CDP  PRINT MANAGEMENT,id:14642474  ,   3.10
Department of Health,Guys and St Thomas NHS Foundation Trust,26/11/2021,(83400) Office Equipment,(id:42420) Transplant Renal and Urology,NHS SUPPLY CHAIN (MAIDSTONE),id:14593975  ,  48.33
Department of Health,Guys and St Thomas NHS Foundation Trust,26/11/2021,(83400) Office Equipment,(id:42420) Transplant Renal and Urology,NHS SUPPLY CHAIN (MAIDSTONE),id:14577034  , 286.10
Department of Health,Guys and St Thomas NHS Foundation Trust,05/11/2021,(83400) Office Equipment,(id:42420) Transplant Renal and Urology,NHS SUPPLY CHAIN (MAIDSTONE),id:14526935  , 202.29
Department of Health,Guys and St Thomas NHS Foundation Trust,12/11/2021,(82800) Bedding & Linen,(id:42420) Transplant Renal and Urology,NHS SUPPLY CHAIN (MAIDSTONE),id:14555946   , 305.79
Department of Health,Guys and St Thomas NHS Foundation Trust,12/11/2021,(82000) Provisions & Kitchens,(id:42420) Transplant Renal and Urology,NHS SUPPLY CHAIN (MAIDSTONE),id:14555946  ,  10.04
Department of Health,Guys and St Thomas NHS Foundation Trust,12/11/2021,(81700) Lab Equipment Purchase,(id:42420) Transplant Renal and Urology,NHS SUPPLY CHAIN (MAIDSTONE),id:14555946 ,  44.61
Department of Health,Guys and St Thomas NHS Foundation Trust,17/11/2021,(81700) Lab Equipment Purchase,(id:42420) Transplant Renal and Urology,NHS SUPPLY CHAIN (MAIDSTONE),id:14617322 ,  15.91
Department of Health,Guys and St Thomas NHS Foundation Trust,12/11/2021,(81700) Lab Equipment Purchase,(id:42438) Transplant Renal and Urology,NHS SUPPLY CHAIN (MAIDSTONE),id:14555946 ,  58.72
Department of Health,Guys and St Thomas NHS Foundation Trust,12/11/2021,(83410) Office Equipment,(id:42438) Transplant Renal and Urology,RICOH UK LTD,id:14546704   ,  21.69
Department of Health,Guys and St Thomas NHS Foundation Trust,12/11/2021,(86300) Healthcare from non-NHS bodies,(id:42437) Transplant Renal and Urology,DIAVERUM UK LTD,id:14626435 ,    28740.15
Department of Health,Guys and St Thomas NHS Foundation Trust,26/11/2021,(82800) Bedding & Linen,(id:42427) Transplant Renal and Urology,NHS SUPPLY CHAIN (MAIDSTONE),id:14577034   , 100.50
Department of Health,Guys and St Thomas NHS Foundation Trust,26/11/2021,(82800) Bedding & Linen,(id:42427) Transplant Renal and Urology,NHS SUPPLY CHAIN (MAIDSTONE),id:14593975   , 107.82
Department of Health,Guys and St Thomas NHS Foundation Trust,26/11/2021,(84400) Transport,(id:42425) Transplant Renal and Urology,UK FREIGHT MASTERS LTD,id:14666135, 744.00
Department of Health,Guys and St Thomas NHS Foundation Trust,17/11/2021,(81200) Medical Surgical Supplies & Equipment,(id:42422) Transplant Renal and Urology,NHS SUPPLY CHAIN (MAIDSTONE),id:14617322 , 708.48
Department of Health,Guys and St Thomas NHS Foundation Trust,05/11/2021,(80010) Drug Costs,(id:42422) Transplant Renal and Urology,NHS SUPPLY CHAIN (MAIDSTONE),id:14526935   ,1248.62
Department of Health,Guys and St Thomas NHS Foundation Trust,12/11/2021,(80010) Drug Costs,(id:42422) Transplant Renal and Urology,NHS SUPPLY CHAIN (MAIDSTONE),id:14555946   , 106.80
Department of Health,Guys and St Thomas NHS Foundation Trust,05/11/2021,(83360) Premises Services,(id:42422) Transplant Renal and Urology,REDLAND CONSTRUCTION LIMITED,id:14540974 ,2234.40
Department of Health,Guys and St Thomas NHS Foundation Trust,17/11/2021,(82000) Provisions & Kitchens,(id:42421) Transplant Renal and Urology,NHS SUPPLY CHAIN (MAIDSTONE),id:14617322  ,  36.86
Department of Health,Guys and St Thomas NHS Foundation Trust,26/11/2021,(82800) Bedding & Linen,(id:42421) Transplant Renal and Urology,NHS SUPPLY CHAIN (MAIDSTONE),id:14577034   , 462.06
Department of Health,Guys and St Thomas NHS Foundation Trust,12/11/2021,(81200) Medical Surgical Supplies & Equipment,(id:42421) Transplant Renal and Urology,BAXTER HEALTHCARE LTD,id:14485425   , 781.51
Department of Health,Guys and St Thomas NHS Foundation Trust,12/11/2021,(81200) Medical Surgical Supplies & Equipment,(id:42421) Transplant Renal and Urology,BAXTER HEALTHCARE LTD,id:14485420   , 832.09
Department of Health,Guys and St Thomas NHS Foundation Trust,12/11/2021,(81200) Medical Surgical Supplies & Equipment,(id:42421) Transplant Renal and Urology,BAXTER HEALTHCARE LTD,id:14485423   , 923.31
Department of Health,Guys and St Thomas NHS Foundation Trust,26/11/2021,(81100) Dressings,(id:884419) Surgery,NHS SUPPLY CHAIN (MAIDSTONE),id:14593975    ,1357.30
Department of Health,Guys and St Thomas NHS Foundation Trust,17/11/2021,(81100) Dressings,(id:884419) Surgery,NHS SUPPLY CHAIN (MAIDSTONE),id:14617322    ,1440.95
Department of Health,Guys and St Thomas NHS Foundation Trust,05/11/2021,(81000) Surgical Appliances,(id:42485) Surgery,TALAR MADE ORTHOTICS LTD,id:14590739    , 132.30
Department of Health,Guys and St Thomas NHS Foundation Trust,17/11/2021,(82000) Provisions & Kitchens,(id:42485) Surgery,NHS SUPPLY CHAIN (MAIDSTONE),id:14617322   , 305.80
Department of Health,Guys and St Thomas NHS Foundation Trust,19/11/2021,(81100) Dressings,(id:42485) Surgery,ZIMMER BIOMET UK LTD,id:14634497   , 841.20
Department of Health,Guys and St Thomas NHS Foundation Trust,05/11/2021,(81200) Medical Surgical Supplies & Equipment,(id:42485) Surgery,NHS SUPPLY CHAIN (MAIDSTONE),id:14526935  , 384.64
Department of Health,Guys and St Thomas NHS Foundation Trust,05/11/2021,(81200) Medical Surgical Supplies & Equipment,(id:42484) Surgery,NHS SUPPLY CHAIN (MAIDSTONE),id:14526935  , 834.23
Department of Health,Guys and St Thomas NHS Foundation Trust,17/11/2021,(81200) Medical Surgical Supplies & Equipment,(id:42484) Surgery,NHS SUPPLY CHAIN (MAIDSTONE),id:14617322  ,  16.28
Department of Health,Guys and St Thomas NHS Foundation Trust,12/11/2021,(81100) Dressings,(id:42484) Surgery,NHS SUPPLY CHAIN (MAIDSTONE),id:14555946, 186.92
Department of Health,Guys and St Thomas NHS Foundation Trust,26/11/2021,(81100) Dressings,(id:42484) Surgery,NHS SUPPLY CHAIN (MAIDSTONE),id:14593975, 194.72
Department of Health,Guys and St Thomas NHS Foundation Trust,26/11/2021,(81225) Medical Surgical Supplies & Equipment,(id:42483) Surgery,NHS SUPPLY CHAIN (MAIDSTONE),id:14593975  ,  88.92
Department of Health,Guys and St Thomas NHS Foundation Trust,26/11/2021,(84500) Establishment,(id:42483) Surgery,CDP  PRINT MANAGEMENT,id:14642454   ,  12.40
Department of Health,Guys and St Thomas NHS Foundation Trust,17/11/2021,(81100) Dressings,(id:42483) Surgery,NHS SUPPLY CHAIN (MAIDSTONE),id:14617322,  95.09
Department of Health,Guys and St Thomas NHS Foundation Trust,12/11/2021,(82800) Bedding & Linen,(id:42483) Surgery,NHS SUPPLY CHAIN (MAIDSTONE),id:14555946    ,  13.06
Department of Health,Guys and St Thomas NHS Foundation Trust,05/11/2021,(83400) Office Equipment,(id:42483) Surgery,NHS SUPPLY CHAIN (MAIDSTONE),id:14526935   , 321.41
Department of Health,Guys and St Thomas NHS Foundation Trust,05/11/2021,(82000) Provisions & Kitchens,(id:42483) Surgery,NHS SUPPLY CHAIN (MAIDSTONE),id:14526935   ,   9.22
Department of Health,Guys and St Thomas NHS Foundation Trust,12/11/2021,(81000) Surgical Appliances,(id:42480) Surgery,MEDI UK LTD,id:14614402  ,  47.89
Department of Health,Guys and St Thomas NHS Foundation Trust,12/11/2021,(82800) Bedding & Linen,(id:42467) Surgery,NHS SUPPLY CHAIN (MAIDSTONE),id:14555946    ,  26.52
Department of Health,Guys and St Thomas NHS Foundation Trust,12/11/2021,(81200) Medical Surgical Supplies & Equipment,(id:42467) Surgery,JOHNSON & JOHNSON MEDICAL LTD,id:14581814 , 521.96
Department of Health,Guys and St Thomas NHS Foundation Trust,12/11/2021,(81200) Medical Surgical Supplies & Equipment,(id:42467) Surgery,STRYKER UK LTD,id:14370014 , 834.00
Department of Health,Guys and St Thomas NHS Foundation Trust,19/11/2021,(81200) Medical Surgical Supplies & Equipment,(id:42467) Surgery,JOHNSON & JOHNSON MEDICAL LTD,id:14588382 , 541.65
Department of Health,Guys and St Thomas NHS Foundation Trust,19/11/2021,(81200) Medical Surgical Supplies & Equipment,(id:42467) Surgery,LEDA ORTHOPAEDICS LTD,id:14626334    ,3036.00
Department of Health,Guys and St Thomas NHS Foundation Trust,19/11/2021,(81200) Medical Surgical Supplies & Equipment,(id:42467) Surgery,LEDA ORTHOPAEDICS LTD,id:14626394    ,4290.00
Department of Health,Guys and St Thomas NHS Foundation Trust,17/11/2021,(81225) Medical Surgical Supplies & Equipment,(id:42467) Surgery,NHS SUPPLY CHAIN (MAIDSTONE),id:14617322  ,  19.44
Department of Health,Guys and St Thomas NHS Foundation Trust,26/11/2021,(81225) Medical Surgical Supplies & Equipment,(id:42467) Surgery,NHS SUPPLY CHAIN (MAIDSTONE),id:14593975  ,  51.84
Department of Health,Guys and St Thomas NHS Foundation Trust,26/11/2021,(81200) Medical Surgical Supplies & Equipment,(id:42466) Surgery,JOINT OPERATIONS (UK) LLP,id:14594229,1224.00
Department of Health,Guys and St Thomas NHS Foundation Trust,17/11/2021,(81100) Dressings,(id:42466) Surgery,NHS SUPPLY CHAIN (MAIDSTONE),id:14617322,1519.89
Department of Health,Guys and St Thomas NHS Foundation Trust,17/11/2021,(82700) Uniforms & Clothing,(id:42465) Surgery,NHS SUPPLY CHAIN (MAIDSTONE),id:14617322,  84.65
Department of Health,Guys and St Thomas NHS Foundation Trust,26/11/2021,(83400) Office Equipment,(id:42465) Surgery,NHS SUPPLY CHAIN (MAIDSTONE),id:14593975   , 191.18
Department of Health,Guys and St Thomas NHS Foundation Trust,05/11/2021,(81225) Medical Surgical Supplies & Equipment,(id:42465) Surgery,NHS SUPPLY CHAIN (MAIDSTONE),id:14526935  ,   3.00
Department of Health,Guys and St Thomas NHS Foundation Trust,26/11/2021,(81100) Dressings,(id:42465) Surgery,NHS SUPPLY CHAIN (MAIDSTONE),id:14577034, 148.45
Department of Health,Guys and St Thomas NHS Foundation Trust,05/11/2021,(81000) Surgical Appliances,(id:42465) Surgery,TALAR MADE ORTHOTICS LTD,id:14592642    , 114.00
Department of Health,Guys and St Thomas NHS Foundation Trust,05/11/2021,(81700) Lab Equipment Purchase,(id:42465) Surgery,NHS SUPPLY CHAIN (MAIDSTONE),id:14526935  ,  14.35
Department of Health,Guys and St Thomas NHS Foundation Trust,05/11/2021,(82600) Uniforms & Clothing,(id:42463) Surgery,NHS SUPPLY CHAIN (MAIDSTONE),id:14526935,   5.76
Department of Health,Guys and St Thomas NHS Foundation Trust,12/11/2021,(81200) Medical Surgical Supplies & Equipment,(id:42463) Surgery,BONESUPPORT AB,id:14594519 ,3912.00
Department of Health,Guys and St Thomas NHS Foundation Trust,05/11/2021,(81000) Surgical Appliances,(id:42461) Surgery,TALAR MADE ORTHOTICS LTD,id:14592701    ,   6.00
Department of Health,Guys and St Thomas NHS Foundation Trust,05/11/2021,(81000) Surgical Appliances,(id:42461) Surgery,TALAR MADE ORTHOTICS LTD,id:14592575    , 246.90
Department of Health,Guys and St Thomas NHS Foundation Trust,12/11/2021,(81200) Medical Surgical Supplies & Equipment,(id:42458) Surgery,NHS SUPPLY CHAIN (MAIDSTONE),id:14555946  ,1310.51
Department of Health,Guys and St Thomas NHS Foundation Trust,17/11/2021,(81200) Medical Surgical Supplies & Equipment,(id:42458) Surgery,NHS SUPPLY CHAIN (MAIDSTONE),id:14617322  , 314.28
Department of Health,Guys and St Thomas NHS Foundation Trust,26/11/2021,(81225) Medical Surgical Supplies & Equipment,(id:42458) Surgery,NHS SUPPLY CHAIN (MAIDSTONE),id:14577034  , 212.08
Department of Health,Guys and St Thomas NHS Foundation Trust,26/11/2021,(81255) Medical Surgical Supplies & Equipment,(id:42458) Surgery,NHS SUPPLY CHAIN (MAIDSTONE),id:14593975  ,   4.32
Department of Health,Guys and St Thomas NHS Foundation Trust,12/11/2021,(82700) Uniforms & Clothing,(id:42279) Cancer Supportive Services and R&D,NHS SUPPLY CHAIN (MAIDSTONE),id:14555946   , 317.81
Department of Health,Guys and St Thomas NHS Foundation Trust,26/11/2021,(83410) Office Equipment,(id:630419) Cancer Supportive Services and R&D,RICOH UK LTD,id:14642828 , 333.29
Department of Health,Guys and St Thomas NHS Foundation Trust,26/11/2021,(82800) Bedding & Linen,(id:42276) Haematology Cellular Pathology and Supporting Services,NHS SUPPLY CHAIN (MAIDSTONE),id:14577034  ,  20.10
Department of Health,Guys and St Thomas NHS Foundation Trust,12/11/2021,(83410) Office Equipment,(id:42276) Haematology Cellular Pathology and Supporting Services,RICOH UK LTD,id:14546704  , 229.58
Department of Health,Guys and St Thomas NHS Foundation Trust,05/11/2021,(83400) Office Equipment,(id:2169419) Haematology Cellular Pathology and Supporting Services,NHS SUPPLY CHAIN (MAIDSTONE),id:14526935    , 199.12
Department of Health,Guys and St Thomas NHS Foundation Trust,17/11/2021,(81200) Medical Surgical Supplies & Equipment,(id:42270) Haematology Cellular Pathology and Supporting Services,NHS SUPPLY CHAIN (MAIDSTONE),id:14617322,1341.28
Department of Health,Guys and St Thomas NHS Foundation Trust,17/11/2021,(82600) Uniforms & Clothing,(id:42270) Haematology Cellular Pathology and Supporting Services,NHS SUPPLY CHAIN (MAIDSTONE),id:14617322   ,  29.47
Department of Health,Guys and St Thomas NHS Foundation Trust,26/11/2021,(84500) Establishment,(id:42267) Haematology Cellular Pathology and Supporting Services,CDP  PRINT MANAGEMENT,id:14642454 ,   3.10
Department of Health,Guys and St Thomas NHS Foundation Trust,26/11/2021,(83410) Office Equipment,(id:42267) Haematology Cellular Pathology and Supporting Services,RICOH UK LTD,id:14642827  , 400.34
Department of Health,Guys and St Thomas NHS Foundation Trust,05/11/2021,(81000) Surgical Appliances,(id:42267) Haematology Cellular Pathology and Supporting Services,TALAR MADE ORTHOTICS LTD,id:14592655  ,  46.03
Department of Health,Guys and St Thomas NHS Foundation Trust,26/11/2021,(82700) Uniforms & Clothing,(id:42265) Haematology Cellular Pathology and Supporting Services,NHS SUPPLY CHAIN (MAIDSTONE),id:14593975   ,  63.36
Department of Health,Guys and St Thomas NHS Foundation Trust,05/11/2021,(82800) Bedding & Linen,(id:42265) Haematology Cellular Pathology and Supporting Services,NHS SUPPLY CHAIN (MAIDSTONE),id:14526935  , 122.38
Department of Health,Guys and St Thomas NHS Foundation Trust,12/11/2021,(81100) Dressings,(id:42265) Haematology Cellular Pathology and Supporting Services,NHS SUPPLY CHAIN (MAIDSTONE),id:14555946   , 123.75
Department of Health,Guys and St Thomas NHS Foundation Trust,17/11/2021,(81100) Dressings,(id:42265) Haematology Cellular Pathology and Supporting Services,NHS SUPPLY CHAIN (MAIDSTONE),id:14617322   , 489.67
Department of Health,Guys and St Thomas NHS Foundation Trust,05/11/2021,(50522) Unqualified Nursing Staff,(id:42265) Haematology Cellular Pathology and Supporting Services,MSI GROUP LTD,id:14598157  ,1646.83
Department of Health,Guys and St Thomas NHS Foundation Trust,26/11/2021,(83400) Office Equipment,(id:42265) Haematology Cellular Pathology and Supporting Services,NHS SUPPLY CHAIN (MAIDSTONE),id:14593975 ,  86.45
Department of Health,Guys and St Thomas NHS Foundation Trust,05/11/2021,(81225) Medical Surgical Supplies & Equipment,(id:42265) Haematology Cellular Pathology and Supporting Services,NHS SUPPLY CHAIN (MAIDSTONE),id:14526935,   9.00
Department of Health,Guys and St Thomas NHS Foundation Trust,17/11/2021,(81700) Lab Equipment Purchase,(id:42265) Haematology Cellular Pathology and Supporting Services,NHS SUPPLY CHAIN (MAIDSTONE),id:14617322,  22.58
Department of Health,Guys and St Thomas NHS Foundation Trust,26/11/2021,(81255) Medical Surgical Supplies & Equipment,(id:42265) Haematology Cellular Pathology and Supporting Services,NHS SUPPLY CHAIN (MAIDSTONE),id:14593975,  12.19
Department of Health,Guys and St Thomas NHS Foundation Trust,12/11/2021,(83400) Office Equipment,(id:42272) Haematology Cellular Pathology and Supporting Services,NHS SUPPLY CHAIN (MAIDSTONE),id:14555946 ,  14.08
Department of Health,Guys and St Thomas NHS Foundation Trust,12/11/2021,(81100) Dressings,(id:42272) Haematology Cellular Pathology and Supporting Services,NHS SUPPLY CHAIN (MAIDSTONE),id:14555946   ,  12.58
Department of Health,Guys and St Thomas NHS Foundation Trust,17/11/2021,(81275) Medical Surgical Supplies & Equipment,(id:42272) Haematology Cellular Pathology and Supporting Services,NHS SUPPLY CHAIN (MAIDSTONE),id:14617322,  24.60
Department of Health,Guys and St Thomas NHS Foundation Trust,19/11/2021,(80205) Drug Costs,(id:42273) Haematology Cellular Pathology and Supporting Services,HEALTHCARE AT HOME LTD,id:14633695   ,    -4800.00
Department of Health,Guys and St Thomas NHS Foundation Trust,19/11/2021,(80205) Drug Costs,(id:42273) Haematology Cellular Pathology and Supporting Services,ALCURA UK LIMITED,id:14649317   ,2750.00
Department of Health,Guys and St Thomas NHS Foundation Trust,19/11/2021,(80205) Drug Costs,(id:42273) Haematology Cellular Pathology and Supporting Services,HEALTHCARE AT HOME LTD,id:14633674   ,4450.17
Department of Health,Guys and St Thomas NHS Foundation Trust,19/11/2021,(80205) Drug Costs,(id:42273) Haematology Cellular Pathology and Supporting Services,HEALTHCARE AT HOME LTD,id:14633476   ,4630.17
Department of Health,Guys and St Thomas NHS Foundation Trust,19/11/2021,(80205) Drug Costs,(id:42273) Haematology Cellular Pathology and Supporting Services,HEALTHCARE AT HOME LTD,id:14637159   ,6490.17
Department of Health,Guys and St Thomas NHS Foundation Trust,26/11/2021,(80205) Drug Costs,(id:42273) Haematology Cellular Pathology and Supporting Services,HEALTHCARE AT HOME LTD,id:14658259   ,4105.17
Department of Health,Guys and St Thomas NHS Foundation Trust,26/11/2021,(80205) Drug Costs,(id:42273) Haematology Cellular Pathology and Supporting Services,HEALTHCARE AT HOME LTD,id:14658923   ,4330.17
Department of Health,Guys and St Thomas NHS Foundation Trust,26/11/2021,(80205) Drug Costs,(id:42273) Haematology Cellular Pathology and Supporting Services,HEALTHCARE AT HOME LTD,id:14658272   ,4900.17
Department of Health,Guys and St Thomas NHS Foundation Trust,26/11/2021,(80205) Drug Costs,(id:42273) Haematology Cellular Pathology and Supporting Services,HEALTHCARE AT HOME LTD,id:14659002   ,4930.17
Department of Health,Guys and St Thomas NHS Foundation Trust,26/11/2021,(80205) Drug Costs,(id:42273) Haematology Cellular Pathology and Supporting Services,HEALTHCARE AT HOME LTD,id:14659314   ,1551.37
Department of Health,Guys and St Thomas NHS Foundation Trust,26/11/2021,(80205) Drug Costs,(id:42273) Haematology Cellular Pathology and Supporting Services,HEALTHCARE AT HOME LTD,id:14658554   ,1680.57
Department of Health,Guys and St Thomas NHS Foundation Trust,26/11/2021,(80205) Drug Costs,(id:42273) Haematology Cellular Pathology and Supporting Services,HEALTHCARE AT HOME LTD,id:14658293   ,2197.37
Department of Health,Guys and St Thomas NHS Foundation Trust,26/11/2021,(80205) Drug Costs,(id:42273) Haematology Cellular Pathology and Supporting Services,HEALTHCARE AT HOME LTD,id:14659344   ,2455.77
Department of Health,Guys and St Thomas NHS Foundation Trust,26/11/2021,(80205) Drug Costs,(id:42273) Haematology Cellular Pathology and Supporting Services,HEALTHCARE AT HOME LTD,id:14659094   ,3130.17
Department of Health,Guys and St Thomas NHS Foundation Trust,26/11/2021,(80205) Drug Costs,(id:42273) Haematology Cellular Pathology and Supporting Services,HEALTHCARE AT HOME LTD,id:14658379   ,5098.92
Department of Health,Guys and St Thomas NHS Foundation Trust,26/11/2021,(80205) Drug Costs,(id:42273) Haematology Cellular Pathology and Supporting Services,HEALTHCARE AT HOME LTD,id:14658634   ,5130.17
Department of Health,Guys and St Thomas NHS Foundation Trust,26/11/2021,(80205) Drug Costs,(id:42273) Haematology Cellular Pathology and Supporting Services,HEALTHCARE AT HOME LTD,id:14658375   ,5570.17
Department of Health,Guys and St Thomas NHS Foundation Trust,26/11/2021,(80205) Drug Costs,(id:42273) Haematology Cellular Pathology and Supporting Services,HEALTHCARE AT HOME LTD,id:14658296   ,5890.17
Department of Health,Guys and St Thomas NHS Foundation Trust,26/11/2021,(80205) Drug Costs,(id:42273) Haematology Cellular Pathology and Supporting Services,HEALTHCARE AT HOME LTD,id:14659014   ,5890.17
Department of Health,Guys and St Thomas NHS Foundation Trust,26/11/2021,(80205) Drug Costs,(id:42273) Haematology Cellular Pathology and Supporting Services,HEALTHCARE AT HOME LTD,id:14658927   ,6089.50
Department of Health,Guys and St Thomas NHS Foundation Trust,26/11/2021,(80205) Drug Costs,(id:42273) Haematology Cellular Pathology and Supporting Services,HEALTHCARE AT HOME LTD,id:14658904   ,6530.17
Department of Health,Guys and St Thomas NHS Foundation Trust,26/11/2021,(80205) Drug Costs,(id:42273) Haematology Cellular Pathology and Supporting Services,HEALTHCARE AT HOME LTD,id:14658654   ,6530.17
Department of Health,Guys and St Thomas NHS Foundation Trust,26/11/2021,(80205) Drug Costs,(id:42273) Haematology Cellular Pathology and Supporting Services,HEALTHCARE AT HOME LTD,id:14658694   ,7630.17
Department of Health,Guys and St Thomas NHS Foundation Trust,26/11/2021,(80205) Drug Costs,(id:42273) Haematology Cellular Pathology and Supporting Services,HEALTHCARE AT HOME LTD,id:14658997   ,8744.14
Department of Health,Guys and St Thomas NHS Foundation Trust,26/11/2021,(80205) Drug Costs,(id:42273) Haematology Cellular Pathology and Supporting Services,HEALTHCARE AT HOME LTD,id:14658305   ,    15080.17
Department of Health,Guys and St Thomas NHS Foundation Trust,26/11/2021,(80205) Drug Costs,(id:42273) Haematology Cellular Pathology and Supporting Services,HEALTHCARE AT HOME LTD,id:14659774   ,    38770.17
Department of Health,Guys and St Thomas NHS Foundation Trust,26/11/2021,(80205) Drug Costs,(id:42273) Haematology Cellular Pathology and Supporting Services,HEALTHCARE AT HOME LTD,id:14658268   ,    72510.17
Department of Health,Guys and St Thomas NHS Foundation Trust,05/11/2021,(80205) Drug Costs,(id:42273) Haematology Cellular Pathology and Supporting Services,HEALTHCARE AT HOME LTD,id:14587618   ,2197.37
Department of Health,Guys and St Thomas NHS Foundation Trust,05/11/2021,(80205) Drug Costs,(id:42273) Haematology Cellular Pathology and Supporting Services,HEALTHCARE AT HOME LTD,id:14587409   ,3330.17
Department of Health,Guys and St Thomas NHS Foundation Trust,05/11/2021,(80205) Drug Costs,(id:42273) Haematology Cellular Pathology and Supporting Services,HEALTHCARE AT HOME LTD,id:14587654   ,4450.17
Department of Health,Guys and St Thomas NHS Foundation Trust,05/11/2021,(80205) Drug Costs,(id:42273) Haematology Cellular Pathology and Supporting Services,HEALTHCARE AT HOME LTD,id:14587637   ,9505.17
Department of Health,Guys and St Thomas NHS Foundation Trust,12/11/2021,(89000) Other - Training courses and conferences,(id:202405) Haematology Cellular Pathology and Supporting Services,POSTURITE (UK) LTD,id:14623637 , 778.95
Department of Health,Guys and St Thomas NHS Foundation Trust,26/11/2021,(83410) Office Equipment,(id:42130) Haematology Cellular Pathology and Supporting Services,RICOH UK LTD,id:14642827  , 166.10
Department of Health,Guys and St Thomas NHS Foundation Trust,26/11/2021,(83410) Office Equipment,(id:42128) Haematology Cellular Pathology and Supporting Services,RICOH UK LTD,id:14642828  , 210.57
Department of Health,Guys and St Thomas NHS Foundation Trust,12/11/2021,(81200) Medical Surgical Supplies & Equipment,(id:42128) Haematology Cellular Pathology and Supporting Services,CHEMSOL LIMITED,id:14576787   ,  36.00
Department of Health,Guys and St Thomas NHS Foundation Trust,17/11/2021,(81275) Medical Surgical Supplies & Equipment,(id:42128) Haematology Cellular Pathology and Supporting Services,NHS SUPPLY CHAIN (MAIDSTONE),id:14617322,   5.34
Department of Health,Guys and St Thomas NHS Foundation Trust,26/11/2021,(84500) Establishment,(id:688419) Haematology Cellular Pathology and Supporting Services,CDP  PRINT MANAGEMENT,id:14642475,   9.30
Department of Health,Guys and St Thomas NHS Foundation Trust,19/11/2021,(50200) Consultants,(id:4060419) Oncology Services,KINGS COLLEGE LONDON:03529700,id:14634708,4336.20
Department of Health,Guys and St Thomas NHS Foundation Trust,26/11/2021,(84500) Establishment,(id:42258) Oncology Services,CDP  PRINT MANAGEMENT,id:14642454   ,  10.30
Department of Health,Guys and St Thomas NHS Foundation Trust,05/11/2021,(82800) Bedding & Linen,(id:42258) Oncology Services,NHS SUPPLY CHAIN (MAIDSTONE),id:14526935    ,  40.20
Department of Health,Guys and St Thomas NHS Foundation Trust,12/11/2021,(81200) Medical Surgical Supplies & Equipment,(id:42258) Oncology Services,NHS SUPPLY CHAIN (MAIDSTONE),id:14555946  , 308.74
Department of Health,Guys and St Thomas NHS Foundation Trust,26/11/2021,(81200) Medical Surgical Supplies & Equipment,(id:42258) Oncology Services,NHS SUPPLY CHAIN (MAIDSTONE),id:14577034  ,  50.66
Department of Health,Guys and St Thomas NHS Foundation Trust,26/11/2021,(89120) Other - Legal fees,(id:42258) Oncology Services,BDA (INITIATIVES) LIMITED,id:14652854    , 540.00
Department of Health,Guys and St Thomas NHS Foundation Trust,12/11/2021,(81500) X Ray Equipment Purchase,(id:42258) Oncology Services,BXTACCELYON LIMITED,id:14575325    ,1530.00
Department of Health,Guys and St Thomas NHS Foundation Trust,12/11/2021,(82000) Provisions & Kitchens,(id:42258) Oncology Services,NHS SUPPLY CHAIN (MAIDSTONE),id:14555946   ,  29.10
Department of Health,Guys and St Thomas NHS Foundation Trust,19/11/2021,(50200) Consultants,(id:42257) Oncology Services,KINGS COLLEGE LONDON:03529700,id:14634708  ,    24428.07
Department of Health,Guys and St Thomas NHS Foundation Trust,05/11/2021,(89595) Non-Healthcare from Foundation Trusts,(id:42261) Oncology Services,KING'S COLLEGE HOSPITAL NHS FOUNDATION TRUST,id:14552454 ,    91574.00
Department of Health,Guys and St Thomas NHS Foundation Trust,26/11/2021,(81200) Medical Surgical Supplies & Equipment,(id:3742419) Oncology Services,NHS SUPPLY CHAIN (MAIDSTONE),id:14593975, 248.04
Department of Health,Guys and St Thomas NHS Foundation Trust,26/11/2021,(82800) Bedding & Linen,(id:42260) Oncology Services,NHS SUPPLY CHAIN (MAIDSTONE),id:14577034    , 358.11
Department of Health,Guys and St Thomas NHS Foundation Trust,17/11/2021,(81275) Medical Surgical Supplies & Equipment,(id:42260) Oncology Services,NHS SUPPLY CHAIN (MAIDSTONE),id:14617322  ,  14.46
Department of Health,Guys and St Thomas NHS Foundation Trust,26/11/2021,(81275) Medical Surgical Supplies & Equipment,(id:42260) Oncology Services,NHS SUPPLY CHAIN (MAIDSTONE),id:14577034  ,  14.46
Department of Health,Guys and St Thomas NHS Foundation Trust,05/11/2021,(82000) Provisions & Kitchens,(id:42260) Oncology Services,NHS SUPPLY CHAIN (MAIDSTONE),id:14526935   ,  26.71
Department of Health,Guys and St Thomas NHS Foundation Trust,05/11/2021,(81100) Dressings,(id:42260) Oncology Services,ROCIALLE MEDICAL LTD,id:14248467   ,1197.30
Department of Health,Guys and St Thomas NHS Foundation Trust,26/11/2021,(82000) Provisions & Kitchens,(id:42259) Oncology Services,NHS SUPPLY CHAIN (MAIDSTONE),id:14577034   , 397.82
Department of Health,Guys and St Thomas NHS Foundation Trust,05/11/2021,(82600) Uniforms & Clothing,(id:42259) Oncology Services,NHS SUPPLY CHAIN (MAIDSTONE),id:14526935,  71.58
Department of Health,Guys and St Thomas NHS Foundation Trust,26/11/2021,(82600) Uniforms & Clothing,(id:42259) Oncology Services,NHS SUPPLY CHAIN (MAIDSTONE),id:14593975,  12.64
Department of Health,Guys and St Thomas NHS Foundation Trust,26/11/2021,(84500) Establishment,(id:42259) Oncology Services,CDP  PRINT MANAGEMENT,id:14642474   ,  27.90
Department of Health,Guys and St Thomas NHS Foundation Trust,05/11/2021,(81100) Dressings,(id:42259) Oncology Services,NHS SUPPLY CHAIN (MAIDSTONE),id:14526935, 425.95
Department of Health,Guys and St Thomas NHS Foundation Trust,26/11/2021,(81200) Medical Surgical Supplies & Equipment,(id:42259) Oncology Services,NHS SUPPLY CHAIN (MAIDSTONE),id:14593975  , 919.99
Department of Health,Guys and St Thomas NHS Foundation Trust,17/11/2021,(81275) Medical Surgical Supplies & Equipment,(id:42259) Oncology Services,NHS SUPPLY CHAIN (MAIDSTONE),id:14617322  , 706.02
Department of Health,Guys and St Thomas NHS Foundation Trust,19/11/2021,(50200) Consultants,(id:42280) Surgical Oncology,KINGS COLLEGE LONDON:03529700,id:14634708  ,    10517.51
Department of Health,Guys and St Thomas NHS Foundation Trust,05/11/2021,(82000) Provisions & Kitchens,(id:42280) Surgical Oncology,NHS SUPPLY CHAIN (MAIDSTONE),id:14526935   ,  15.60
Department of Health,Guys and St Thomas NHS Foundation Trust,26/11/2021,(81200) Medical Surgical Supplies & Equipment,(id:42280) Surgical Oncology,NHS SUPPLY CHAIN (MAIDSTONE),id:14577034  ,   1.74
Department of Health,Guys and St Thomas NHS Foundation Trust,05/11/2021,(81200) Medical Surgical Supplies & Equipment,(id:42280) Surgical Oncology,JOHNSON & JOHNSON MEDICAL LTD,id:14539285 , 841.70
Department of Health,Guys and St Thomas NHS Foundation Trust,19/11/2021,(81200) Medical Surgical Supplies & Equipment,(id:42280) Surgical Oncology,Q MEDICAL TECHNOLOGIES LTD,id:14619755    ,3106.80
Department of Health,Guys and St Thomas NHS Foundation Trust,19/11/2021,(81200) Medical Surgical Supplies & Equipment,(id:42280) Surgical Oncology,JOHNSON & JOHNSON MEDICAL LTD,id:14578693 , 933.76
Department of Health,Guys and St Thomas NHS Foundation Trust,26/11/2021,(83400) Office Equipment,(id:42280) Surgical Oncology,NHS SUPPLY CHAIN (MAIDSTONE),id:14593975   , 222.96
Department of Health,Guys and St Thomas NHS Foundation Trust,26/11/2021,(81700) Lab Equipment Purchase,(id:42280) Surgical Oncology,NHS SUPPLY CHAIN (MAIDSTONE),id:14593975  ,   9.67
Department of Health,Guys and St Thomas NHS Foundation Trust,05/11/2021,(82000) Provisions & Kitchens,(id:243406) Surgical Oncology,NHS SUPPLY CHAIN (MAIDSTONE),id:14526935  ,  57.21
Department of Health,Guys and St Thomas NHS Foundation Trust,12/11/2021,(50562) Qualified Nursing Staff,(id:243406) Surgical Oncology,UNITY HEALTHCARE RECRUITMENT LTD,id:14598193 , 452.52
Department of Health,Guys and St Thomas NHS Foundation Trust,26/11/2021,(50562) Qualified Nursing Staff,(id:243406) Surgical Oncology,UNITY HEALTHCARE RECRUITMENT LTD,id:14669492 , 452.52
Department of Health,Guys and St Thomas NHS Foundation Trust,26/11/2021,(50562) Qualified Nursing Staff,(id:243406) Surgical Oncology,UNITY HEALTHCARE RECRUITMENT LTD,id:14669491 , 485.72
Department of Health,Guys and St Thomas NHS Foundation Trust,19/11/2021,(50522) Unqualified Nursing Staff,(id:243406) Surgical Oncology,CONTINENTAL NURSE LTD,id:14646606, 204.49
Department of Health,Guys and St Thomas NHS Foundation Trust,26/11/2021,(84500) Establishment,(id:42474) Surgical Oncology,CDP  PRINT MANAGEMENT,id:14642434   ,  15.50
Department of Health,Guys and St Thomas NHS Foundation Trust,05/11/2021,(81200) Medical Surgical Supplies & Equipment,(id:42474) Surgical Oncology,LIDCO LTD,id:14542654 ,    25128.00
Department of Health,Guys and St Thomas NHS Foundation Trust,12/11/2021,(81200) Medical Surgical Supplies & Equipment,(id:42474) Surgical Oncology,MEDTRONIC LTD,id:14567590  ,1069.20
Department of Health,Guys and St Thomas NHS Foundation Trust,17/11/2021,(81200) Medical Surgical Supplies & Equipment,(id:42474) Surgical Oncology,NHS SUPPLY CHAIN (MAIDSTONE),id:14617322  , 159.42
Department of Health,Guys and St Thomas NHS Foundation Trust,26/11/2021,(81200) Medical Surgical Supplies & Equipment,(id:42474) Surgical Oncology,MEDTRONIC LTD,id:14500881  , 354.00
Department of Health,Guys and St Thomas NHS Foundation Trust,12/11/2021,(81100) Dressings,(id:42473) Surgical Oncology,BAXTER HEALTHCARE LTD,id:14613577  ,3760.20
Department of Health,Guys and St Thomas NHS Foundation Trust,05/11/2021,(81100) Dressings,(id:42473) Surgical Oncology,JEWEL MANAGEMENT LTD T/A GENERAL MEDICAL,id:14589495   , 527.94
Department of Health,Guys and St Thomas NHS Foundation Trust,12/11/2021,(81200) Medical Surgical Supplies & Equipment,(id:42473) Surgical Oncology,MERCIAN SURGICAL SUPPLY CO LTD,id:14582934, 804.00
Department of Health,Guys and St Thomas NHS Foundation Trust,12/11/2021,(81200) Medical Surgical Supplies & Equipment,(id:42473) Surgical Oncology,CCMED LTD,id:14584491 ,1719.00
Department of Health,Guys and St Thomas NHS Foundation Trust,12/11/2021,(81200) Medical Surgical Supplies & Equipment,(id:42473) Surgical Oncology,CCMED LTD,id:14602782 , 867.00
Department of Health,Guys and St Thomas NHS Foundation Trust,12/11/2021,(81200) Medical Surgical Supplies & Equipment,(id:42473) Surgical Oncology,MEDTRONIC LTD,id:14578730  , 619.20
Department of Health,Guys and St Thomas NHS Foundation Trust,12/11/2021,(81200) Medical Surgical Supplies & Equipment,(id:42473) Surgical Oncology,DELTA SURGICAL LTD,id:14583724  , 758.83
Department of Health,Guys and St Thomas NHS Foundation Trust,12/11/2021,(81200) Medical Surgical Supplies & Equipment,(id:42473) Surgical Oncology,SIGMACON (UK) LTD,id:14609934   ,4191.60
Department of Health,Guys and St Thomas NHS Foundation Trust,17/11/2021,(81200) Medical Surgical Supplies & Equipment,(id:42473) Surgical Oncology,NHS SUPPLY CHAIN (MAIDSTONE),id:14617322  , 662.40
Department of Health,Guys and St Thomas NHS Foundation Trust,26/11/2021,(81200) Medical Surgical Supplies & Equipment,(id:42473) Surgical Oncology,MEDTRONIC LTD,id:14600994  , 710.40
Department of Health,Guys and St Thomas NHS Foundation Trust,15/11/2021,(54052) Technical Officers,(id:42475) Surgical Oncology,PRICEWATERHOUSECOOPERS LLP,id:14635015   ,1622.82
Department of Health,Guys and St Thomas NHS Foundation Trust,19/11/2021,(81215) Medical Surgical Supplies & Equipment,(id:42475) Surgical Oncology,COCHLEAR EUROPE LTD,id:14580115 ,5394.00
Department of Health,Guys and St Thomas NHS Foundation Trust,19/11/2021,(81215) Medical Surgical Supplies & Equipment,(id:42475) Surgical Oncology,COCHLEAR EUROPE LTD,id:14633777 ,    19203.60
Department of Health,Guys and St Thomas NHS Foundation Trust,12/11/2021,(81215) Medical Surgical Supplies & Equipment,(id:42475) Surgical Oncology,ADVANCED BIONICS SARL (AND UK LTD),id:14606874 , 918.00
Department of Health,Guys and St Thomas NHS Foundation Trust,12/11/2021,(81215) Medical Surgical Supplies & Equipment,(id:42475) Surgical Oncology,COCHLEAR EUROPE LTD,id:14618802 ,5394.00
Department of Health,Guys and St Thomas NHS Foundation Trust,12/11/2021,(81215) Medical Surgical Supplies & Equipment,(id:42475) Surgical Oncology,COCHLEAR EUROPE LTD,id:14618806 ,5394.00
Department of Health,Guys and St Thomas NHS Foundation Trust,26/11/2021,(81215) Medical Surgical Supplies & Equipment,(id:42475) Surgical Oncology,ADVANCED BIONICS SARL (AND UK LTD),id:14649495 , 644.22
Department of Health,Guys and St Thomas NHS Foundation Trust,26/11/2021,(81215) Medical Surgical Supplies & Equipment,(id:42475) Surgical Oncology,COCHLEAR EUROPE LTD,id:14640117 ,7168.80
Department of Health,Guys and St Thomas NHS Foundation Trust,05/11/2021,(81215) Medical Surgical Supplies & Equipment,(id:42475) Surgical Oncology,NHS SUPPLY CHAIN (MAIDSTONE),id:14526935  ,    44478.11
Department of Health,Guys and St Thomas NHS Foundation Trust,12/11/2021,(81225) Medical Surgical Supplies & Equipment,(id:42475) Surgical Oncology,NHS SUPPLY CHAIN (MAIDSTONE),id:14555946  ,    13435.06
Department of Health,Guys and St Thomas NHS Foundation Trust,12/11/2021,(81225) Medical Surgical Supplies & Equipment,(id:42475) Surgical Oncology,COCHLEAR EUROPE LTD,id:14620484 ,1624.80
Department of Health,Guys and St Thomas NHS Foundation Trust,12/11/2021,(81225) Medical Surgical Supplies & Equipment,(id:42475) Surgical Oncology,NATUS NICOLET UK LTD ( T/A OTOMETRICS UK),id:14582733    ,1020.00
Department of Health,Guys and St Thomas NHS Foundation Trust,12/11/2021,(81225) Medical Surgical Supplies & Equipment,(id:42475) Surgical Oncology,NATUS NICOLET UK LTD ( T/A OTOMETRICS UK),id:14221455    ,1020.00
Department of Health,Guys and St Thomas NHS Foundation Trust,19/11/2021,(81225) Medical Surgical Supplies & Equipment,(id:42475) Surgical Oncology,COCHLEAR EUROPE LTD,id:14633779 , 535.20
Department of Health,Guys and St Thomas NHS Foundation Trust,26/11/2021,(81225) Medical Surgical Supplies & Equipment,(id:42475) Surgical Oncology,NHS SUPPLY CHAIN (MAIDSTONE),id:14593975  ,    28885.59
Department of Health,Guys and St Thomas NHS Foundation Trust,26/11/2021,(81225) Medical Surgical Supplies & Equipment,(id:42475) Surgical Oncology,OTICON LTD,id:14627594,    -2880.00
Department of Health,Guys and St Thomas NHS Foundation Trust,17/11/2021,(81225) Medical Surgical Supplies & Equipment,(id:42472) Surgical Oncology,NHS SUPPLY CHAIN (MAIDSTONE),id:14617322  ,5644.80
Department of Health,Guys and St Thomas NHS Foundation Trust,26/11/2021,(83500) Furniture & Fittings,(id:42286) Surgical Oncology,NHS SUPPLY CHAIN (MAIDSTONE),id:14577034    ,  37.30
Department of Health,Guys and St Thomas NHS Foundation Trust,26/11/2021,(81100) Dressings,(id:42286) Surgical Oncology,NHS SUPPLY CHAIN (MAIDSTONE),id:14577034, 167.30
Department of Health,Guys and St Thomas NHS Foundation Trust,05/11/2021,(81200) Medical Surgical Supplies & Equipment,(id:42286) Surgical Oncology,MEDTRONIC LTD,id:14554484  , 786.00
Department of Health,Guys and St Thomas NHS Foundation Trust,05/11/2021,(81200) Medical Surgical Supplies & Equipment,(id:42286) Surgical Oncology,Q MEDICAL TECHNOLOGIES LTD,id:14588154    ,2628.48
Department of Health,Guys and St Thomas NHS Foundation Trust,05/11/2021,(81200) Medical Surgical Supplies & Equipment,(id:42286) Surgical Oncology,Q MEDICAL TECHNOLOGIES LTD,id:14590006    ,2508.48
Department of Health,Guys and St Thomas NHS Foundation Trust,26/11/2021,(82000) Provisions & Kitchens,(id:42284) Surgical Oncology,NHS SUPPLY CHAIN (MAIDSTONE),id:14593975   , 145.39
Department of Health,Guys and St Thomas NHS Foundation Trust,19/11/2021,(83500) Furniture & Fittings,(id:42284) Surgical Oncology,TECHNIBLINDS LTD,id:14644156 , 500.40
Department of Health,Guys and St Thomas NHS Foundation Trust,12/11/2021,(82800) Bedding & Linen,(id:42284) Surgical Oncology,NHS SUPPLY CHAIN (MAIDSTONE),id:14555946    ,  77.56
Department of Health,Guys and St Thomas NHS Foundation Trust,26/11/2021,(84500) Establishment,(id:42284) Surgical Oncology,CDP  PRINT MANAGEMENT,id:14642454   ,  15.50
Department of Health,Guys and St Thomas NHS Foundation Trust,05/11/2021,(81100) Dressings,(id:42284) Surgical Oncology,NHS SUPPLY CHAIN (MAIDSTONE),id:14526935, 282.72
Department of Health,Guys and St Thomas NHS Foundation Trust,26/11/2021,(81200) Medical Surgical Supplies & Equipment,(id:42284) Surgical Oncology,NHS SUPPLY CHAIN (MAIDSTONE),id:14593975  , 804.68
Department of Health,Guys and St Thomas NHS Foundation Trust,26/11/2021,(83400) Office Equipment,(id:42284) Surgical Oncology,NHS SUPPLY CHAIN (MAIDSTONE),id:14593975   , 137.64
Department of Health,Guys and St Thomas NHS Foundation Trust,26/11/2021,(81275) Medical Surgical Supplies & Equipment,(id:42284) Surgical Oncology,NHS SUPPLY CHAIN (MAIDSTONE),id:14577034  ,  28.92
Department of Health,Guys and St Thomas NHS Foundation Trust,05/11/2021,(81275) Medical Surgical Supplies & Equipment,(id:42284) Surgical Oncology,NHS SUPPLY CHAIN (MAIDSTONE),id:14526935  ,  14.46
Department of Health,Guys and St Thomas NHS Foundation Trust,26/11/2021,(81700) Lab Equipment Purchase,(id:42284) Surgical Oncology,NHS SUPPLY CHAIN (MAIDSTONE),id:14577034  ,  46.10
Department of Health,Guys and St Thomas NHS Foundation Trust,26/11/2021,(81200) Medical Surgical Supplies & Equipment,(id:42471) Surgical Oncology,ATOS MEDICAL,id:14665674   , 838.18
Department of Health,Guys and St Thomas NHS Foundation Trust,26/11/2021,(82700) Uniforms & Clothing,(id:42470) Surgical Oncology,NHS SUPPLY CHAIN (MAIDSTONE),id:14593975,  31.68
Department of Health,Guys and St Thomas NHS Foundation Trust,17/11/2021,(82000) Provisions & Kitchens,(id:42470) Surgical Oncology,NHS SUPPLY CHAIN (MAIDSTONE),id:14617322   , 390.36
Department of Health,Guys and St Thomas NHS Foundation Trust,17/11/2021,(82800) Bedding & Linen,(id:42470) Surgical Oncology,NHS SUPPLY CHAIN (MAIDSTONE),id:14617322    , 272.02
Department of Health,Guys and St Thomas NHS Foundation Trust,05/11/2021,(81100) Dressings,(id:42470) Surgical Oncology,NHS SUPPLY CHAIN (MAIDSTONE),id:14526935, 400.83
Department of Health,Guys and St Thomas NHS Foundation Trust,26/11/2021,(83400) Office Equipment,(id:42470) Surgical Oncology,NHS SUPPLY CHAIN (MAIDSTONE),id:14577034   , 219.09
Department of Health,Guys and St Thomas NHS Foundation Trust,26/11/2021,(81275) Medical Surgical Supplies & Equipment,(id:42470) Surgical Oncology,NHS SUPPLY CHAIN (MAIDSTONE),id:14593975  ,  14.46
Department of Health,Guys and St Thomas NHS Foundation Trust,12/11/2021,(81200) Medical Surgical Supplies & Equipment,(id:42508) Surgical Oncology,NHS SUPPLY CHAIN (MAIDSTONE),id:14555946  ,  63.29
Department of Health,Guys and St Thomas NHS Foundation Trust,12/11/2021,(81225) Medical Surgical Supplies & Equipment,(id:2182419) Acute & General Medicine,NHS SUPPLY CHAIN (MAIDSTONE),id:14555946   ,  78.82
Department of Health,Guys and St Thomas NHS Foundation Trust,05/11/2021,(82700) Uniforms & Clothing,(id:2182419) Acute & General Medicine,NHS SUPPLY CHAIN (MAIDSTONE),id:14526935 , 174.80
Department of Health,Guys and St Thomas NHS Foundation Trust,05/11/2021,(81700) Lab Equipment Purchase,(id:2182419) Acute & General Medicine,NHS SUPPLY CHAIN (MAIDSTONE),id:14526935   ,  52.36
Department of Health,Guys and St Thomas NHS Foundation Trust,12/11/2021,(81275) Medical Surgical Supplies & Equipment,(id:2182419) Acute & General Medicine,NHS SUPPLY CHAIN (MAIDSTONE),id:14555946   ,  28.92
Department of Health,Guys and St Thomas NHS Foundation Trust,26/11/2021,(81255) Medical Surgical Supplies & Equipment,(id:2182419) Acute & General Medicine,NHS SUPPLY CHAIN (MAIDSTONE),id:14593975   ,  16.41
Department of Health,Guys and St Thomas NHS Foundation Trust,26/11/2021,(81200) Medical Surgical Supplies & Equipment,(id:2182419) Acute & General Medicine,NHS SUPPLY CHAIN (MAIDSTONE),id:14593975   ,1126.71
Department of Health,Guys and St Thomas NHS Foundation Trust,12/11/2021,(50522) Unqualified Nursing Staff,(id:2182419) Acute & General Medicine,CARE PROVIDERS HEALTHCARE,id:14629585   , 539.21
Department of Health,Guys and St Thomas NHS Foundation Trust,12/11/2021,(50522) Unqualified Nursing Staff,(id:2182419) Acute & General Medicine,GLOBE LOCUMS LTD,id:14623855  , 537.91
Department of Health,Guys and St Thomas NHS Foundation Trust,05/11/2021,(81100) Dressings,(id:2182419) Acute & General Medicine,NHS SUPPLY CHAIN (MAIDSTONE),id:14526935 , 429.55
Department of Health,Guys and St Thomas NHS Foundation Trust,26/11/2021,(84500) Establishment,(id:1307420) Acute & General Medicine,CDP  PRINT MANAGEMENT,id:14642474    ,   6.20
Department of Health,Guys and St Thomas NHS Foundation Trust,05/11/2021,(82000) Provisions & Kitchens,(id:41860) Acute & General Medicine,NHS SUPPLY CHAIN (MAIDSTONE),id:14526935 , 126.12
Department of Health,Guys and St Thomas NHS Foundation Trust,12/11/2021,(82000) Provisions & Kitchens,(id:41860) Acute & General Medicine,NHS SUPPLY CHAIN (MAIDSTONE),id:14555946 , 367.97
Department of Health,Guys and St Thomas NHS Foundation Trust,26/11/2021,(83400) Office Equipment,(id:41860) Acute & General Medicine,NHS SUPPLY CHAIN (MAIDSTONE),id:14593975 , 190.70
Department of Health,Guys and St Thomas NHS Foundation Trust,17/11/2021,(83400) Office Equipment,(id:41860) Acute & General Medicine,NHS SUPPLY CHAIN (MAIDSTONE),id:14617322 , 115.86
Department of Health,Guys and St Thomas NHS Foundation Trust,12/11/2021,(82800) Bedding & Linen,(id:41860) Acute & General Medicine,NHS SUPPLY CHAIN (MAIDSTONE),id:14555946  , 204.55
Department of Health,Guys and St Thomas NHS Foundation Trust,19/11/2021,(50552) Qualified Nursing Staff,(id:41860) Acute & General Medicine,CONTINENTAL NURSE LTD,id:14646665 ,2984.60
Department of Health,Guys and St Thomas NHS Foundation Trust,19/11/2021,(50552) Qualified Nursing Staff,(id:41860) Acute & General Medicine,GLOBE LOCUMS LTD,id:14646478 , 719.46
Department of Health,Guys and St Thomas NHS Foundation Trust,05/11/2021,(50522) Unqualified Nursing Staff,(id:41860) Acute & General Medicine,GLOBE LOCUMS LTD,id:14598238    , 222.60
Department of Health,Guys and St Thomas NHS Foundation Trust,26/11/2021,(50522) Unqualified Nursing Staff,(id:41860) Acute & General Medicine,GLOBE LOCUMS LTD,id:14669226    , 222.61
Department of Health,Guys and St Thomas NHS Foundation Trust,26/11/2021,(81200) Medical Surgical Supplies & Equipment,(id:41860) Acute & General Medicine,NHS SUPPLY CHAIN (MAIDSTONE),id:14577034, 586.22
Department of Health,Guys and St Thomas NHS Foundation Trust,17/11/2021,(81700) Lab Equipment Purchase,(id:41860) Acute & General Medicine,NHS SUPPLY CHAIN (MAIDSTONE),id:14617322,   3.10
Department of Health,Guys and St Thomas NHS Foundation Trust,26/11/2021,(82000) Provisions & Kitchens,(id:41859) Acute & General Medicine,NHS SUPPLY CHAIN (MAIDSTONE),id:14577034 , 280.03
Department of Health,Guys and St Thomas NHS Foundation Trust,26/11/2021,(82000) Provisions & Kitchens,(id:41859) Acute & General Medicine,NHS SUPPLY CHAIN (MAIDSTONE),id:14593975 ,  42.04
Department of Health,Guys and St Thomas NHS Foundation Trust,12/11/2021,(82000) Provisions & Kitchens,(id:41859) Acute & General Medicine,NHS SUPPLY CHAIN (MAIDSTONE),id:14555946 ,  72.34
Department of Health,Guys and St Thomas NHS Foundation Trust,26/11/2021,(83400) Office Equipment,(id:41859) Acute & General Medicine,NHS SUPPLY CHAIN (MAIDSTONE),id:14593975 , 124.45
Department of Health,Guys and St Thomas NHS Foundation Trust,17/11/2021,(82800) Bedding & Linen,(id:41859) Acute & General Medicine,NHS SUPPLY CHAIN (MAIDSTONE),id:14617322  ,  49.80
Department of Health,Guys and St Thomas NHS Foundation Trust,05/11/2021,(50552) Qualified Nursing Staff,(id:41859) Acute & General Medicine,CARE PROVIDERS HEALTHCARE,id:14602082  ,1663.15
Department of Health,Guys and St Thomas NHS Foundation Trust,26/11/2021,(50552) Qualified Nursing Staff,(id:41859) Acute & General Medicine,GENEVA HEALTH INTERNATIONAL LIMITED,id:14669395  , 699.33
Department of Health,Guys and St Thomas NHS Foundation Trust,26/11/2021,(83410) Office Equipment,(id:41859) Acute & General Medicine,RICOH UK LTD,id:14642828  ,  53.81
Department of Health,Guys and St Thomas NHS Foundation Trust,05/11/2021,(50522) Unqualified Nursing Staff,(id:41859) Acute & General Medicine,MSI GROUP LTD,id:14598080  , 233.85
Department of Health,Guys and St Thomas NHS Foundation Trust,05/11/2021,(50522) Unqualified Nursing Staff,(id:41859) Acute & General Medicine,CARE PROVIDERS HEALTHCARE,id:14598273, 616.40
Department of Health,Guys and St Thomas NHS Foundation Trust,26/11/2021,(83400) Office Equipment,(id:41858) Acute & General Medicine,NHS SUPPLY CHAIN (MAIDSTONE),id:14577034 ,  63.49
Department of Health,Guys and St Thomas NHS Foundation Trust,17/11/2021,(83400) Office Equipment,(id:41858) Acute & General Medicine,NHS SUPPLY CHAIN (MAIDSTONE),id:14617322 , 109.90
Department of Health,Guys and St Thomas NHS Foundation Trust,05/11/2021,(50552) Qualified Nursing Staff,(id:41858) Acute & General Medicine,CARE PROVIDERS HEALTHCARE,id:14597934  , 318.21
Department of Health,Guys and St Thomas NHS Foundation Trust,26/11/2021,(81225) Medical Surgical Supplies & Equipment,(id:41858) Acute & General Medicine,NHS SUPPLY CHAIN (MAIDSTONE),id:14593975,  28.98
Department of Health,Guys and St Thomas NHS Foundation Trust,26/11/2021,(81200) Medical Surgical Supplies & Equipment,(id:860419) Acute & General Medicine,NHS SUPPLY CHAIN (MAIDSTONE),id:14593975    , 661.73
Department of Health,Guys and St Thomas NHS Foundation Trust,12/11/2021,(81000) Surgical Appliances,(id:41872) Acute & General Medicine,TALAR MADE ORTHOTICS LTD,id:14617748  , 238.62
Department of Health,Guys and St Thomas NHS Foundation Trust,12/11/2021,(50522) Unqualified Nursing Staff,(id:41872) Acute & General Medicine,CARE PROVIDERS HEALTHCARE,id:14624001, 207.03
Department of Health,Guys and St Thomas NHS Foundation Trust,26/11/2021,(84500) Establishment,(id:41869) Acute & General Medicine,HEALTHROTA LTD,id:14621766   , 508.80
Department of Health,Guys and St Thomas NHS Foundation Trust,12/11/2021,(83400) Office Equipment,(id:41869) Acute & General Medicine,NHS SUPPLY CHAIN (MAIDSTONE),id:14555946 , 120.85
Department of Health,Guys and St Thomas NHS Foundation Trust,19/11/2021,(83400) Office Equipment,(id:41869) Acute & General Medicine,M P D (UK SALES) LTD,id:14619294    , 647.99
Department of Health,Guys and St Thomas NHS Foundation Trust,19/11/2021,(83610) IT Costs,(id:41869) Acute & General Medicine,COMPUTACENTER UK LTD,id:14455514  ,2040.00
Department of Health,Guys and St Thomas NHS Foundation Trust,05/11/2021,(81200) Medical Surgical Supplies & Equipment,(id:41869) Acute & General Medicine,PROTECH MEDICAL LTD,id:14594522    , 620.78
Department of Health,Guys and St Thomas NHS Foundation Trust,26/11/2021,(83410) Office Equipment,(id:41869) Acute & General Medicine,RICOH UK LTD,id:14642827  ,1557.04
Department of Health,Guys and St Thomas NHS Foundation Trust,19/11/2021,(86300) Healthcare from non-NHS bodies,(id:41869) Acute & General Medicine,SELDOC LTD,id:14632154,    23962.00
Department of Health,Guys and St Thomas NHS Foundation Trust,26/11/2021,(81700) Lab Equipment Purchase,(id:41869) Acute & General Medicine,NHS SUPPLY CHAIN (MAIDSTONE),id:14593975,  43.88
Department of Health,Guys and St Thomas NHS Foundation Trust,17/11/2021,(81700) Lab Equipment Purchase,(id:41869) Acute & General Medicine,NHS SUPPLY CHAIN (MAIDSTONE),id:14617322, 118.30
Department of Health,Guys and St Thomas NHS Foundation Trust,12/11/2021,(82800) Bedding & Linen,(id:41868) Acute & General Medicine,NHS SUPPLY CHAIN (MAIDSTONE),id:14555946  ,  95.28
Department of Health,Guys and St Thomas NHS Foundation Trust,12/11/2021,(81100) Dressings,(id:41868) Acute & General Medicine,NHS SUPPLY CHAIN (MAIDSTONE),id:14555946   ,  40.88
Department of Health,Guys and St Thomas NHS Foundation Trust,12/11/2021,(82700) Uniforms & Clothing,(id:41868) Acute & General Medicine,NHS SUPPLY CHAIN (MAIDSTONE),id:14555946   ,  31.68
Department of Health,Guys and St Thomas NHS Foundation Trust,26/11/2021,(82700) Uniforms & Clothing,(id:41868) Acute & General Medicine,NHS SUPPLY CHAIN (MAIDSTONE),id:14593975   ,  31.68
Department of Health,Guys and St Thomas NHS Foundation Trust,26/11/2021,(82000) Provisions & Kitchens,(id:41868) Acute & General Medicine,NHS SUPPLY CHAIN (MAIDSTONE),id:14577034 ,   8.12
Department of Health,Guys and St Thomas NHS Foundation Trust,26/11/2021,(82000) Provisions & Kitchens,(id:41868) Acute & General Medicine,NHS SUPPLY CHAIN (MAIDSTONE),id:14593975 , 313.87
Department of Health,Guys and St Thomas NHS Foundation Trust,12/11/2021,(83400) Office Equipment,(id:41868) Acute & General Medicine,NHS SUPPLY CHAIN (MAIDSTONE),id:14555946 ,  40.20
Department of Health,Guys and St Thomas NHS Foundation Trust,05/11/2021,(81225) Medical Surgical Supplies & Equipment,(id:41868) Acute & General Medicine,NHS SUPPLY CHAIN (MAIDSTONE),id:14526935, 118.80
Department of Health,Guys and St Thomas NHS Foundation Trust,17/11/2021,(81700) Lab Equipment Purchase,(id:41868) Acute & General Medicine,NHS SUPPLY CHAIN (MAIDSTONE),id:14617322,  18.58
Department of Health,Guys and St Thomas NHS Foundation Trust,12/11/2021,(82000) Provisions & Kitchens,(id:41882) Acute & General Medicine,NHS SUPPLY CHAIN (MAIDSTONE),id:14555946 ,   1.14
Department of Health,Guys and St Thomas NHS Foundation Trust,17/11/2021,(83400) Office Equipment,(id:41882) Acute & General Medicine,NHS SUPPLY CHAIN (MAIDSTONE),id:14617322 ,  18.18
Department of Health,Guys and St Thomas NHS Foundation Trust,26/11/2021,(84500) Establishment,(id:41880) Acute & General Medicine,NHS SUPPLY CHAIN (MAIDSTONE),id:14593975    ,   8.64
Department of Health,Guys and St Thomas NHS Foundation Trust,26/11/2021,(84500) Establishment,(id:41880) Acute & General Medicine,CDP  PRINT MANAGEMENT,id:14642454 ,  71.30
Department of Health,Guys and St Thomas NHS Foundation Trust,26/11/2021,(81200) Medical Surgical Supplies & Equipment,(id:41880) Acute & General Medicine,NHS SUPPLY CHAIN (MAIDSTONE),id:14593975, 693.51
Department of Health,Guys and St Thomas NHS Foundation Trust,26/11/2021,(81225) Medical Surgical Supplies & Equipment,(id:41880) Acute & General Medicine,NHS SUPPLY CHAIN (MAIDSTONE),id:14593975,  20.93
Department of Health,Guys and St Thomas NHS Foundation Trust,05/11/2021,(50522) Unqualified Nursing Staff,(id:41880) Acute & General Medicine,MSI GROUP LTD,id:14598302  , 258.37
Department of Health,Guys and St Thomas NHS Foundation Trust,05/11/2021,(50522) Unqualified Nursing Staff,(id:41880) Acute & General Medicine,GLOBE LOCUMS LTD,id:14598239    , 308.20
Department of Health,Guys and St Thomas NHS Foundation Trust,05/11/2021,(50522) Unqualified Nursing Staff,(id:41880) Acute & General Medicine,MSI GROUP LTD,id:14598080  , 233.86
Department of Health,Guys and St Thomas NHS Foundation Trust,26/11/2021,(50522) Unqualified Nursing Staff,(id:41880) Acute & General Medicine,MSI GROUP LTD,id:14669243  , 258.37
Department of Health,Guys and St Thomas NHS Foundation Trust,26/11/2021,(50522) Unqualified Nursing Staff,(id:41880) Acute & General Medicine,MSI GROUP LTD,id:14669097  , 530.38
Department of Health,Guys and St Thomas NHS Foundation Trust,05/11/2021,(82000) Provisions & Kitchens,(id:41879) Acute & General Medicine,NHS SUPPLY CHAIN (MAIDSTONE),id:14526935 ,  55.56
Department of Health,Guys and St Thomas NHS Foundation Trust,26/11/2021,(82800) Bedding & Linen,(id:41879) Acute & General Medicine,NHS SUPPLY CHAIN (MAIDSTONE),id:14577034  ,  67.29
Department of Health,Guys and St Thomas NHS Foundation Trust,19/11/2021,(50522) Unqualified Nursing Staff,(id:41879) Acute & General Medicine,MSI GROUP LTD,id:14646419  , 277.09
Department of Health,Guys and St Thomas NHS Foundation Trust,26/11/2021,(50522) Unqualified Nursing Staff,(id:41879) Acute & General Medicine,CARE PROVIDERS HEALTHCARE,id:14670898, 616.40
Department of Health,Guys and St Thomas NHS Foundation Trust,26/11/2021,(82800) Bedding & Linen,(id:41878) Acute & General Medicine,NHS SUPPLY CHAIN (MAIDSTONE),id:14577034  , 135.99
Department of Health,Guys and St Thomas NHS Foundation Trust,12/11/2021,(81100) Dressings,(id:41878) Acute & General Medicine,NHS SUPPLY CHAIN (MAIDSTONE),id:14555946   , 227.22
Department of Health,Guys and St Thomas NHS Foundation Trust,05/11/2021,(50522) Unqualified Nursing Staff,(id:41878) Acute & General Medicine,GLOBE LOCUMS LTD,id:14597951    , 277.16
Department of Health,Guys and St Thomas NHS Foundation Trust,19/11/2021,(50522) Unqualified Nursing Staff,(id:41878) Acute & General Medicine,MSI GROUP LTD,id:14646529  , 299.14
Department of Health,Guys and St Thomas NHS Foundation Trust,26/11/2021,(50522) Unqualified Nursing Staff,(id:41878) Acute & General Medicine,CARE PROVIDERS HEALTHCARE,id:14670870, 516.74
Department of Health,Guys and St Thomas NHS Foundation Trust,26/11/2021,(50522) Unqualified Nursing Staff,(id:41878) Acute & General Medicine,MSI GROUP LTD,id:14668972  , 347.45
Department of Health,Guys and St Thomas NHS Foundation Trust,12/11/2021,(50522) Unqualified Nursing Staff,(id:41878) Acute & General Medicine,MSI GROUP LTD,id:14623832  , 308.69
Department of Health,Guys and St Thomas NHS Foundation Trust,05/11/2021,(81000) Surgical Appliances,(id:41876) Acute & General Medicine,TALAR MADE ORTHOTICS LTD,id:14592497  ,  46.50
Department of Health,Guys and St Thomas NHS Foundation Trust,05/11/2021,(82700) Uniforms & Clothing,(id:41881) Acute & General Medicine,NHS SUPPLY CHAIN (MAIDSTONE),id:14526935   ,  56.26
Department of Health,Guys and St Thomas NHS Foundation Trust,17/11/2021,(82000) Provisions & Kitchens,(id:41881) Acute & General Medicine,NHS SUPPLY CHAIN (MAIDSTONE),id:14617322 ,  18.44
Department of Health,Guys and St Thomas NHS Foundation Trust,05/11/2021,(82000) Provisions & Kitchens,(id:41881) Acute & General Medicine,NHS SUPPLY CHAIN (MAIDSTONE),id:14526935 ,  62.40
Department of Health,Guys and St Thomas NHS Foundation Trust,26/11/2021,(82800) Bedding & Linen,(id:41881) Acute & General Medicine,NHS SUPPLY CHAIN (MAIDSTONE),id:14593975  , 243.52
Department of Health,Guys and St Thomas NHS Foundation Trust,17/11/2021,(81100) Dressings,(id:41881) Acute & General Medicine,NHS SUPPLY CHAIN (MAIDSTONE),id:14617322   , 214.17
Department of Health,Guys and St Thomas NHS Foundation Trust,26/11/2021,(50522) Unqualified Nursing Staff,(id:41881) Acute & General Medicine,MSI GROUP LTD,id:14669313  , 200.10
Department of Health,Guys and St Thomas NHS Foundation Trust,26/11/2021,(50522) Unqualified Nursing Staff,(id:41881) Acute & General Medicine,MSI GROUP LTD,id:14669040  , 265.02
Department of Health,Guys and St Thomas NHS Foundation Trust,12/11/2021,(50522) Unqualified Nursing Staff,(id:41881) Acute & General Medicine,MSI GROUP LTD,id:14624125  , 467.71
Department of Health,Guys and St Thomas NHS Foundation Trust,12/11/2021,(50522) Unqualified Nursing Staff,(id:41881) Acute & General Medicine,CARE PROVIDERS HEALTHCARE,id:14629615, 273.47
Department of Health,Guys and St Thomas NHS Foundation Trust,05/11/2021,(81700) Lab Equipment Purchase,(id:41881) Acute & General Medicine,NHS SUPPLY CHAIN (MAIDSTONE),id:14526935,  14.35
Department of Health,Guys and St Thomas NHS Foundation Trust,12/11/2021,(82800) Bedding & Linen,(id:41966) Acute & General Medicine,NHS SUPPLY CHAIN (MAIDSTONE),id:14555946  , 128.40
Department of Health,Guys and St Thomas NHS Foundation Trust,26/11/2021,(83400) Office Equipment,(id:41966) Acute & General Medicine,NHS SUPPLY CHAIN (MAIDSTONE),id:14577034 ,   3.74
Department of Health,Guys and St Thomas NHS Foundation Trust,12/11/2021,(82600) Uniforms & Clothing,(id:4622427) Inpatient Services,RESPIRATOR SHOP (OWNED BY PROTECTIVE MASKS DIRECT LTD),id:13804856 , 617.83
Department of Health,Guys and St Thomas NHS Foundation Trust,19/11/2021,(81200) Medical Surgical Supplies & Equipment,(id:42037) Dental Services,DENTSPLY LTD,id:14469434, 371.88
Department of Health,Guys and St Thomas NHS Foundation Trust,19/11/2021,(81200) Medical Surgical Supplies & Equipment,(id:42037) Dental Services,FORESTADENT LTD,id:14619678  , 848.10
Department of Health,Guys and St Thomas NHS Foundation Trust,19/11/2021,(81200) Medical Surgical Supplies & Equipment,(id:42037) Dental Services,HENRY SCHEIN,id:14616038, 856.31
Department of Health,Guys and St Thomas NHS Foundation Trust,26/11/2021,(81200) Medical Surgical Supplies & Equipment,(id:42037) Dental Services,HENRY SCHEIN,id:14647619, 898.99
Department of Health,Guys and St Thomas NHS Foundation Trust,05/11/2021,(81200) Medical Surgical Supplies & Equipment,(id:42037) Dental Services,DAVIS SCHOTTLANDER & DAVIS LTD,id:14590179  , 768.00
Department of Health,Guys and St Thomas NHS Foundation Trust,05/11/2021,(82800) Bedding & Linen,(id:42037) Dental Services,NHS SUPPLY CHAIN (MAIDSTONE),id:14526935 , 100.50
Department of Health,Guys and St Thomas NHS Foundation Trust,12/11/2021,(82800) Bedding & Linen,(id:42037) Dental Services,NHS SUPPLY CHAIN (MAIDSTONE),id:14555946 ,  80.40
Department of Health,Guys and St Thomas NHS Foundation Trust,19/11/2021,(81200) Medical Surgical Supplies & Equipment,(id:42007) Dental Services,MERCIAN SURGICAL SUPPLY CO LTD,id:14649914  , 672.00
Department of Health,Guys and St Thomas NHS Foundation Trust,26/11/2021,(81200) Medical Surgical Supplies & Equipment,(id:42007) Dental Services,HENRY SCHEIN,id:14647463, 896.68
Department of Health,Guys and St Thomas NHS Foundation Trust,19/11/2021,(81200) Medical Surgical Supplies & Equipment,(id:42007) Dental Services,FORESTADENT LTD,id:14619694  , 682.44
Department of Health,Guys and St Thomas NHS Foundation Trust,12/11/2021,(81200) Medical Surgical Supplies & Equipment,(id:42007) Dental Services,HENRY SCHEIN,id:14583690, 916.34
Department of Health,Guys and St Thomas NHS Foundation Trust,17/11/2021,(81100) Dressings,(id:42005) Dental Services,NHS SUPPLY CHAIN (MAIDSTONE),id:14617322  ,   6.05
Department of Health,Guys and St Thomas NHS Foundation Trust,26/11/2021,(81100) Dressings,(id:42005) Dental Services,NHS SUPPLY CHAIN (MAIDSTONE),id:14593975  , 134.30
Department of Health,Guys and St Thomas NHS Foundation Trust,26/11/2021,(83400) Office Equipment,(id:42015) Dental Services,NHS SUPPLY CHAIN (MAIDSTONE),id:14593975, 264.14
Department of Health,Guys and St Thomas NHS Foundation Trust,12/11/2021,(50470) Medical Training Grades,(id:42033) Dental Services,EAST KENT HOSPITALS UNIVERSITY NHS FOUNDATION TRUST,id:14546788,4661.10
Department of Health,Guys and St Thomas NHS Foundation Trust,12/11/2021,(50470) Medical Training Grades,(id:42033) Dental Services,EAST KENT HOSPITALS UNIVERSITY NHS FOUNDATION TRUST,id:14546848,3155.27
Department of Health,Guys and St Thomas NHS Foundation Trust,26/11/2021,(84500) Establishment,(id:42027) Dental Services,CDP  PRINT MANAGEMENT,id:14642454,  21.70
Department of Health,Guys and St Thomas NHS Foundation Trust,17/11/2021,(81200) Medical Surgical Supplies & Equipment,(id:42027) Dental Services,NHS SUPPLY CHAIN (MAIDSTONE),id:14617322    ,  25.44
Department of Health,Guys and St Thomas NHS Foundation Trust,26/11/2021,(81200) Medical Surgical Supplies & Equipment,(id:42027) Dental Services,HENRY SCHEIN,id:14642275, 888.98
Department of Health,Guys and St Thomas NHS Foundation Trust,26/11/2021,(81200) Medical Surgical Supplies & Equipment,(id:42028) Dental Services,HENRY SCHEIN,id:14666874, 979.14
Department of Health,Guys and St Thomas NHS Foundation Trust,19/11/2021,(81200) Medical Surgical Supplies & Equipment,(id:42028) Dental Services,DENTSPLY LTD,id:14469434, 485.20
Department of Health,Guys and St Thomas NHS Foundation Trust,26/11/2021,(84500) Establishment,(id:42028) Dental Services,CDP  PRINT MANAGEMENT,id:14642475,  18.60
Department of Health,Guys and St Thomas NHS Foundation Trust,12/11/2021,(81700) Lab Equipment Purchase,(id:42028) Dental Services,NHS SUPPLY CHAIN (MAIDSTONE),id:14555946    ,  10.00
Department of Health,Guys and St Thomas NHS Foundation Trust,12/11/2021,(83410) Office Equipment,(id:42028) Dental Services,RICOH UK LTD,id:14546704 ,   4.87
Department of Health,Guys and St Thomas NHS Foundation Trust,12/11/2021,(81200) Medical Surgical Supplies & Equipment,(id:42016) Dental Services,DENTSPLY IH LTD,id:14617595  , 818.26
Department of Health,Guys and St Thomas NHS Foundation Trust,12/11/2021,(81200) Medical Surgical Supplies & Equipment,(id:42016) Dental Services,DENTSPLY IH LTD,id:14617743  ,1423.33
Department of Health,Guys and St Thomas NHS Foundation Trust,26/11/2021,(81200) Medical Surgical Supplies & Equipment,(id:42016) Dental Services,DENTSPLY IH LTD,id:14619514  ,-161.39
Department of Health,Guys and St Thomas NHS Foundation Trust,26/11/2021,(81200) Medical Surgical Supplies & Equipment,(id:42016) Dental Services,DENTSPLY IH LTD,id:14617757  ,-102.51
Department of Health,Guys and St Thomas NHS Foundation Trust,26/11/2021,(81200) Medical Surgical Supplies & Equipment,(id:42016) Dental Services,DENTSPLY IH LTD,id:14401464  ,1025.89
Department of Health,Guys and St Thomas NHS Foundation Trust,05/11/2021,(50542) Unqualified Nursing Staff,(id:1885419) Dental Services,GENEVA HEALTH INTERNATIONAL LIMITED,id:14583201  , 453.38
Department of Health,Guys and St Thomas NHS Foundation Trust,17/11/2021,(81200) Medical Surgical Supplies & Equipment,(id:42014) Dental Services,NHS SUPPLY CHAIN (MAIDSTONE),id:14617322    ,   9.72
Department of Health,Guys and St Thomas NHS Foundation Trust,12/11/2021,(82800) Bedding & Linen,(id:4622420) Dental Services,NHS SUPPLY CHAIN (MAIDSTONE),id:14555946    , 301.38
Department of Health,Guys and St Thomas NHS Foundation Trust,26/11/2021,(81200) Medical Surgical Supplies & Equipment,(id:42035) Dental Services,DENTSPLY IH LTD,id:14617834  , 650.05
Department of Health,Guys and St Thomas NHS Foundation Trust,26/11/2021,(81200) Medical Surgical Supplies & Equipment,(id:42035) Dental Services,DENTSPLY IH LTD,id:14617954  , 895.00
Department of Health,Guys and St Thomas NHS Foundation Trust,26/11/2021,(81200) Medical Surgical Supplies & Equipment,(id:42035) Dental Services,DENTSPLY IH LTD,id:14617934  , 944.80
Department of Health,Guys and St Thomas NHS Foundation Trust,26/11/2021,(81200) Medical Surgical Supplies & Equipment,(id:42035) Dental Services,DENTSPLY IH LTD,id:14619514  ,1080.76
Department of Health,Guys and St Thomas NHS Foundation Trust,26/11/2021,(81200) Medical Surgical Supplies & Equipment,(id:42035) Dental Services,DENTSPLY IH LTD,id:14617726  ,1185.06
Department of Health,Guys and St Thomas NHS Foundation Trust,05/11/2021,(81200) Medical Surgical Supplies & Equipment,(id:42035) Dental Services,DENTSPLY IH LTD,id:14575674  , 583.10
Department of Health,Guys and St Thomas NHS Foundation Trust,12/11/2021,(81200) Medical Surgical Supplies & Equipment,(id:42035) Dental Services,SKILLBOND  DIRECT LTD,id:14615516 , 750.88
Department of Health,Guys and St Thomas NHS Foundation Trust,12/11/2021,(81200) Medical Surgical Supplies & Equipment,(id:42035) Dental Services,DENTSPLY IH LTD,id:14619535  ,1262.41
Department of Health,Guys and St Thomas NHS Foundation Trust,19/11/2021,(83410) Office Equipment,(id:42035) Dental Services,RICOH UK LTD,id:14642871 , 810.22
Department of Health,Guys and St Thomas NHS Foundation Trust,05/11/2021,(83400) Office Equipment,(id:42035) Dental Services,WAREHOUSE EXPRESS T/A WEX PHOTOGRAPHIC,id:14589857, 586.40
Department of Health,Guys and St Thomas NHS Foundation Trust,05/11/2021,(83400) Office Equipment,(id:42035) Dental Services,WAREHOUSE EXPRESS T/A WEX PHOTOGRAPHIC,id:14589862, 586.40
Department of Health,Guys and St Thomas NHS Foundation Trust,05/11/2021,(83400) Office Equipment,(id:42035) Dental Services,WAREHOUSE EXPRESS T/A WEX PHOTOGRAPHIC,id:14589834,1496.36
Department of Health,Guys and St Thomas NHS Foundation Trust,12/11/2021,(81200) Medical Surgical Supplies & Equipment,(id:1634433) Dental Services,DENTSPLY LTD,id:14613888   , 940.25
Department of Health,Guys and St Thomas NHS Foundation Trust,05/11/2021,(81200) Medical Surgical Supplies & Equipment,(id:1634433) Dental Services,HENRY SCHEIN,id:14600854   , 821.89
Department of Health,Guys and St Thomas NHS Foundation Trust,19/11/2021,(83400) Office Equipment,(id:1634433) Dental Services,CFES LIMITED,id:14645403    , 513.00
Department of Health,Guys and St Thomas NHS Foundation Trust,26/11/2021,(83400) Office Equipment,(id:1634432) Dental Services,SOCOTEC UK LTD,id:14647621  ,2460.00
Department of Health,Guys and St Thomas NHS Foundation Trust,19/11/2021,(81200) Medical Surgical Supplies & Equipment,(id:1634429) Dental Services,DENTSPLY LTD,id:14469434   , 566.91
Department of Health,Guys and St Thomas NHS Foundation Trust,12/11/2021,(81200) Medical Surgical Supplies & Equipment,(id:1634429) Dental Services,HENRY SCHEIN,id:14614462   , 868.37
Department of Health,Guys and St Thomas NHS Foundation Trust,12/11/2021,(81200) Medical Surgical Supplies & Equipment,(id:1634429) Dental Services,NHS SUPPLY CHAIN (MAIDSTONE),id:14555946  ,  56.98
Department of Health,Guys and St Thomas NHS Foundation Trust,17/11/2021,(81100) Dressings,(id:1634429) Dental Services,NHS SUPPLY CHAIN (MAIDSTONE),id:14617322, 124.87
Department of Health,Guys and St Thomas NHS Foundation Trust,05/11/2021,(81700) Lab Equipment Purchase,(id:641456) Specialist Ambulatory Services,OXFORD NANOPORE TECHNOLOGIES LTD,id:14589814    , 714.00
Department of Health,Guys and St Thomas NHS Foundation Trust,26/11/2021,(50200) Consultants,(id:42194) Specialist Ambulatory Services,KING'S COLLEGE HOSPITAL NHS FOUNDATION TRUST,id:14478458    ,2440.99
Department of Health,Guys and St Thomas NHS Foundation Trust,26/11/2021,(50200) Consultants,(id:42194) Specialist Ambulatory Services,KING'S COLLEGE HOSPITAL NHS FOUNDATION TRUST,id:14444248    ,2440.99
Department of Health,Guys and St Thomas NHS Foundation Trust,26/11/2021,(81200) Medical Surgical Supplies & Equipment,(id:42193) Specialist Ambulatory Services,NHS SUPPLY CHAIN (MAIDSTONE),id:14593975    ,2342.99
Department of Health,Guys and St Thomas NHS Foundation Trust,12/11/2021,(81200) Medical Surgical Supplies & Equipment,(id:42193) Specialist Ambulatory Services,NHS SUPPLY CHAIN (MAIDSTONE),id:14555946    ,1203.53
Department of Health,Guys and St Thomas NHS Foundation Trust,12/11/2021,(82800) Bedding & Linen,(id:42193) Specialist Ambulatory Services,NHS SUPPLY CHAIN (MAIDSTONE),id:14555946 ,  60.30
Department of Health,Guys and St Thomas NHS Foundation Trust,19/11/2021,(50200) Consultants,(id:42215) Specialist Ambulatory Services,KINGS COLLEGE LONDON:03529700,id:14634254    ,1475.21
Department of Health,Guys and St Thomas NHS Foundation Trust,26/11/2021,(82000) Provisions & Kitchens,(id:42358) Specialist Ambulatory Services,NHS SUPPLY CHAIN (MAIDSTONE),id:14577034,   6.64
Department of Health,Guys and St Thomas NHS Foundation Trust,12/11/2021,(50200) Consultants,(id:42358) Specialist Ambulatory Services,THE INSTITUTE OF CANCER RESEARCH,id:14594223 ,3858.97
Department of Health,Guys and St Thomas NHS Foundation Trust,26/11/2021,(83410) Office Equipment,(id:42358) Specialist Ambulatory Services,RICOH UK LTD,id:14642827 , 560.04
Department of Health,Guys and St Thomas NHS Foundation Trust,05/11/2021,(89595) Non-Healthcare from Foundation Trusts,(id:42354) Specialist Ambulatory Services,ST GEORGE'S UNIVERSITY HOSPITALS NHS FOUNDATION TRUST,id:14331720    , 650.00
Department of Health,Guys and St Thomas NHS Foundation Trust,05/11/2021,(89595) Non-Healthcare from Foundation Trusts,(id:42354) Specialist Ambulatory Services,ST GEORGE'S UNIVERSITY HOSPITALS NHS FOUNDATION TRUST,id:14331691    , 650.00
Department of Health,Guys and St Thomas NHS Foundation Trust,05/11/2021,(89595) Non-Healthcare from Foundation Trusts,(id:42354) Specialist Ambulatory Services,ST GEORGE'S UNIVERSITY HOSPITALS NHS FOUNDATION TRUST,id:14586835    , 650.00
Department of Health,Guys and St Thomas NHS Foundation Trust,05/11/2021,(89595) Non-Healthcare from Foundation Trusts,(id:42354) Specialist Ambulatory Services,ST GEORGE'S UNIVERSITY HOSPITALS NHS FOUNDATION TRUST,id:14586313    , 650.00
Department of Health,Guys and St Thomas NHS Foundation Trust,05/11/2021,(89595) Non-Healthcare from Foundation Trusts,(id:42354) Specialist Ambulatory Services,ST GEORGE'S UNIVERSITY HOSPITALS NHS FOUNDATION TRUST,id:14331875    , 650.00
Department of Health,Guys and St Thomas NHS Foundation Trust,05/11/2021,(89595) Non-Healthcare from Foundation Trusts,(id:42354) Specialist Ambulatory Services,ST GEORGE'S UNIVERSITY HOSPITALS NHS FOUNDATION TRUST,id:14331859    , 650.00
Department of Health,Guys and St Thomas NHS Foundation Trust,26/11/2021,(81700) Lab Equipment Purchase,(id:3607419) Specialist Ambulatory Services,NHS SUPPLY CHAIN (MAIDSTONE),id:14593975  ,   6.19
Department of Health,Guys and St Thomas NHS Foundation Trust,12/11/2021,(83400) Office Equipment,(id:42094) Specialist Ambulatory Services,NHS SUPPLY CHAIN (MAIDSTONE),id:14555946,  79.08
Department of Health,Guys and St Thomas NHS Foundation Trust,12/11/2021,(84656) Establishment,(id:42065) Specialist Ambulatory Services,DICT8 LIMITED,id:14617114   ,4018.44
Department of Health,Guys and St Thomas NHS Foundation Trust,17/11/2021,(82800) Bedding & Linen,(id:42097) Specialist Ambulatory Services,NHS SUPPLY CHAIN (MAIDSTONE),id:14617322 ,  65.83
Department of Health,Guys and St Thomas NHS Foundation Trust,12/11/2021,(83400) Office Equipment,(id:42097) Specialist Ambulatory Services,NHS SUPPLY CHAIN (MAIDSTONE),id:14555946,  81.07
Department of Health,Guys and St Thomas NHS Foundation Trust,17/11/2021,(83400) Office Equipment,(id:42097) Specialist Ambulatory Services,NHS SUPPLY CHAIN (MAIDSTONE),id:14617322,  10.24
Department of Health,Guys and St Thomas NHS Foundation Trust,12/11/2021,(81200) Medical Surgical Supplies & Equipment,(id:42097) Specialist Ambulatory Services,LASER PHYSICS UK LTD,id:14612734  ,   9.00
Department of Health,Guys and St Thomas NHS Foundation Trust,12/11/2021,(81200) Medical Surgical Supplies & Equipment,(id:42097) Specialist Ambulatory Services,LASER PHYSICS UK LTD,id:14609895  ,   9.00
Department of Health,Guys and St Thomas NHS Foundation Trust,12/11/2021,(82800) Bedding & Linen,(id:42079) Specialist Ambulatory Services,NHS SUPPLY CHAIN (MAIDSTONE),id:14555946 , 104.92
Department of Health,Guys and St Thomas NHS Foundation Trust,26/11/2021,(81275) Medical Surgical Supplies & Equipment,(id:42079) Specialist Ambulatory Services,NHS SUPPLY CHAIN (MAIDSTONE),id:14577034    ,  14.46
Department of Health,Guys and St Thomas NHS Foundation Trust,26/11/2021,(83400) Office Equipment,(id:42079) Specialist Ambulatory Services,NHS SUPPLY CHAIN (MAIDSTONE),id:14593975,  22.44
Department of Health,Guys and St Thomas NHS Foundation Trust,26/11/2021,(82700) Uniforms & Clothing,(id:42089) Specialist Ambulatory Services,NHS SUPPLY CHAIN (MAIDSTONE),id:14593975  , 529.37
Department of Health,Guys and St Thomas NHS Foundation Trust,12/11/2021,(81100) Dressings,(id:391417) Specialist Ambulatory Services,NHS SUPPLY CHAIN (MAIDSTONE),id:14555946 ,  32.77
Department of Health,Guys and St Thomas NHS Foundation Trust,26/11/2021,(83400) Office Equipment,(id:42064) Specialist Ambulatory Services,NHS SUPPLY CHAIN (MAIDSTONE),id:14593975, 185.65
Department of Health,Guys and St Thomas NHS Foundation Trust,05/11/2021,(81100) Dressings,(id:42064) Specialist Ambulatory Services,NHS SUPPLY CHAIN (MAIDSTONE),id:14526935  ,   5.10
Department of Health,Guys and St Thomas NHS Foundation Trust,26/11/2021,(84500) Establishment,(id:42050) Specialist Ambulatory Services,CDP  PRINT MANAGEMENT,id:14642475,   6.20
Department of Health,Guys and St Thomas NHS Foundation Trust,05/11/2021,(83400) Office Equipment,(id:42050) Specialist Ambulatory Services,NHS SUPPLY CHAIN (MAIDSTONE),id:14526935, 124.88
Department of Health,Guys and St Thomas NHS Foundation Trust,05/11/2021,(81200) Medical Surgical Supplies & Equipment,(id:42050) Specialist Ambulatory Services,NHS SUPPLY CHAIN (MAIDSTONE),id:14526935    , 185.86
Department of Health,Guys and St Thomas NHS Foundation Trust,26/11/2021,(81100) Dressings,(id:42050) Specialist Ambulatory Services,NHS SUPPLY CHAIN (MAIDSTONE),id:14593975  , 179.37
Department of Health,Guys and St Thomas NHS Foundation Trust,12/11/2021,(81700) Lab Equipment Purchase,(id:42050) Specialist Ambulatory Services,NHS SUPPLY CHAIN (MAIDSTONE),id:14555946    , 139.20
Department of Health,Guys and St Thomas NHS Foundation Trust,26/11/2021,(81700) Lab Equipment Purchase,(id:42050) Specialist Ambulatory Services,NHS SUPPLY CHAIN (MAIDSTONE),id:14593975    , 139.20
Department of Health,Guys and St Thomas NHS Foundation Trust,15/11/2021,(54052) Technical Officers,(id:2869419) Pharmacy,PRICEWATERHOUSECOOPERS LLP,id:14635015,1020.31
Department of Health,Guys and St Thomas NHS Foundation Trust,30/11/2021,(54052) Technical Officers,(id:2869419) Pharmacy,PRICEWATERHOUSECOOPERS LLP,id:14685074, 602.52
Department of Health,Guys and St Thomas NHS Foundation Trust,15/11/2021,(53682) Pharmacists,(id:42165) Pharmacy,PRICEWATERHOUSECOOPERS LLP,id:14635015    , 326.18
Department of Health,Guys and St Thomas NHS Foundation Trust,30/11/2021,(53672) Pharmacists,(id:42165) Pharmacy,PRICEWATERHOUSECOOPERS LLP,id:14685074    ,1322.82
Department of Health,Guys and St Thomas NHS Foundation Trust,26/11/2021,(83410) Office Equipment,(id:42165) Pharmacy,RICOH UK LTD,id:14642827   , 163.54
Department of Health,Guys and St Thomas NHS Foundation Trust,05/11/2021,(81200) Medical Surgical Supplies & Equipment,(id:581409) Pharmacy,NHS SUPPLY CHAIN (MAIDSTONE),id:14526935,1547.16
Department of Health,Guys and St Thomas NHS Foundation Trust,12/11/2021,(81200) Medical Surgical Supplies & Equipment,(id:581409) Pharmacy,VALIDAIR (EURO) LTD,id:14572314    ,3480.00
Department of Health,Guys and St Thomas NHS Foundation Trust,12/11/2021,(81400) Medical Surgical Supplies & Equipment,(id:581409) Pharmacy,AMERCARE LTD,id:14614356 , 412.50
Department of Health,Guys and St Thomas NHS Foundation Trust,26/11/2021,(83400) Office Equipment,(id:581409) Pharmacy,MICRONCLEAN (FENLAND LAUNDRIES),id:14661634   , 528.00
Department of Health,Guys and St Thomas NHS Foundation Trust,05/11/2021,(83400) Office Equipment,(id:581409) Pharmacy,DURBIN PLC,id:14591373    , 591.94
Department of Health,Guys and St Thomas NHS Foundation Trust,30/11/2021,(54052) Technical Officers,(id:581409) Pharmacy,PRICEWATERHOUSECOOPERS LLP,id:14685254 ,2808.78
Department of Health,Guys and St Thomas NHS Foundation Trust,12/11/2021,(84600) Establishment,(id:581409) Pharmacy,AMERCARE LTD,id:14614356, 104.28
Department of Health,Guys and St Thomas NHS Foundation Trust,15/11/2021,(53632) Pharmacists,(id:581409) Pharmacy,PRICEWATERHOUSECOOPERS LLP,id:14635015   , 123.92
Department of Health,Guys and St Thomas NHS Foundation Trust,05/11/2021,(81200) Medical Surgical Supplies & Equipment,(id:42159) Pharmacy,NHS SUPPLY CHAIN (MAIDSTONE),id:14526935 , 547.20
Department of Health,Guys and St Thomas NHS Foundation Trust,12/11/2021,(81200) Medical Surgical Supplies & Equipment,(id:42159) Pharmacy,CONNECT 2 CLEANROOMS LTD T/A CLEANROOMSHOP.COM,id:14614304   ,4549.80
Department of Health,Guys and St Thomas NHS Foundation Trust,12/11/2021,(83410) Office Equipment,(id:42159) Pharmacy,RICOH UK LTD,id:14546704   , 702.13
Department of Health,Guys and St Thomas NHS Foundation Trust,19/11/2021,(55122) Admin & Clerical,(id:42159) Pharmacy,HYPER RECRUITMENT SOLUTIONS LTD,id:14623964    ,5112.00
Department of Health,Guys and St Thomas NHS Foundation Trust,19/11/2021,(55122) Admin & Clerical,(id:42159) Pharmacy,HYPER RECRUITMENT SOLUTIONS LTD,id:14624134    ,6816.00
Department of Health,Guys and St Thomas NHS Foundation Trust,19/11/2021,(83500) Furniture & Fittings,(id:42160) Pharmacy,H C SLINGSBY PLC,id:14649535,2202.00
Department of Health,Guys and St Thomas NHS Foundation Trust,30/11/2021,(53672) Pharmacists,(id:42160) Pharmacy,PRICEWATERHOUSECOOPERS LLP,id:14686482    ,1239.61
Department of Health,Guys and St Thomas NHS Foundation Trust,30/11/2021,(54052) Technical Officers,(id:42160) Pharmacy,PRICEWATERHOUSECOOPERS LLP,id:14685254  , 600.51
Department of Health,Guys and St Thomas NHS Foundation Trust,12/11/2021,(84400) Transport,(id:42160) Pharmacy,LLOYDS PHARMACY LTD,id:14298136   ,    44860.50
Department of Health,Guys and St Thomas NHS Foundation Trust,30/11/2021,(53662) Pharmacists,(id:42160) Pharmacy,PRICEWATERHOUSECOOPERS LLP,id:14686482    , 433.85
Department of Health,Guys and St Thomas NHS Foundation Trust,30/11/2021,(53632) Pharmacists,(id:42160) Pharmacy,PRICEWATERHOUSECOOPERS LLP,id:14685074    ,1636.74
Department of Health,Guys and St Thomas NHS Foundation Trust,26/11/2021,(83410) Office Equipment,(id:478416) Medical Specialties,RICOH UK LTD,id:14642827 , 430.86
Department of Health,Guys and St Thomas NHS Foundation Trust,26/11/2021,(83410) Office Equipment,(id:478416) Medical Specialties,RICOH UK LTD,id:14642828 , 212.67
Department of Health,Guys and St Thomas NHS Foundation Trust,12/11/2021,(83410) Office Equipment,(id:42178) Medical Specialties,RICOH UK LTD,id:14546704  ,  27.87
Department of Health,Guys and St Thomas NHS Foundation Trust,12/11/2021,(82000) Provisions & Kitchens,(id:42217) Medical Specialties,NHS SUPPLY CHAIN (MAIDSTONE),id:14555946 ,  64.81
Department of Health,Guys and St Thomas NHS Foundation Trust,17/11/2021,(81700) Lab Equipment Purchase,(id:42217) Medical Specialties,NHS SUPPLY CHAIN (MAIDSTONE),id:14617322,  14.50
Department of Health,Guys and St Thomas NHS Foundation Trust,26/11/2021,(84500) Establishment,(id:42251) Medical Specialties,CDP  PRINT MANAGEMENT,id:14642474 ,  18.00
Department of Health,Guys and St Thomas NHS Foundation Trust,30/11/2021,(51252) Dieticians,(id:42251) Medical Specialties,PRICEWATERHOUSECOOPERS LLP,id:14686482    ,1019.97
Department of Health,Guys and St Thomas NHS Foundation Trust,26/11/2021,(83410) Office Equipment,(id:42251) Medical Specialties,RICOH UK LTD,id:14642827  , 405.63
Department of Health,Guys and St Thomas NHS Foundation Trust,16/11/2021,(51262) Dieticians,(id:42249) Medical Specialties,PRICEWATERHOUSECOOPERS LLP,id:14635025    , 902.05
Department of Health,Guys and St Thomas NHS Foundation Trust,30/11/2021,(51262) Dieticians,(id:42249) Medical Specialties,PRICEWATERHOUSECOOPERS LLP,id:14685074    ,1133.60
Department of Health,Guys and St Thomas NHS Foundation Trust,26/11/2021,(84500) Establishment,(id:42224) Medical Specialties,CDP  PRINT MANAGEMENT,id:14642434 ,  28.70
Department of Health,Guys and St Thomas NHS Foundation Trust,12/11/2021,(83765) Rent,(id:42224) Medical Specialties,COMMUNITY HEALTH PARTNERSHIPS,id:11306111  ,2680.79
Department of Health,Guys and St Thomas NHS Foundation Trust,26/11/2021,(81200) Medical Surgical Supplies & Equipment,(id:42223) Medical Specialties,NHS SUPPLY CHAIN (MAIDSTONE),id:14593975,4692.21
Department of Health,Guys and St Thomas NHS Foundation Trust,19/11/2021,(81200) Medical Surgical Supplies & Equipment,(id:42223) Medical Specialties,OCURA HEALTHCARE FURNITURE,id:14632194  ,1528.80
Department of Health,Guys and St Thomas NHS Foundation Trust,26/11/2021,(83410) Office Equipment,(id:42223) Medical Specialties,RICOH UK LTD,id:14642828  , 117.66
Department of Health,Guys and St Thomas NHS Foundation Trust,05/11/2021,(89600) Non-Healthcare from other NHS bodies,(id:42223) Medical Specialties,NHS BLOOD AND TRANSPLANT,id:14543761,1221.49
Department of Health,Guys and St Thomas NHS Foundation Trust,12/11/2021,(83400) Office Equipment,(id:42221) Medical Specialties,NHS SUPPLY CHAIN (MAIDSTONE),id:14555946 ,  59.81
Department of Health,Guys and St Thomas NHS Foundation Trust,05/11/2021,(83400) Office Equipment,(id:42221) Medical Specialties,NHS SUPPLY CHAIN (MAIDSTONE),id:14526935 , 108.94
Department of Health,Guys and St Thomas NHS Foundation Trust,12/11/2021,(81200) Medical Surgical Supplies & Equipment,(id:42221) Medical Specialties,ALCON EYE CARE UK LIMITED,id:14613594   ,1200.00
Department of Health,Guys and St Thomas NHS Foundation Trust,12/11/2021,(81200) Medical Surgical Supplies & Equipment,(id:42221) Medical Specialties,MISS OPHTHALMICS,id:14622659  ,1568.28
Department of Health,Guys and St Thomas NHS Foundation Trust,19/11/2021,(81200) Medical Surgical Supplies & Equipment,(id:42221) Medical Specialties,JOHNSON & JOHNSON MEDICAL LTD,id:14598831    ,3277.05
Department of Health,Guys and St Thomas NHS Foundation Trust,19/11/2021,(81200) Medical Surgical Supplies & Equipment,(id:42221) Medical Specialties,ALCON EYE CARE UK LIMITED,id:14505839   ,4334.40
Department of Health,Guys and St Thomas NHS Foundation Trust,26/11/2021,(83400) Office Equipment,(id:42213) Medical Specialties,NHS SUPPLY CHAIN (MAIDSTONE),id:14593975 ,  16.70
Department of Health,Guys and St Thomas NHS Foundation Trust,05/11/2021,(81000) Surgical Appliances,(id:42213) Medical Specialties,TALAR MADE ORTHOTICS LTD,id:14592507  , 110.58
Department of Health,Guys and St Thomas NHS Foundation Trust,19/11/2021,(50200) Consultants,(id:42213) Medical Specialties,KINGS COLLEGE LONDON:03529700,id:14634502,6272.55
Department of Health,Guys and St Thomas NHS Foundation Trust,26/11/2021,(81200) Medical Surgical Supplies & Equipment,(id:42209) Medical Specialties,MEDTRONIC LTD,id:14567624, 567.00
Department of Health,Guys and St Thomas NHS Foundation Trust,19/11/2021,(83500) Furniture & Fittings,(id:42208) Medical Specialties,OCURA HEALTHCARE FURNITURE,id:14614252    ,2808.00
Department of Health,Guys and St Thomas NHS Foundation Trust,05/11/2021,(81200) Medical Surgical Supplies & Equipment,(id:42208) Medical Specialties,DEXCOM INTERNATIONAL LTD,id:14538434    , 600.00
Department of Health,Guys and St Thomas NHS Foundation Trust,05/11/2021,(81200) Medical Surgical Supplies & Equipment,(id:42208) Medical Specialties,INSULET INTERNATIONAL LTD,id:14532904   , 712.08
Department of Health,Guys and St Thomas NHS Foundation Trust,12/11/2021,(81200) Medical Surgical Supplies & Equipment,(id:42208) Medical Specialties,INSULET INTERNATIONAL LTD,id:14613314   , 712.08
Department of Health,Guys and St Thomas NHS Foundation Trust,12/11/2021,(81200) Medical Surgical Supplies & Equipment,(id:42208) Medical Specialties,CAMDIAB LTD,id:14613558  ,1008.00
Department of Health,Guys and St Thomas NHS Foundation Trust,12/11/2021,(81200) Medical Surgical Supplies & Equipment,(id:42208) Medical Specialties,ROCHE DIABETES CARE LIMITED,id:14472194 ,3093.60
Department of Health,Guys and St Thomas NHS Foundation Trust,12/11/2021,(81200) Medical Surgical Supplies & Equipment,(id:42208) Medical Specialties,DEXCOM INTERNATIONAL LTD,id:14591416    , 600.00
Department of Health,Guys and St Thomas NHS Foundation Trust,12/11/2021,(81200) Medical Surgical Supplies & Equipment,(id:42208) Medical Specialties,DEXCOM INTERNATIONAL LTD,id:14590769    , 600.00
Department of Health,Guys and St Thomas NHS Foundation Trust,12/11/2021,(81200) Medical Surgical Supplies & Equipment,(id:42208) Medical Specialties,DEXCOM INTERNATIONAL LTD,id:14590770    , 600.00
Department of Health,Guys and St Thomas NHS Foundation Trust,12/11/2021,(81200) Medical Surgical Supplies & Equipment,(id:42208) Medical Specialties,DEXCOM INTERNATIONAL LTD,id:14590764    , 600.00
Department of Health,Guys and St Thomas NHS Foundation Trust,12/11/2021,(81200) Medical Surgical Supplies & Equipment,(id:42208) Medical Specialties,DEXCOM INTERNATIONAL LTD,id:14590496    , 600.00
Department of Health,Guys and St Thomas NHS Foundation Trust,12/11/2021,(81200) Medical Surgical Supplies & Equipment,(id:42208) Medical Specialties,DEXCOM INTERNATIONAL LTD,id:14590209    , 600.00
Department of Health,Guys and St Thomas NHS Foundation Trust,12/11/2021,(81200) Medical Surgical Supplies & Equipment,(id:42208) Medical Specialties,ROCHE DIABETES CARE LIMITED,id:14625539 ,    -2252.12
Department of Health,Guys and St Thomas NHS Foundation Trust,19/11/2021,(81200) Medical Surgical Supplies & Equipment,(id:42208) Medical Specialties,DEXCOM INTERNATIONAL LTD,id:14590394    , 600.00
Department of Health,Guys and St Thomas NHS Foundation Trust,26/11/2021,(81200) Medical Surgical Supplies & Equipment,(id:42208) Medical Specialties,MEDTRONIC LTD,id:14557425,4674.00
Department of Health,Guys and St Thomas NHS Foundation Trust,26/11/2021,(81200) Medical Surgical Supplies & Equipment,(id:42208) Medical Specialties,AIR LIQUIDE (HOMECARE) LTD,id:14587817  , 828.00
Department of Health,Guys and St Thomas NHS Foundation Trust,26/11/2021,(81200) Medical Surgical Supplies & Equipment,(id:42208) Medical Specialties,DEXCOM INTERNATIONAL LTD,id:14633860    , 600.00
Department of Health,Guys and St Thomas NHS Foundation Trust,26/11/2021,(81200) Medical Surgical Supplies & Equipment,(id:42208) Medical Specialties,DEXCOM INTERNATIONAL LTD,id:14633866    , 600.00
Department of Health,Guys and St Thomas NHS Foundation Trust,26/11/2021,(81200) Medical Surgical Supplies & Equipment,(id:42208) Medical Specialties,MEDTRONIC LTD,id:14603498, 651.44
Department of Health,Guys and St Thomas NHS Foundation Trust,26/11/2021,(81200) Medical Surgical Supplies & Equipment,(id:42208) Medical Specialties,MEDTRONIC LTD,id:14552003, 850.50
Department of Health,Guys and St Thomas NHS Foundation Trust,12/11/2021,(81000) Surgical Appliances,(id:42204) Medical Specialties,TALAR MADE ORTHOTICS LTD,id:14617774  ,  43.66
Department of Health,Guys and St Thomas NHS Foundation Trust,05/11/2021,(89595) Non-Healthcare from Foundation Trusts,(id:42202) Medical Specialties,MOORFIELDS EYE HOSPITAL NHS FOUNDATION TRUST,id:13465596    , 765.50
Department of Health,Guys and St Thomas NHS Foundation Trust,05/11/2021,(81000) Surgical Appliances,(id:42199) Medical Specialties,TALAR MADE ORTHOTICS LTD,id:14592494  ,  23.28
Department of Health,Guys and St Thomas NHS Foundation Trust,12/11/2021,(83400) Office Equipment,(id:302405) Medical Specialties,NHS SUPPLY CHAIN (MAIDSTONE),id:14555946,  61.92
Department of Health,Guys and St Thomas NHS Foundation Trust,26/11/2021,(83410) Office Equipment,(id:302405) Medical Specialties,RICOH UK LTD,id:14642827 , 155.85
Department of Health,Guys and St Thomas NHS Foundation Trust,26/11/2021,(84500) Establishment,(id:42205) Medical Specialties,CDP  PRINT MANAGEMENT,id:14642475 ,   3.10
Department of Health,Guys and St Thomas NHS Foundation Trust,05/11/2021,(50200) Consultants,(id:42205) Medical Specialties,KING'S COLLEGE HOSPITAL NHS FOUNDATION TRUST,id:14535863,6390.66
Department of Health,Guys and St Thomas NHS Foundation Trust,26/11/2021,(83410) Office Equipment,(id:42205) Medical Specialties,RICOH UK LTD,id:14642828  ,  58.48
Department of Health,Guys and St Thomas NHS Foundation Trust,17/11/2021,(81200) Medical Surgical Supplies & Equipment,(id:41937) Medical Specialties,NHS SUPPLY CHAIN (MAIDSTONE),id:14617322,    22063.13
Department of Health,Guys and St Thomas NHS Foundation Trust,26/11/2021,(83410) Office Equipment,(id:41937) Medical Specialties,RICOH UK LTD,id:14642827  , 129.18
Department of Health,Guys and St Thomas NHS Foundation Trust,16/11/2021,(52062) Radiographers,(id:41937) Medical Specialties,PRICEWATERHOUSECOOPERS LLP,id:14635025 ,1269.17
Department of Health,Guys and St Thomas NHS Foundation Trust,19/11/2021,(50200) Consultants,(id:41937) Medical Specialties,KINGS COLLEGE LONDON:03529700,id:14634236,3647.94
Department of Health,Guys and St Thomas NHS Foundation Trust,16/11/2021,(51872) Physiotherapists,(id:42234) Therapies and Rehabilitation,PRICEWATERHOUSECOOPERS LLP,id:14635025    ,1349.27
Department of Health,Guys and St Thomas NHS Foundation Trust,15/11/2021,(51872) Physiotherapists,(id:42234) Therapies and Rehabilitation,PRICEWATERHOUSECOOPERS LLP,id:14635015    ,4016.61
Department of Health,Guys and St Thomas NHS Foundation Trust,30/11/2021,(51862) Physiotherapists,(id:42234) Therapies and Rehabilitation,PRICEWATERHOUSECOOPERS LLP,id:14685074    ,2551.52
Department of Health,Guys and St Thomas NHS Foundation Trust,19/11/2021,(81200) Medical Surgical Supplies & Equipment,(id:42232) Therapies and Rehabilitation,SIMPLYMED LTD,id:14626554 , 792.12
Department of Health,Guys and St Thomas NHS Foundation Trust,30/11/2021,(51862) Physiotherapists,(id:42232) Therapies and Rehabilitation,PRICEWATERHOUSECOOPERS LLP,id:14685254    ,3325.12
Department of Health,Guys and St Thomas NHS Foundation Trust,26/11/2021,(81200) Medical Surgical Supplies & Equipment,(id:42231) Therapies and Rehabilitation,NHS SUPPLY CHAIN (MAIDSTONE),id:14593975 ,1143.24
Department of Health,Guys and St Thomas NHS Foundation Trust,30/11/2021,(51862) Physiotherapists,(id:42230) Therapies and Rehabilitation,PRICEWATERHOUSECOOPERS LLP,id:14685254    ,3433.87
Department of Health,Guys and St Thomas NHS Foundation Trust,30/11/2021,(51862) Physiotherapists,(id:42230) Therapies and Rehabilitation,PRICEWATERHOUSECOOPERS LLP,id:14686482    ,3433.87
Department of Health,Guys and St Thomas NHS Foundation Trust,12/11/2021,(81200) Medical Surgical Supplies & Equipment,(id:42230) Therapies and Rehabilitation,NHS SUPPLY CHAIN (MAIDSTONE),id:14555946 , 335.94
Department of Health,Guys and St Thomas NHS Foundation Trust,26/11/2021,(83410) Office Equipment,(id:42240) Therapies and Rehabilitation,RICOH UK LTD,id:14642828   , 291.97
Department of Health,Guys and St Thomas NHS Foundation Trust,26/11/2021,(81225) Medical Surgical Supplies & Equipment,(id:42240) Therapies and Rehabilitation,NHS SUPPLY CHAIN (MAIDSTONE),id:14593975 ,  25.56
Department of Health,Guys and St Thomas NHS Foundation Trust,26/11/2021,(81225) Medical Surgical Supplies & Equipment,(id:42239) Therapies and Rehabilitation,NHS SUPPLY CHAIN (MAIDSTONE),id:14577034 ,  63.09
Department of Health,Guys and St Thomas NHS Foundation Trust,26/11/2021,(81225) Medical Surgical Supplies & Equipment,(id:42239) Therapies and Rehabilitation,PERFORMANCE HEALTH INTERNATIONAL LTD (PATTERSON),id:14593794 , 372.86
Department of Health,Guys and St Thomas NHS Foundation Trust,05/11/2021,(81200) Medical Surgical Supplies & Equipment,(id:42239) Therapies and Rehabilitation,NHS SUPPLY CHAIN (MAIDSTONE),id:14526935 ,  78.53
Department of Health,Guys and St Thomas NHS Foundation Trust,26/11/2021,(81200) Medical Surgical Supplies & Equipment,(id:42239) Therapies and Rehabilitation,PERFORMANCE HEALTH INTERNATIONAL LTD (PATTERSON),id:14593794 , 576.00
Department of Health,Guys and St Thomas NHS Foundation Trust,26/11/2021,(82000) Provisions & Kitchens,(id:42239) Therapies and Rehabilitation,NHS SUPPLY CHAIN (MAIDSTONE),id:14593975  ,  18.44
Department of Health,Guys and St Thomas NHS Foundation Trust,30/11/2021,(51062) Chiropodists,(id:590490) Therapies and Rehabilitation,PRICEWATERHOUSECOOPERS LLP,id:14686482  ,1741.49
Department of Health,Guys and St Thomas NHS Foundation Trust,12/11/2021,(81100) Dressings,(id:590490) Therapies and Rehabilitation,BAILEY INSTRUMENTS LIMITED,id:14614282, 534.00
Department of Health,Guys and St Thomas NHS Foundation Trust,16/11/2021,(53062) Speech Therapists,(id:42248) Therapies and Rehabilitation,PRICEWATERHOUSECOOPERS LLP,id:14635025   ,1736.50
Department of Health,Guys and St Thomas NHS Foundation Trust,12/11/2021,(81200) Medical Surgical Supplies & Equipment,(id:590499) Therapies and Rehabilitation,INVACARE LTD,id:14584532 , 574.80
Department of Health,Guys and St Thomas NHS Foundation Trust,12/11/2021,(81200) Medical Surgical Supplies & Equipment,(id:590499) Therapies and Rehabilitation,INVACARE LTD,id:14584533 , 667.20
Department of Health,Guys and St Thomas NHS Foundation Trust,12/11/2021,(81200) Medical Surgical Supplies & Equipment,(id:590499) Therapies and Rehabilitation,INVACARE LTD,id:14544989 ,1496.40
Department of Health,Guys and St Thomas NHS Foundation Trust,12/11/2021,(81200) Medical Surgical Supplies & Equipment,(id:590499) Therapies and Rehabilitation,INVACARE LTD,id:14602817 ,3001.20
Department of Health,Guys and St Thomas NHS Foundation Trust,12/11/2021,(81200) Medical Surgical Supplies & Equipment,(id:590499) Therapies and Rehabilitation,INVACARE LTD,id:14584575 ,3276.00
Department of Health,Guys and St Thomas NHS Foundation Trust,12/11/2021,(81200) Medical Surgical Supplies & Equipment,(id:590499) Therapies and Rehabilitation,INVACARE LTD,id:14602815 ,3960.00
Department of Health,Guys and St Thomas NHS Foundation Trust,19/11/2021,(81200) Medical Surgical Supplies & Equipment,(id:590499) Therapies and Rehabilitation,SUNRISE MEDICAL LIMITED,id:14602833,2290.68
Department of Health,Guys and St Thomas NHS Foundation Trust,12/11/2021,(81225) Medical Surgical Supplies & Equipment,(id:590499) Therapies and Rehabilitation,R82 UK LTD,id:14604814   ,2689.20
Department of Health,Guys and St Thomas NHS Foundation Trust,19/11/2021,(81225) Medical Surgical Supplies & Equipment,(id:590498) Therapies and Rehabilitation,JANE SAUNDERS & MANNING LTD,id:14608554 , 701.37
Department of Health,Guys and St Thomas NHS Foundation Trust,12/11/2021,(81000) Surgical Appliances,(id:590498) Therapies and Rehabilitation,PROMEDICS ORTHOPAEDICS LTD,id:14606014, 528.00
Department of Health,Guys and St Thomas NHS Foundation Trust,19/11/2021,(81000) Surgical Appliances,(id:590498) Therapies and Rehabilitation,BRACE ORTHOPAEDIC,id:14606254    , 762.00
Department of Health,Guys and St Thomas NHS Foundation Trust,26/11/2021,(83400) Office Equipment,(id:590496) Therapies and Rehabilitation,NHS SUPPLY CHAIN (MAIDSTONE),id:14593975 ,   8.77
Department of Health,Guys and St Thomas NHS Foundation Trust,17/11/2021,(81100) Dressings,(id:590496) Therapies and Rehabilitation,NHS SUPPLY CHAIN (MAIDSTONE),id:14617322   ,  67.48
Department of Health,Guys and St Thomas NHS Foundation Trust,26/11/2021,(81100) Dressings,(id:590496) Therapies and Rehabilitation,NHS SUPPLY CHAIN (MAIDSTONE),id:14593975   , 127.41
Department of Health,Guys and St Thomas NHS Foundation Trust,12/11/2021,(81225) Medical Surgical Supplies & Equipment,(id:42242) Therapies and Rehabilitation,BROWNS MORE HAIR NOW LIMITED,id:14615445 ,4667.00
Department of Health,Guys and St Thomas NHS Foundation Trust,12/11/2021,(81225) Medical Surgical Supplies & Equipment,(id:42242) Therapies and Rehabilitation,BROWNS MORE HAIR NOW LIMITED,id:14615447 ,    16014.54
Department of Health,Guys and St Thomas NHS Foundation Trust,12/11/2021,(82800) Bedding & Linen,(id:1042419) Therapies and Rehabilitation,NHS SUPPLY CHAIN (MAIDSTONE),id:14555946 ,  96.30
Department of Health,Guys and St Thomas NHS Foundation Trust,05/11/2021,(81225) Medical Surgical Supplies & Equipment,(id:1042419) Therapies and Rehabilitation,NHS SUPPLY CHAIN (MAIDSTONE),id:14526935    , 192.89
Department of Health,Guys and St Thomas NHS Foundation Trust,19/11/2021,(50203) Consultants,(id:42368) Clinical Imaging & Med Physics,KINGS COLLEGE LONDON:03529700,id:14634597    ,    18011.51
Department of Health,Guys and St Thomas NHS Foundation Trust,15/11/2021,(52072) Radiographers,(id:42368) Clinical Imaging & Med Physics,PRICEWATERHOUSECOOPERS LLP,id:14635015,    14977.67
Department of Health,Guys and St Thomas NHS Foundation Trust,12/11/2021,(82600) Uniforms & Clothing,(id:42367) Clinical Imaging & Med Physics,NHS SUPPLY CHAIN (MAIDSTONE),id:14555946  , 127.37
Department of Health,Guys and St Thomas NHS Foundation Trust,26/11/2021,(84500) Establishment,(id:42367) Clinical Imaging & Med Physics,CDP  PRINT MANAGEMENT,id:14642454, 129.91
Department of Health,Guys and St Thomas NHS Foundation Trust,05/11/2021,(82800) Bedding & Linen,(id:42367) Clinical Imaging & Med Physics,NHS SUPPLY CHAIN (MAIDSTONE),id:14526935 , 222.06
Department of Health,Guys and St Thomas NHS Foundation Trust,12/11/2021,(82800) Bedding & Linen,(id:42367) Clinical Imaging & Med Physics,NHS SUPPLY CHAIN (MAIDSTONE),id:14555946 , 663.21
Department of Health,Guys and St Thomas NHS Foundation Trust,17/11/2021,(82800) Bedding & Linen,(id:42367) Clinical Imaging & Med Physics,NHS SUPPLY CHAIN (MAIDSTONE),id:14617322 , 416.45
Department of Health,Guys and St Thomas NHS Foundation Trust,12/11/2021,(81400) Medical Surgical Supplies & Equipment,(id:42367) Clinical Imaging & Med Physics,NHS SUPPLY CHAIN ( CAPITAL FUND ONLY),id:14613757,1500.00
Department of Health,Guys and St Thomas NHS Foundation Trust,05/11/2021,(83820) Building & Engineering,(id:42367) Clinical Imaging & Med Physics,MAITLAND ENGINEERING LTD,id:14598346   ,2187.00
Department of Health,Guys and St Thomas NHS Foundation Trust,19/11/2021,(50203) Consultants,(id:42367) Clinical Imaging & Med Physics,KINGS COLLEGE LONDON:03529700,id:14634154    ,2419.01
Department of Health,Guys and St Thomas NHS Foundation Trust,12/11/2021,(81200) Medical Surgical Supplies & Equipment,(id:42367) Clinical Imaging & Med Physics,COOK UK LTD,id:14536002 , 924.00
Department of Health,Guys and St Thomas NHS Foundation Trust,26/11/2021,(81200) Medical Surgical Supplies & Equipment,(id:42367) Clinical Imaging & Med Physics,NHS SUPPLY CHAIN (MAIDSTONE),id:14577034    ,    16088.75
Department of Health,Guys and St Thomas NHS Foundation Trust,26/11/2021,(81200) Medical Surgical Supplies & Equipment,(id:42367) Clinical Imaging & Med Physics,BOSTON SCIENTIFIC LTD,id:14603423 ,2898.00
Department of Health,Guys and St Thomas NHS Foundation Trust,26/11/2021,(81200) Medical Surgical Supplies & Equipment,(id:42367) Clinical Imaging & Med Physics,BOSTON SCIENTIFIC LTD,id:14615002 , 408.00
Department of Health,Guys and St Thomas NHS Foundation Trust,26/11/2021,(81200) Medical Surgical Supplies & Equipment,(id:42367) Clinical Imaging & Med Physics,TERUMO UK LTD,id:14623652    , 540.00
Department of Health,Guys and St Thomas NHS Foundation Trust,05/11/2021,(81200) Medical Surgical Supplies & Equipment,(id:42367) Clinical Imaging & Med Physics,DIGITIMER LTD,id:14587141    , 672.00
Department of Health,Guys and St Thomas NHS Foundation Trust,05/11/2021,(81200) Medical Surgical Supplies & Equipment,(id:42367) Clinical Imaging & Med Physics,BARD LTD,id:14554532    , 624.00
Department of Health,Guys and St Thomas NHS Foundation Trust,26/11/2021,(81200) Medical Surgical Supplies & Equipment,(id:42367) Clinical Imaging & Med Physics,BOSTON SCIENTIFIC LTD,id:14603419 ,1920.00
Department of Health,Guys and St Thomas NHS Foundation Trust,05/11/2021,(81200) Medical Surgical Supplies & Equipment,(id:42367) Clinical Imaging & Med Physics,VOLCANO EUROPE BVBA/SPRL,id:14580379   , 834.00
Department of Health,Guys and St Thomas NHS Foundation Trust,05/11/2021,(81235) Medical Surgical Supplies & Equipment,(id:42367) Clinical Imaging & Med Physics,BOSTON SCIENTIFIC LTD,id:14551886 , 282.00
Department of Health,Guys and St Thomas NHS Foundation Trust,05/11/2021,(81235) Medical Surgical Supplies & Equipment,(id:42367) Clinical Imaging & Med Physics,BOSTON SCIENTIFIC LTD,id:14531503 ,  84.00
Department of Health,Guys and St Thomas NHS Foundation Trust,05/11/2021,(81230) Medical Surgical Supplies & Equipment,(id:42367) Clinical Imaging & Med Physics,TERUMO UK LTD,id:14584120    , 126.00
Department of Health,Guys and St Thomas NHS Foundation Trust,05/11/2021,(81230) Medical Surgical Supplies & Equipment,(id:42367) Clinical Imaging & Med Physics,MEDTRONIC LTD,id:14539298    ,1140.00
Department of Health,Guys and St Thomas NHS Foundation Trust,12/11/2021,(81230) Medical Surgical Supplies & Equipment,(id:42367) Clinical Imaging & Med Physics,COOK UK LTD,id:14578785 , 115.20
Department of Health,Guys and St Thomas NHS Foundation Trust,26/11/2021,(81225) Medical Surgical Supplies & Equipment,(id:42367) Clinical Imaging & Med Physics,NHS SUPPLY CHAIN (MAIDSTONE),id:14593975    ,  25.92
Department of Health,Guys and St Thomas NHS Foundation Trust,05/11/2021,(84600) Establishment,(id:42367) Clinical Imaging & Med Physics,CLARITY TRAVEL MANAGEMENT,id:14594275 ,  59.81
Department of Health,Guys and St Thomas NHS Foundation Trust,26/11/2021,(83410) Office Equipment,(id:42366) Clinical Imaging & Med Physics,RICOH UK LTD,id:14642827 , 133.67
Department of Health,Guys and St Thomas NHS Foundation Trust,26/11/2021,(83400) Office Equipment,(id:42366) Clinical Imaging & Med Physics,NHS SUPPLY CHAIN (MAIDSTONE),id:14577034, 103.20
Department of Health,Guys and St Thomas NHS Foundation Trust,19/11/2021,(81500) X Ray Equipment Purchase,(id:4187419) Clinical Imaging & Med Physics,ADVANCED ACCELERATOR APPLICATIONS (UK & IRELAND) LTD,id:14643114 ,8861.24
Department of Health,Guys and St Thomas NHS Foundation Trust,19/11/2021,(83400) Office Equipment,(id:42372) Clinical Imaging & Med Physics,BAYER PLC,id:14610554    ,2112.00
Department of Health,Guys and St Thomas NHS Foundation Trust,26/11/2021,(83400) Office Equipment,(id:42372) Clinical Imaging & Med Physics,NHS SUPPLY CHAIN (MAIDSTONE),id:14577034,  35.26
Department of Health,Guys and St Thomas NHS Foundation Trust,12/11/2021,(82800) Bedding & Linen,(id:42372) Clinical Imaging & Med Physics,NHS SUPPLY CHAIN (MAIDSTONE),id:14555946 ,  23.82
Department of Health,Guys and St Thomas NHS Foundation Trust,26/11/2021,(82800) Bedding & Linen,(id:42372) Clinical Imaging & Med Physics,NHS SUPPLY CHAIN (MAIDSTONE),id:14593975 ,  91.66
Department of Health,Guys and St Thomas NHS Foundation Trust,30/11/2021,(52062) Radiographers,(id:42372) Clinical Imaging & Med Physics,PRICEWATERHOUSECOOPERS LLP,id:14685254,1263.68
Department of Health,Guys and St Thomas NHS Foundation Trust,30/11/2021,(52062) Radiographers,(id:42372) Clinical Imaging & Med Physics,PRICEWATERHOUSECOOPERS LLP,id:14686482,1263.68
Department of Health,Guys and St Thomas NHS Foundation Trust,17/11/2021,(81700) Lab Equipment Purchase,(id:42372) Clinical Imaging & Med Physics,NHS SUPPLY CHAIN (MAIDSTONE),id:14617322    ,  33.86
Department of Health,Guys and St Thomas NHS Foundation Trust,12/11/2021,(81275) Medical Surgical Supplies & Equipment,(id:42372) Clinical Imaging & Med Physics,GE HEALTHCARE (50652318),id:14602789   ,    -1506.00
Department of Health,Guys and St Thomas NHS Foundation Trust,19/11/2021,(81275) Medical Surgical Supplies & Equipment,(id:42372) Clinical Imaging & Med Physics,GE HEALTHCARE UK LTD:00475800,id:14570594   , 737.51
Department of Health,Guys and St Thomas NHS Foundation Trust,12/11/2021,(81500) X Ray Equipment Purchase,(id:42372) Clinical Imaging & Med Physics,CURIUM PHARMA UK LTD,id:14581374,1602.00
Department of Health,Guys and St Thomas NHS Foundation Trust,05/11/2021,(81500) X Ray Equipment Purchase,(id:42372) Clinical Imaging & Med Physics,NITRITEX LTD,id:14591495   , 718.63
Department of Health,Guys and St Thomas NHS Foundation Trust,19/11/2021,(81200) Medical Surgical Supplies & Equipment,(id:5336419) Clinical Imaging & Med Physics,VARIAN MEDICAL SYSTEMS UK LTD,id:14629937 ,3996.00
Department of Health,Guys and St Thomas NHS Foundation Trust,26/11/2021,(84500) Establishment,(id:42385) Clinical Imaging & Med Physics,CDP  PRINT MANAGEMENT,id:14642454,  18.00
Department of Health,Guys and St Thomas NHS Foundation Trust,12/11/2021,(81400) Medical Surgical Supplies & Equipment,(id:42379) Clinical Imaging & Med Physics,SOLUS MEDICAL LTD,id:14614295,1195.81
Department of Health,Guys and St Thomas NHS Foundation Trust,26/11/2021,(81500) X Ray Equipment Purchase,(id:42378) Clinical Imaging & Med Physics,ONCOLOGY SYSTEMS LTD,id:14660545, 777.60
Department of Health,Guys and St Thomas NHS Foundation Trust,16/11/2021,(52062) Radiographers,(id:42377) Clinical Imaging & Med Physics,PRICEWATERHOUSECOOPERS LLP,id:14635025,2506.98
Department of Health,Guys and St Thomas NHS Foundation Trust,05/11/2021,(84600) Establishment,(id:42376) Clinical Imaging & Med Physics,CLARITY TRAVEL MANAGEMENT,id:14594276 , 524.44
Department of Health,Guys and St Thomas NHS Foundation Trust,05/11/2021,(84600) Establishment,(id:42374) Clinical Imaging & Med Physics,CLARITY TRAVEL MANAGEMENT,id:14594275 ,  43.02
Department of Health,Guys and St Thomas NHS Foundation Trust,26/11/2021,(83410) Office Equipment,(id:42373) Clinical Imaging & Med Physics,RICOH UK LTD,id:14642827 , 105.67
Department of Health,Guys and St Thomas NHS Foundation Trust,19/11/2021,(81200) Medical Surgical Supplies & Equipment,(id:1348419) Clinical Imaging & Med Physics,BENTLEY INNOMED GMBH,id:14644854,1020.00
Department of Health,Guys and St Thomas NHS Foundation Trust,26/11/2021,(81700) Lab Equipment Purchase,(id:1348419) Clinical Imaging & Med Physics,NHS SUPPLY CHAIN (MAIDSTONE),id:14593975  ,  36.35
Department of Health,Guys and St Thomas NHS Foundation Trust,26/11/2021,(84500) Establishment,(id:42256) Integrated Local Services,CDP  PRINT MANAGEMENT,id:14642475,  37.70
Department of Health,Guys and St Thomas NHS Foundation Trust,26/11/2021,(84500) Establishment,(id:42255) Integrated Local Services,CDP  PRINT MANAGEMENT,id:14642434,  15.50
Department of Health,Guys and St Thomas NHS Foundation Trust,26/11/2021,(83400) Office Equipment,(id:42255) Integrated Local Services,NHS SUPPLY CHAIN (MAIDSTONE),id:14593975,  17.06
Department of Health,Guys and St Thomas NHS Foundation Trust,19/11/2021,(83410) Office Equipment,(id:42255) Integrated Local Services,RICOH UK LTD,id:14642830 , 864.84
Department of Health,Guys and St Thomas NHS Foundation Trust,12/11/2021,(82000) Provisions & Kitchens,(id:42255) Integrated Local Services,NHS SUPPLY CHAIN (MAIDSTONE),id:14555946,   7.74
Department of Health,Guys and St Thomas NHS Foundation Trust,12/11/2021,(82800) Bedding & Linen,(id:590596) Integrated Local Services,NHS SUPPLY CHAIN (MAIDSTONE),id:14555946,  60.30
Department of Health,Guys and St Thomas NHS Foundation Trust,26/11/2021,(83410) Office Equipment,(id:590591) Integrated Local Services,RICOH UK LTD,id:14642827, 138.22
Department of Health,Guys and St Thomas NHS Foundation Trust,26/11/2021,(83410) Office Equipment,(id:590590) Integrated Local Services,RICOH UK LTD,id:14642827, 188.38
Department of Health,Guys and St Thomas NHS Foundation Trust,26/11/2021,(83400) Office Equipment,(id:590585) Integrated Local Services,NHS SUPPLY CHAIN (MAIDSTONE),id:14577034    , 456.00
Department of Health,Guys and St Thomas NHS Foundation Trust,26/11/2021,(84500) Establishment,(id:590464) Integrated Local Services,CDP  PRINT MANAGEMENT,id:14642475    ,  10.30
Department of Health,Guys and St Thomas NHS Foundation Trust,26/11/2021,(83410) Office Equipment,(id:590432) Integrated Local Services,RICOH UK LTD,id:14642827, 133.67
Department of Health,Guys and St Thomas NHS Foundation Trust,05/11/2021,(81200) Medical Surgical Supplies & Equipment,(id:590574) Integrated Local Services,NHS SUPPLY CHAIN (MAIDSTONE),id:14526935   ,  86.06
Department of Health,Guys and St Thomas NHS Foundation Trust,26/11/2021,(82000) Provisions & Kitchens,(id:590574) Integrated Local Services,NHS SUPPLY CHAIN (MAIDSTONE),id:14577034    ,  11.97
Department of Health,Guys and St Thomas NHS Foundation Trust,26/11/2021,(84500) Establishment,(id:590601) Integrated Local Services,CDP  PRINT MANAGEMENT,id:14642474    ,   3.60
Department of Health,Guys and St Thomas NHS Foundation Trust,26/11/2021,(81200) Medical Surgical Supplies & Equipment,(id:590579) Integrated Local Services,NHS SUPPLY CHAIN (MAIDSTONE),id:14577034   , 299.01
Department of Health,Guys and St Thomas NHS Foundation Trust,05/11/2021,(50562) Qualified Nursing Staff,(id:1885424) Integrated Local Services,MSI GROUP LTD,id:14598293 ,1497.15
Department of Health,Guys and St Thomas NHS Foundation Trust,05/11/2021,(50562) Qualified Nursing Staff,(id:1885424) Integrated Local Services,MSI GROUP LTD,id:14597823 ,1701.73
Department of Health,Guys and St Thomas NHS Foundation Trust,30/11/2021,(51832) Physiotherapists,(id:590523) Integrated Local Services,PRICEWATERHOUSECOOPERS LLP,id:14685074 ,1785.39
Department of Health,Guys and St Thomas NHS Foundation Trust,26/11/2021,(84500) Establishment,(id:590492) Integrated Local Services,CDP  PRINT MANAGEMENT,id:14642434    ,  19.10
Department of Health,Guys and St Thomas NHS Foundation Trust,15/11/2021,(50202) Consultants,(id:2357419) Integrated Local Services,PRICEWATERHOUSECOOPERS LLP,id:14635015,2658.42
Department of Health,Guys and St Thomas NHS Foundation Trust,26/11/2021,(83400) Office Equipment,(id:1913419) Integrated Local Services,NHS SUPPLY CHAIN (MAIDSTONE),id:14593975   ,  15.28
Department of Health,Guys and St Thomas NHS Foundation Trust,16/11/2021,(51862) Physiotherapists,(id:684419) Integrated Local Services,PRICEWATERHOUSECOOPERS LLP,id:14635025 ,1161.05
Department of Health,Guys and St Thomas NHS Foundation Trust,30/11/2021,(51862) Physiotherapists,(id:684419) Integrated Local Services,PRICEWATERHOUSECOOPERS LLP,id:14685074 ,1161.05
Department of Health,Guys and St Thomas NHS Foundation Trust,16/11/2021,(51872) Physiotherapists,(id:684419) Integrated Local Services,PRICEWATERHOUSECOOPERS LLP,id:14635025 ,1171.84
Department of Health,Guys and St Thomas NHS Foundation Trust,30/11/2021,(51872) Physiotherapists,(id:684419) Integrated Local Services,PRICEWATERHOUSECOOPERS LLP,id:14686482 ,3355.83
Department of Health,Guys and St Thomas NHS Foundation Trust,17/11/2021,(81100) Dressings,(id:590522) Integrated Local Services,NHS SUPPLY CHAIN (MAIDSTONE),id:14617322 , 317.00
Department of Health,Guys and St Thomas NHS Foundation Trust,05/11/2021,(81700) Lab Equipment Purchase,(id:590522) Integrated Local Services,NHS SUPPLY CHAIN (MAIDSTONE),id:14526935   ,  64.85
Department of Health,Guys and St Thomas NHS Foundation Trust,26/11/2021,(82800) Bedding & Linen,(id:590520) Integrated Local Services,NHS SUPPLY CHAIN (MAIDSTONE),id:14593975,  43.13
Department of Health,Guys and St Thomas NHS Foundation Trust,17/11/2021,(81100) Dressings,(id:590473) Integrated Local Services,NHS SUPPLY CHAIN (MAIDSTONE),id:14617322 ,  71.41
Department of Health,Guys and St Thomas NHS Foundation Trust,12/11/2021,(82800) Bedding & Linen,(id:590473) Integrated Local Services,NHS SUPPLY CHAIN (MAIDSTONE),id:14555946,  41.47
Department of Health,Guys and St Thomas NHS Foundation Trust,26/11/2021,(82000) Provisions & Kitchens,(id:590473) Integrated Local Services,NHS SUPPLY CHAIN (MAIDSTONE),id:14577034    ,  14.20
Department of Health,Guys and St Thomas NHS Foundation Trust,12/11/2021,(83400) Office Equipment,(id:590471) Integrated Local Services,NHS SUPPLY CHAIN (MAIDSTONE),id:14555946    ,   2.03
Department of Health,Guys and St Thomas NHS Foundation Trust,19/11/2021,(50552) Qualified Nursing Staff,(id:590471) Integrated Local Services,NURSING 2000 LTD,id:14624099    ,1241.98
Department of Health,Guys and St Thomas NHS Foundation Trust,05/11/2021,(50552) Qualified Nursing Staff,(id:590471) Integrated Local Services,NURSING 2000 LTD,id:14587569    , 727.38
Department of Health,Guys and St Thomas NHS Foundation Trust,26/11/2021,(50552) Qualified Nursing Staff,(id:590471) Integrated Local Services,NURSING 2000 LTD,id:14646380    ,1259.32
Department of Health,Guys and St Thomas NHS Foundation Trust,26/11/2021,(84500) Establishment,(id:590562) Integrated Local Services,CDP  PRINT MANAGEMENT,id:14642475    ,  22.70
Department of Health,Guys and St Thomas NHS Foundation Trust,19/11/2021,(86300) Healthcare from non-NHS bodies,(id:590477) Integrated Local Services,NHS SUPPLY CHAIN (MAIDSTONE),id:14636154,9429.01
Department of Health,Guys and St Thomas NHS Foundation Trust,17/11/2021,(81200) Medical Surgical Supplies & Equipment,(id:590463) Integrated Local Services,NHS SUPPLY CHAIN (MAIDSTONE),id:14617322   ,  24.00
Department of Health,Guys and St Thomas NHS Foundation Trust,19/11/2021,(50562) Qualified Nursing Staff,(id:590463) Integrated Local Services,COYLE PERSONNEL PLC,id:14649827 ,1750.00
Department of Health,Guys and St Thomas NHS Foundation Trust,19/11/2021,(50562) Qualified Nursing Staff,(id:590463) Integrated Local Services,COYLE PERSONNEL PLC,id:14649808 ,1750.00
Department of Health,Guys and St Thomas NHS Foundation Trust,12/11/2021,(50562) Qualified Nursing Staff,(id:590463) Integrated Local Services,COYLE PERSONNEL PLC,id:14624186 ,1400.00
Department of Health,Guys and St Thomas NHS Foundation Trust,26/11/2021,(50562) Qualified Nursing Staff,(id:590463) Integrated Local Services,COYLE PERSONNEL PLC,id:14670924 , 630.00
Department of Health,Guys and St Thomas NHS Foundation Trust,26/11/2021,(50562) Qualified Nursing Staff,(id:590463) Integrated Local Services,COYLE PERSONNEL PLC,id:14669143 ,1400.00
Department of Health,Guys and St Thomas NHS Foundation Trust,26/11/2021,(50562) Qualified Nursing Staff,(id:590463) Integrated Local Services,COYLE PERSONNEL PLC,id:14670996 ,1750.00
Department of Health,Guys and St Thomas NHS Foundation Trust,26/11/2021,(82000) Provisions & Kitchens,(id:590527) Integrated Local Services,NHS SUPPLY CHAIN (MAIDSTONE),id:14577034    ,  47.02
Department of Health,Guys and St Thomas NHS Foundation Trust,26/11/2021,(82800) Bedding & Linen,(id:590527) Integrated Local Services,NHS SUPPLY CHAIN (MAIDSTONE),id:14577034, 161.76
Department of Health,Guys and St Thomas NHS Foundation Trust,17/11/2021,(82800) Bedding & Linen,(id:590527) Integrated Local Services,NHS SUPPLY CHAIN (MAIDSTONE),id:14617322, 219.23
Department of Health,Guys and St Thomas NHS Foundation Trust,12/11/2021,(83400) Office Equipment,(id:590527) Integrated Local Services,NHS SUPPLY CHAIN (MAIDSTONE),id:14555946    , 119.79
Department of Health,Guys and St Thomas NHS Foundation Trust,26/11/2021,(81100) Dressings,(id:590527) Integrated Local Services,NHS SUPPLY CHAIN (MAIDSTONE),id:14593975 , 206.86
Department of Health,Guys and St Thomas NHS Foundation Trust,26/11/2021,(84500) Establishment,(id:590527) Integrated Local Services,CDP  PRINT MANAGEMENT,id:14642475    ,  18.60
Department of Health,Guys and St Thomas NHS Foundation Trust,26/11/2021,(81700) Lab Equipment Purchase,(id:590527) Integrated Local Services,NHS SUPPLY CHAIN (MAIDSTONE),id:14593975   ,  21.36
Department of Health,Guys and St Thomas NHS Foundation Trust,26/11/2021,(83410) Office Equipment,(id:590527) Integrated Local Services,RICOH UK LTD,id:14642828,  10.68
Department of Health,Guys and St Thomas NHS Foundation Trust,17/11/2021,(82800) Bedding & Linen,(id:903421) Integrated Local Services,NHS SUPPLY CHAIN (MAIDSTONE),id:14617322,  21.56
Department of Health,Guys and St Thomas NHS Foundation Trust,17/11/2021,(81700) Lab Equipment Purchase,(id:903421) Integrated Local Services,NHS SUPPLY CHAIN (MAIDSTONE),id:14617322   ,  25.69
Department of Health,Guys and St Thomas NHS Foundation Trust,26/11/2021,(89270) Establishment,(id:903421) Integrated Local Services,SELDOC LTD,id:14650984,2280.00
Department of Health,Guys and St Thomas NHS Foundation Trust,12/11/2021,(81200) Medical Surgical Supplies & Equipment,(id:903421) Integrated Local Services,NHS SUPPLY CHAIN (MAIDSTONE),id:14555946   ,3775.89
Department of Health,Guys and St Thomas NHS Foundation Trust,26/11/2021,(83410) Office Equipment,(id:903421) Integrated Local Services,RICOH UK LTD,id:14642827, 183.06
Department of Health,Guys and St Thomas NHS Foundation Trust,15/11/2021,(51832) Physiotherapists,(id:699421) Integrated Local Services,PRICEWATERHOUSECOOPERS LLP,id:14635015 , 577.59
Department of Health,Guys and St Thomas NHS Foundation Trust,26/11/2021,(84500) Establishment,(id:590491) Integrated Local Services,CDP  PRINT MANAGEMENT,id:14642475    ,  10.80
Department of Health,Guys and St Thomas NHS Foundation Trust,05/11/2021,(80040) Drug Costs,(id:590491) Integrated Local Services,NHS BUSINESS SERVICES AUTHORITY,id:13795717  , 753.61
Department of Health,Guys and St Thomas NHS Foundation Trust,26/11/2021,(82800) Bedding & Linen,(id:590491) Integrated Local Services,NHS SUPPLY CHAIN (MAIDSTONE),id:14593975,  50.18
Department of Health,Guys and St Thomas NHS Foundation Trust,26/11/2021,(86300) Healthcare from non-NHS bodies,(id:5205419) Integrated Local Services,HOMELINK HEALTHCARE LTD,id:14625597    ,   105552.00
Department of Health,Guys and St Thomas NHS Foundation Trust,26/11/2021,(82800) Bedding & Linen,(id:5205419) Integrated Local Services,NHS SUPPLY CHAIN (MAIDSTONE),id:14593975    ,  43.13
Department of Health,Guys and St Thomas NHS Foundation Trust,17/11/2021,(81700) Lab Equipment Purchase,(id:5205419) Integrated Local Services,NHS SUPPLY CHAIN (MAIDSTONE),id:14617322  , 229.84
Department of Health,Guys and St Thomas NHS Foundation Trust,17/11/2021,(81200) Medical Surgical Supplies & Equipment,(id:5205419) Integrated Local Services,NHS SUPPLY CHAIN (MAIDSTONE),id:14617322  ,1573.37
Department of Health,Guys and St Thomas NHS Foundation Trust,19/11/2021,(50552) Qualified Nursing Staff,(id:4479420) Integrated Local Services,NURSING 2000 LTD,id:14623870   , 594.88
Department of Health,Guys and St Thomas NHS Foundation Trust,12/11/2021,(50552) Qualified Nursing Staff,(id:4263423) Integrated Local Services,NURSING 2000 LTD,id:14623930   ,1436.88
Department of Health,Guys and St Thomas NHS Foundation Trust,26/11/2021,(50552) Qualified Nursing Staff,(id:4263423) Integrated Local Services,NURSING 2000 LTD,id:14646483   ,1335.76
Department of Health,Guys and St Thomas NHS Foundation Trust,12/11/2021,(83610) IT Costs,(id:4273419) Integrated Care Management,COMPUTACENTER UK LTD,id:14370134   , 752.21
Department of Health,Guys and St Thomas NHS Foundation Trust,12/11/2021,(83400) Office Equipment,(id:42518) Evelina Womens Services,NHS SUPPLY CHAIN (MAIDSTONE),id:14555946  ,  32.28
Department of Health,Guys and St Thomas NHS Foundation Trust,12/11/2021,(82800) Bedding & Linen,(id:42518) Evelina Womens Services,NHS SUPPLY CHAIN (MAIDSTONE),id:14555946   ,  17.03
Department of Health,Guys and St Thomas NHS Foundation Trust,26/11/2021,(82800) Bedding & Linen,(id:42518) Evelina Womens Services,NHS SUPPLY CHAIN (MAIDSTONE),id:14577034   ,  11.35
Department of Health,Guys and St Thomas NHS Foundation Trust,26/11/2021,(81200) Medical Surgical Supplies & Equipment,(id:42518) Evelina Womens Services,NHS SUPPLY CHAIN (MAIDSTONE),id:14577034 ,  92.12
Department of Health,Guys and St Thomas NHS Foundation Trust,12/11/2021,(81275) Medical Surgical Supplies & Equipment,(id:42518) Evelina Womens Services,NHS SUPPLY CHAIN (MAIDSTONE),id:14555946 ,   5.34
Department of Health,Guys and St Thomas NHS Foundation Trust,05/11/2021,(82600) Uniforms & Clothing,(id:42517) Evelina Womens Services,NHS SUPPLY CHAIN (MAIDSTONE),id:14526935    , 239.21
Department of Health,Guys and St Thomas NHS Foundation Trust,05/11/2021,(82000) Provisions & Kitchens,(id:42517) Evelina Womens Services,NHS SUPPLY CHAIN (MAIDSTONE),id:14526935  ,  31.80
Department of Health,Guys and St Thomas NHS Foundation Trust,05/11/2021,(80010) Drug Costs,(id:42517) Evelina Womens Services,PERSONAL HOMECARE PHARMACY LTD,id:14573894 ,    58653.11
Department of Health,Guys and St Thomas NHS Foundation Trust,05/11/2021,(80100) Drug Costs,(id:42517) Evelina Womens Services,BOC LTD :02107500,id:14336595    ,1028.79
Department of Health,Guys and St Thomas NHS Foundation Trust,26/11/2021,(84657) Establishment,(id:42517) Evelina Womens Services,IRON MOUNTAIN (UK) LTD,id:14590092 ,1215.11
Department of Health,Guys and St Thomas NHS Foundation Trust,19/11/2021,(83400) Office Equipment,(id:42514) Evelina Womens Services,ASSIST SECURITY LIMITED,id:14641054  ,1800.00
Department of Health,Guys and St Thomas NHS Foundation Trust,17/11/2021,(81200) Medical Surgical Supplies & Equipment,(id:42513) Evelina Womens Services,NHS SUPPLY CHAIN (MAIDSTONE),id:14617322 , 860.06
Department of Health,Guys and St Thomas NHS Foundation Trust,26/11/2021,(81200) Medical Surgical Supplies & Equipment,(id:42513) Evelina Womens Services,NHS SUPPLY CHAIN (MAIDSTONE),id:14593975 , 604.80
Department of Health,Guys and St Thomas NHS Foundation Trust,12/11/2021,(83400) Office Equipment,(id:42513) Evelina Womens Services,NHS SUPPLY CHAIN (MAIDSTONE),id:14555946  , 109.95
Department of Health,Guys and St Thomas NHS Foundation Trust,05/11/2021,(81275) Medical Surgical Supplies & Equipment,(id:42513) Evelina Womens Services,NHS SUPPLY CHAIN (MAIDSTONE),id:14526935 ,  34.26
Department of Health,Guys and St Thomas NHS Foundation Trust,12/11/2021,(50522) Unqualified Nursing Staff,(id:42509) Evelina Womens Services,GLOBE LOCUMS LTD,id:14624029, 265.19
Department of Health,Guys and St Thomas NHS Foundation Trust,05/11/2021,(81200) Medical Surgical Supplies & Equipment,(id:42509) Evelina Womens Services,AQUILANT LTD,id:14539035  , 318.24
Department of Health,Guys and St Thomas NHS Foundation Trust,26/11/2021,(81200) Medical Surgical Supplies & Equipment,(id:42506) Evelina Womens Services,NHS SUPPLY CHAIN (MAIDSTONE),id:14577034 , 404.62
Department of Health,Guys and St Thomas NHS Foundation Trust,26/11/2021,(81700) Lab Equipment Purchase,(id:42506) Evelina Womens Services,NHS SUPPLY CHAIN (MAIDSTONE),id:14577034 , 694.20
Department of Health,Guys and St Thomas NHS Foundation Trust,26/11/2021,(81100) Dressings,(id:42506) Evelina Womens Services,NHS SUPPLY CHAIN (MAIDSTONE),id:14593975    ,   8.99
Department of Health,Guys and St Thomas NHS Foundation Trust,26/11/2021,(81550) X Ray Equipment Purchase,(id:42506) Evelina Womens Services,NHS SUPPLY CHAIN (MAIDSTONE),id:14593975    , 151.20
Department of Health,Guys and St Thomas NHS Foundation Trust,12/11/2021,(82800) Bedding & Linen,(id:42506) Evelina Womens Services,NHS SUPPLY CHAIN (MAIDSTONE),id:14555946   , 148.26
Department of Health,Guys and St Thomas NHS Foundation Trust,17/11/2021,(82800) Bedding & Linen,(id:42506) Evelina Womens Services,NHS SUPPLY CHAIN (MAIDSTONE),id:14617322   ,  56.81
Department of Health,Guys and St Thomas NHS Foundation Trust,26/11/2021,(82800) Bedding & Linen,(id:42486) Evelina Womens Services,NHS SUPPLY CHAIN (MAIDSTONE),id:14593975   ,  21.56
Department of Health,Guys and St Thomas NHS Foundation Trust,26/11/2021,(89600) Non-Healthcare from other NHS bodies,(id:42486) Evelina Womens Services,NHS BLOOD AND TRANSPLANT,id:14618834 ,1433.62
Department of Health,Guys and St Thomas NHS Foundation Trust,30/11/2021,(52072) Radiographers,(id:42486) Evelina Womens Services,PRICEWATERHOUSECOOPERS LLP,id:14686482  ,1906.11
Department of Health,Guys and St Thomas NHS Foundation Trust,26/11/2021,(84500) Establishment,(id:42497) Evelina Womens Services,CDP  PRINT MANAGEMENT,id:14642434  ,  12.40
Department of Health,Guys and St Thomas NHS Foundation Trust,19/11/2021,(50562) Qualified Nursing Staff,(id:42497) Evelina Womens Services,CARE PROVIDERS HEALTHCARE,id:14646628   ,1811.11
Department of Health,Guys and St Thomas NHS Foundation Trust,05/11/2021,(81275) Medical Surgical Supplies & Equipment,(id:42496) Evelina Womens Services,NHS SUPPLY CHAIN (MAIDSTONE),id:14526935 ,  10.68
Department of Health,Guys and St Thomas NHS Foundation Trust,12/11/2021,(81275) Medical Surgical Supplies & Equipment,(id:42496) Evelina Womens Services,NHS SUPPLY CHAIN (MAIDSTONE),id:14555946 ,   5.34
Department of Health,Guys and St Thomas NHS Foundation Trust,26/11/2021,(81200) Medical Surgical Supplies & Equipment,(id:42496) Evelina Womens Services,NHS SUPPLY CHAIN (MAIDSTONE),id:14593975 , 160.11
Department of Health,Guys and St Thomas NHS Foundation Trust,12/11/2021,(81000) Surgical Appliances,(id:42495) Evelina Womens Services,TALAR MADE ORTHOTICS LTD,id:14617748   ,  28.52
Department of Health,Guys and St Thomas NHS Foundation Trust,26/11/2021,(82700) Uniforms & Clothing,(id:42493) Evelina Womens Services,NHS SUPPLY CHAIN (MAIDSTONE),id:14593975    ,  21.84
Department of Health,Guys and St Thomas NHS Foundation Trust,12/11/2021,(82000) Provisions & Kitchens,(id:42493) Evelina Womens Services,NHS SUPPLY CHAIN (MAIDSTONE),id:14555946  ,  11.26
Department of Health,Guys and St Thomas NHS Foundation Trust,05/11/2021,(81100) Dressings,(id:42493) Evelina Womens Services,NHS SUPPLY CHAIN (MAIDSTONE),id:14526935    ,  88.11
Department of Health,Guys and St Thomas NHS Foundation Trust,26/11/2021,(81200) Medical Surgical Supplies & Equipment,(id:42493) Evelina Womens Services,NHS SUPPLY CHAIN (MAIDSTONE),id:14577034 , 163.46
Department of Health,Guys and St Thomas NHS Foundation Trust,12/11/2021,(81200) Medical Surgical Supplies & Equipment,(id:42493) Evelina Womens Services,NHS SUPPLY CHAIN (MAIDSTONE),id:14555946 , 624.82
Department of Health,Guys and St Thomas NHS Foundation Trust,05/11/2021,(81700) Lab Equipment Purchase,(id:42493) Evelina Womens Services,NHS SUPPLY CHAIN (MAIDSTONE),id:14526935 ,  55.15
Department of Health,Guys and St Thomas NHS Foundation Trust,05/11/2021,(82000) Provisions & Kitchens,(id:42492) Evelina Womens Services,NHS SUPPLY CHAIN (MAIDSTONE),id:14526935  , 208.88
Department of Health,Guys and St Thomas NHS Foundation Trust,12/11/2021,(83400) Office Equipment,(id:42492) Evelina Womens Services,NHS SUPPLY CHAIN (MAIDSTONE),id:14555946  , 960.34
Department of Health,Guys and St Thomas NHS Foundation Trust,05/11/2021,(81100) Dressings,(id:42492) Evelina Womens Services,NHS SUPPLY CHAIN (MAIDSTONE),id:14526935    ,1794.56
Department of Health,Guys and St Thomas NHS Foundation Trust,05/11/2021,(81225) Medical Surgical Supplies & Equipment,(id:42492) Evelina Womens Services,NHS SUPPLY CHAIN (MAIDSTONE),id:14526935 , 152.28
Department of Health,Guys and St Thomas NHS Foundation Trust,26/11/2021,(81700) Lab Equipment Purchase,(id:42492) Evelina Womens Services,NHS SUPPLY CHAIN (MAIDSTONE),id:14593975 ,2756.31
Department of Health,Guys and St Thomas NHS Foundation Trust,12/11/2021,(81700) Lab Equipment Purchase,(id:42492) Evelina Womens Services,NHS SUPPLY CHAIN (MAIDSTONE),id:14555946 ,   4.48
Department of Health,Guys and St Thomas NHS Foundation Trust,05/11/2021,(81700) Lab Equipment Purchase,(id:42492) Evelina Womens Services,NHS SUPPLY CHAIN (MAIDSTONE),id:14526935 ,  22.82
Department of Health,Guys and St Thomas NHS Foundation Trust,12/11/2021,(82700) Uniforms & Clothing,(id:42491) Evelina Womens Services,NHS SUPPLY CHAIN (MAIDSTONE),id:14555946    ,  43.68
Department of Health,Guys and St Thomas NHS Foundation Trust,12/11/2021,(83400) Office Equipment,(id:42491) Evelina Womens Services,NHS SUPPLY CHAIN (MAIDSTONE),id:14555946  ,  40.21
Department of Health,Guys and St Thomas NHS Foundation Trust,05/11/2021,(83400) Office Equipment,(id:42491) Evelina Womens Services,NHS SUPPLY CHAIN (MAIDSTONE),id:14526935  ,  98.05
Department of Health,Guys and St Thomas NHS Foundation Trust,05/11/2021,(82800) Bedding & Linen,(id:42491) Evelina Womens Services,NHS SUPPLY CHAIN (MAIDSTONE),id:14526935   , 111.44
Department of Health,Guys and St Thomas NHS Foundation Trust,26/11/2021,(81225) Medical Surgical Supplies & Equipment,(id:42491) Evelina Womens Services,NHS SUPPLY CHAIN (MAIDSTONE),id:14577034 ,   3.60
Department of Health,Guys and St Thomas NHS Foundation Trust,17/11/2021,(81700) Lab Equipment Purchase,(id:42491) Evelina Womens Services,NHS SUPPLY CHAIN (MAIDSTONE),id:14617322 ,  17.28
Department of Health,Guys and St Thomas NHS Foundation Trust,12/11/2021,(89640) Non-Healthcare from NHS Trusts,(id:42504) Evelina Womens Services,IMPERIAL COLLEGE HEALTHCARE NHS TRUST,id:14627254    ,-660.00
Department of Health,Guys and St Thomas NHS Foundation Trust,26/11/2021,(82000) Provisions & Kitchens,(id:42348) Evelina Central,NHS SUPPLY CHAIN (MAIDSTONE),id:14577034,  37.40
Department of Health,Guys and St Thomas NHS Foundation Trust,12/11/2021,(81100) Dressings,(id:42348) Evelina Central,NHS SUPPLY CHAIN (MAIDSTONE),id:14555946  , 308.49
Department of Health,Guys and St Thomas NHS Foundation Trust,26/11/2021,(81100) Dressings,(id:42348) Evelina Central,NHS SUPPLY CHAIN (MAIDSTONE),id:14577034  , 114.29
Department of Health,Guys and St Thomas NHS Foundation Trust,17/11/2021,(81200) Medical Surgical Supplies & Equipment,(id:42348) Evelina Central,NHS SUPPLY CHAIN (MAIDSTONE),id:14617322    , 940.58
Department of Health,Guys and St Thomas NHS Foundation Trust,12/11/2021,(81200) Medical Surgical Supplies & Equipment,(id:42348) Evelina Central,BAXTER HEALTHCARE LTD,id:14599994 ,2197.82
Department of Health,Guys and St Thomas NHS Foundation Trust,26/11/2021,(83400) Office Equipment,(id:42348) Evelina Central,NHS SUPPLY CHAIN (MAIDSTONE),id:14593975,  52.18
Department of Health,Guys and St Thomas NHS Foundation Trust,26/11/2021,(82800) Bedding & Linen,(id:42331) Evelina Central,NHS SUPPLY CHAIN (MAIDSTONE),id:14577034 , 120.30
Department of Health,Guys and St Thomas NHS Foundation Trust,17/11/2021,(82800) Bedding & Linen,(id:42331) Evelina Central,NHS SUPPLY CHAIN (MAIDSTONE),id:14617322 ,  64.74
Department of Health,Guys and St Thomas NHS Foundation Trust,26/11/2021,(83410) Office Equipment,(id:42325) Evelina Central,RICOH UK LTD,id:14642828 ,  67.44
Department of Health,Guys and St Thomas NHS Foundation Trust,26/11/2021,(84500) Establishment,(id:42316) Evelina Central,CDP  PRINT MANAGEMENT,id:14642454, 329.60
Department of Health,Guys and St Thomas NHS Foundation Trust,15/11/2021,(54062) Technical Officers,(id:590444) Evelina Community Services,PRICEWATERHOUSECOOPERS LLP,id:14635015   ,3830.39
Department of Health,Guys and St Thomas NHS Foundation Trust,26/11/2021,(81225) Medical Surgical Supplies & Equipment,(id:590444) Evelina Community Services,NHS SUPPLY CHAIN (MAIDSTONE),id:14593975  , 235.79
Department of Health,Guys and St Thomas NHS Foundation Trust,26/11/2021,(81225) Medical Surgical Supplies & Equipment,(id:590444) Evelina Community Services,SONOVA UK LTD,id:14650386  ,4918.32
Department of Health,Guys and St Thomas NHS Foundation Trust,05/11/2021,(81225) Medical Surgical Supplies & Equipment,(id:590550) Evelina Community Services,THE MOBILITY AIDS CENTRE LTD,id:14576536  , 600.00
Department of Health,Guys and St Thomas NHS Foundation Trust,12/11/2021,(81200) Medical Surgical Supplies & Equipment,(id:706420) Evelina Community Services,ROMPA,id:14621751,3370.80
Department of Health,Guys and St Thomas NHS Foundation Trust,12/11/2021,(84600) Establishment,(id:590548) Evelina Community Services,ETC VENUES LIMITED,id:14603974 ,1000.00
Department of Health,Guys and St Thomas NHS Foundation Trust,26/11/2021,(83410) Office Equipment,(id:590557) Evelina Community Services,RICOH UK LTD,id:14642828    , 335.53
Department of Health,Guys and St Thomas NHS Foundation Trust,26/11/2021,(82000) Provisions & Kitchens,(id:590446) Evelina Community Services,NHS SUPPLY CHAIN (MAIDSTONE),id:14593975   ,  33.12
Department of Health,Guys and St Thomas NHS Foundation Trust,05/11/2021,(81700) Lab Equipment Purchase,(id:590446) Evelina Community Services,NHS SUPPLY CHAIN (MAIDSTONE),id:14526935  , 132.00
Department of Health,Guys and St Thomas NHS Foundation Trust,12/11/2021,(82000) Provisions & Kitchens,(id:590541) Evelina Community Services,NHS SUPPLY CHAIN (MAIDSTONE),id:14555946   ,  27.82
Department of Health,Guys and St Thomas NHS Foundation Trust,17/11/2021,(83400) Office Equipment,(id:590539) Evelina Community Services,NHS SUPPLY CHAIN (MAIDSTONE),id:14617322   ,  14.08
Department of Health,Guys and St Thomas NHS Foundation Trust,26/11/2021,(82000) Provisions & Kitchens,(id:590539) Evelina Community Services,NHS SUPPLY CHAIN (MAIDSTONE),id:14593975   ,  36.34
Department of Health,Guys and St Thomas NHS Foundation Trust,05/11/2021,(82600) Uniforms & Clothing,(id:590537) Evelina Community Services,NHS SUPPLY CHAIN (MAIDSTONE),id:14526935,  25.25
Department of Health,Guys and St Thomas NHS Foundation Trust,05/11/2021,(82000) Provisions & Kitchens,(id:590417) Evelina Community Services,NHS SUPPLY CHAIN (MAIDSTONE),id:14526935   ,  30.84
Department of Health,Guys and St Thomas NHS Foundation Trust,12/11/2021,(50562) Qualified Nursing Staff,(id:590416) Evelina Community Services,ARTHUR RAI MEDICAL SERVICES LTD,id:14623902   ,1053.60
Department of Health,Guys and St Thomas NHS Foundation Trust,12/11/2021,(50562) Qualified Nursing Staff,(id:590416) Evelina Community Services,ARTHUR RAI MEDICAL SERVICES LTD,id:14624020   ,1053.60
Department of Health,Guys and St Thomas NHS Foundation Trust,26/11/2021,(50562) Qualified Nursing Staff,(id:590416) Evelina Community Services,ARTHUR RAI MEDICAL SERVICES LTD,id:14668963   ,1053.60
Department of Health,Guys and St Thomas NHS Foundation Trust,19/11/2021,(81200) Medical Surgical Supplies & Equipment,(id:2356419) Evelina Medicine & Neonatology,MEDTRONIC LTD,id:14598911  , 504.00
Department of Health,Guys and St Thomas NHS Foundation Trust,12/11/2021,(81100) Dressings,(id:2356419) Evelina Medicine & Neonatology,NHS SUPPLY CHAIN (MAIDSTONE),id:14555946,  37.26
Department of Health,Guys and St Thomas NHS Foundation Trust,12/11/2021,(50552) Qualified Nursing Staff,(id:2499420) Evelina Medicine & Neonatology,CONTINENTAL NURSE LTD,id:14629553   ,3128.87
Department of Health,Guys and St Thomas NHS Foundation Trust,05/11/2021,(50552) Qualified Nursing Staff,(id:2499420) Evelina Medicine & Neonatology,MSI GROUP LTD,id:14597827 , 328.71
Department of Health,Guys and St Thomas NHS Foundation Trust,19/11/2021,(50200) Consultants,(id:42349) Evelina Medicine & Neonatology,KINGS COLLEGE LONDON:03529700,id:14635722    ,5420.55
Department of Health,Guys and St Thomas NHS Foundation Trust,26/11/2021,(80010) Drug Costs,(id:42349) Evelina Medicine & Neonatology,BAXTER HEALTHCARE LTD,id:14583436   ,1506.40
Department of Health,Guys and St Thomas NHS Foundation Trust,26/11/2021,(80010) Drug Costs,(id:42349) Evelina Medicine & Neonatology,BAXTER HEALTHCARE LTD,id:14583495   ,    12980.63
Department of Health,Guys and St Thomas NHS Foundation Trust,19/11/2021,(81200) Medical Surgical Supplies & Equipment,(id:817420) Evelina Medicine & Neonatology,S-MED LTD,id:14632094  ,1680.00
Department of Health,Guys and St Thomas NHS Foundation Trust,19/11/2021,(81200) Medical Surgical Supplies & Equipment,(id:817420) Evelina Medicine & Neonatology,S-MED LTD,id:14632074  ,3816.00
Department of Health,Guys and St Thomas NHS Foundation Trust,19/11/2021,(50200) Consultants,(id:42335) Evelina Medicine & Neonatology,KINGS COLLEGE LONDON:03529700,id:14483274    ,5815.95
Department of Health,Guys and St Thomas NHS Foundation Trust,26/11/2021,(83410) Office Equipment,(id:42335) Evelina Medicine & Neonatology,RICOH UK LTD,id:14642827 , 104.50
Department of Health,Guys and St Thomas NHS Foundation Trust,12/11/2021,(83410) Office Equipment,(id:42335) Evelina Medicine & Neonatology,RICOH UK LTD,id:14546704 ,  35.95
Department of Health,Guys and St Thomas NHS Foundation Trust,05/11/2021,(89595) Non-Healthcare from Foundation Trusts,(id:42335) Evelina Medicine & Neonatology,UNIVERSITY COLLEGE LONDON HOSPITALS NHS FOUNDATION TRUST,id:14601847 ,3700.00
Department of Health,Guys and St Thomas NHS Foundation Trust,26/11/2021,(82700) Uniforms & Clothing,(id:42327) Evelina Medicine & Neonatology,NHS SUPPLY CHAIN (MAIDSTONE),id:14593975  ,  47.12
Department of Health,Guys and St Thomas NHS Foundation Trust,26/11/2021,(81200) Medical Surgical Supplies & Equipment,(id:42327) Evelina Medicine & Neonatology,NHS SUPPLY CHAIN (MAIDSTONE),id:14577034    ,8522.86
Department of Health,Guys and St Thomas NHS Foundation Trust,05/11/2021,(81200) Medical Surgical Supplies & Equipment,(id:42327) Evelina Medicine & Neonatology,ARDO MEDICAL LTD,id:14594156 , 530.40
Department of Health,Guys and St Thomas NHS Foundation Trust,05/11/2021,(81200) Medical Surgical Supplies & Equipment,(id:42327) Evelina Medicine & Neonatology,MEDACX LIMITED,id:14597772   ,1584.00
Department of Health,Guys and St Thomas NHS Foundation Trust,05/11/2021,(81200) Medical Surgical Supplies & Equipment,(id:42327) Evelina Medicine & Neonatology,CARDIAC SERVICES LTD,id:14584316  ,1783.20
Department of Health,Guys and St Thomas NHS Foundation Trust,17/11/2021,(81700) Lab Equipment Purchase,(id:42327) Evelina Medicine & Neonatology,NHS SUPPLY CHAIN (MAIDSTONE),id:14617322    ,  56.84
Department of Health,Guys and St Thomas NHS Foundation Trust,19/11/2021,(50470) Medical Training Grades,(id:42327) Evelina Medicine & Neonatology,KINGS COLLEGE LONDON:03529700,id:14483274  ,8059.22
Department of Health,Guys and St Thomas NHS Foundation Trust,26/11/2021,(81200) Medical Surgical Supplies & Equipment,(id:1196420) Evelina Medicine & Neonatology,DEXCOM INTERNATIONAL LTD,id:14124614 , 793.50
Department of Health,Guys and St Thomas NHS Foundation Trust,26/11/2021,(83400) Office Equipment,(id:1196420) Evelina Medicine & Neonatology,MEDTRONIC LTD,id:14259292   , 977.76
Department of Health,Guys and St Thomas NHS Foundation Trust,15/11/2021,(51862) Physiotherapists,(id:2982419) Evelina Medicine & Neonatology,PRICEWATERHOUSECOOPERS LLP,id:14635015,1036.06
Department of Health,Guys and St Thomas NHS Foundation Trust,26/11/2021,(81200) Medical Surgical Supplies & Equipment,(id:2496419) Evelina Medicine & Neonatology,NHS SUPPLY CHAIN (MAIDSTONE),id:14577034  , 427.47
Department of Health,Guys and St Thomas NHS Foundation Trust,17/11/2021,(81200) Medical Surgical Supplies & Equipment,(id:2496419) Evelina Medicine & Neonatology,NHS SUPPLY CHAIN (MAIDSTONE),id:14617322  ,2491.48
Department of Health,Guys and St Thomas NHS Foundation Trust,05/11/2021,(82800) Bedding & Linen,(id:2496419) Evelina Medicine & Neonatology,NHS SUPPLY CHAIN (MAIDSTONE),id:14526935    ,  24.02
Department of Health,Guys and St Thomas NHS Foundation Trust,17/11/2021,(81100) Dressings,(id:2496419) Evelina Medicine & Neonatology,NHS SUPPLY CHAIN (MAIDSTONE),id:14617322, 180.18
Department of Health,Guys and St Thomas NHS Foundation Trust,12/11/2021,(82700) Uniforms & Clothing,(id:41874) Evelina Medicine & Neonatology,NHS SUPPLY CHAIN (MAIDSTONE),id:14555946  ,   7.96
Department of Health,Guys and St Thomas NHS Foundation Trust,19/11/2021,(50552) Qualified Nursing Staff,(id:41874) Evelina Medicine & Neonatology,HAYS HEALTHCARE LTD,id:14646679  , 706.65
Department of Health,Guys and St Thomas NHS Foundation Trust,05/11/2021,(50552) Qualified Nursing Staff,(id:41874) Evelina Medicine & Neonatology,HAYS HEALTHCARE LTD,id:14598261  , 643.64
Department of Health,Guys and St Thomas NHS Foundation Trust,12/11/2021,(82800) Bedding & Linen,(id:41874) Evelina Medicine & Neonatology,NHS SUPPLY CHAIN (MAIDSTONE),id:14555946 ,   5.33
Department of Health,Guys and St Thomas NHS Foundation Trust,05/11/2021,(82000) Provisions & Kitchens,(id:41874) Evelina Medicine & Neonatology,NHS SUPPLY CHAIN (MAIDSTONE),id:14526935,  19.56
Department of Health,Guys and St Thomas NHS Foundation Trust,12/11/2021,(84500) Establishment,(id:41874) Evelina Medicine & Neonatology,HORIBA ABX UK LTD,id:14622975    ,1446.72
Department of Health,Guys and St Thomas NHS Foundation Trust,26/11/2021,(83500) Furniture & Fittings,(id:2495419) Evelina Medicine & Neonatology,TECHNIBLINDS LTD,id:14650238 , 667.20
Department of Health,Guys and St Thomas NHS Foundation Trust,12/11/2021,(83410) Office Equipment,(id:42323) Evelina Medicine & Neonatology,RICOH UK LTD,id:14546704 , 390.62
Department of Health,Guys and St Thomas NHS Foundation Trust,17/11/2021,(81100) Dressings,(id:42323) Evelina Medicine & Neonatology,NHS SUPPLY CHAIN (MAIDSTONE),id:14617322  , 271.40
Department of Health,Guys and St Thomas NHS Foundation Trust,17/11/2021,(81200) Medical Surgical Supplies & Equipment,(id:42323) Evelina Medicine & Neonatology,NHS SUPPLY CHAIN (MAIDSTONE),id:14617322    , 306.75
Department of Health,Guys and St Thomas NHS Foundation Trust,12/11/2021,(82800) Bedding & Linen,(id:42323) Evelina Medicine & Neonatology,NHS SUPPLY CHAIN (MAIDSTONE),id:14555946 ,  63.72
Department of Health,Guys and St Thomas NHS Foundation Trust,17/11/2021,(81100) Dressings,(id:42315) Evelina Medicine & Neonatology,NHS SUPPLY CHAIN (MAIDSTONE),id:14617322  , 223.47
Department of Health,Guys and St Thomas NHS Foundation Trust,26/11/2021,(81100) Dressings,(id:42315) Evelina Medicine & Neonatology,NHS SUPPLY CHAIN (MAIDSTONE),id:14577034  ,  95.92
Department of Health,Guys and St Thomas NHS Foundation Trust,12/11/2021,(81200) Medical Surgical Supplies & Equipment,(id:42315) Evelina Medicine & Neonatology,NHS SUPPLY CHAIN (MAIDSTONE),id:14555946    , 440.52
Department of Health,Guys and St Thomas NHS Foundation Trust,26/11/2021,(83410) Office Equipment,(id:42315) Evelina Medicine & Neonatology,RICOH UK LTD,id:14642827 ,  53.82
Department of Health,Guys and St Thomas NHS Foundation Trust,26/11/2021,(83400) Office Equipment,(id:42059) Evelina Medicine & Neonatology,NHS SUPPLY CHAIN (MAIDSTONE),id:14577034,  17.75
Department of Health,Guys and St Thomas NHS Foundation Trust,12/11/2021,(82800) Bedding & Linen,(id:42058) Evelina Medicine & Neonatology,NHS SUPPLY CHAIN (MAIDSTONE),id:14555946 , 401.76
Department of Health,Guys and St Thomas NHS Foundation Trust,12/11/2021,(81255) Medical Surgical Supplies & Equipment,(id:4082419) Evelina Surgery Theatres & PICU,NHS SUPPLY CHAIN (MAIDSTONE),id:14555946 ,   7.56
Department of Health,Guys and St Thomas NHS Foundation Trust,26/11/2021,(82800) Bedding & Linen,(id:4082419) Evelina Surgery Theatres & PICU,NHS SUPPLY CHAIN (MAIDSTONE),id:14577034   , 118.88
Department of Health,Guys and St Thomas NHS Foundation Trust,26/11/2021,(84500) Establishment,(id:2499419) Evelina Surgery Theatres & PICU,CDP  PRINT MANAGEMENT,id:14642454  ,   3.10
Department of Health,Guys and St Thomas NHS Foundation Trust,05/11/2021,(81200) Medical Surgical Supplies & Equipment,(id:2499419) Evelina Surgery Theatres & PICU,NHS SUPPLY CHAIN (MAIDSTONE),id:14526935 ,  60.00
Department of Health,Guys and St Thomas NHS Foundation Trust,19/11/2021,(50200) Consultants,(id:42312) Evelina Surgery Theatres & PICU,KINGS COLLEGE LONDON:03529700,id:14634241   ,1877.77
Department of Health,Guys and St Thomas NHS Foundation Trust,12/11/2021,(81200) Medical Surgical Supplies & Equipment,(id:42312) Evelina Surgery Theatres & PICU,IDEAL MEDICAL SOLUTIONS LTD,id:14583782    , 623.40
Department of Health,Guys and St Thomas NHS Foundation Trust,05/11/2021,(81200) Medical Surgical Supplies & Equipment,(id:42312) Evelina Surgery Theatres & PICU,MEDTRONIC LTD,id:14531540   ,2640.00
Department of Health,Guys and St Thomas NHS Foundation Trust,05/11/2021,(81200) Medical Surgical Supplies & Equipment,(id:42312) Evelina Surgery Theatres & PICU,OCCLUTECH UK LTD,id:14504974,2940.00
Department of Health,Guys and St Thomas NHS Foundation Trust,26/11/2021,(81200) Medical Surgical Supplies & Equipment,(id:42312) Evelina Surgery Theatres & PICU,NHS SUPPLY CHAIN (MAIDSTONE),id:14577034   ,    16608.00
Department of Health,Guys and St Thomas NHS Foundation Trust,26/11/2021,(83410) Office Equipment,(id:42312) Evelina Surgery Theatres & PICU,RICOH UK LTD,id:14642828, 201.37
Department of Health,Guys and St Thomas NHS Foundation Trust,05/11/2021,(81230) Medical Surgical Supplies & Equipment,(id:42312) Evelina Surgery Theatres & PICU,NHS SUPPLY CHAIN (MAIDSTONE),id:14526935   , 410.83
Department of Health,Guys and St Thomas NHS Foundation Trust,26/11/2021,(83400) Office Equipment,(id:42312) Evelina Surgery Theatres & PICU,NHS SUPPLY CHAIN (MAIDSTONE),id:14593975    ,  52.86
Department of Health,Guys and St Thomas NHS Foundation Trust,12/11/2021,(83410) Office Equipment,(id:42351) Evelina Surgery Theatres & PICU,RICOH UK LTD,id:14546704, 386.40
Department of Health,Guys and St Thomas NHS Foundation Trust,12/11/2021,(81200) Medical Surgical Supplies & Equipment,(id:1847419) Evelina Surgery Theatres & PICU,STIRLING MEDICAL & SCIENTIFIC,id:14590013, 813.12
Department of Health,Guys and St Thomas NHS Foundation Trust,12/11/2021,(81275) Medical Surgical Supplies & Equipment,(id:1847419) Evelina Surgery Theatres & PICU,NHS SUPPLY CHAIN (MAIDSTONE),id:14555946 ,  43.38
Department of Health,Guys and St Thomas NHS Foundation Trust,17/11/2021,(82000) Provisions & Kitchens,(id:41914) Evelina Surgery Theatres & PICU,NHS SUPPLY CHAIN (MAIDSTONE),id:14617322    ,  41.81
Department of Health,Guys and St Thomas NHS Foundation Trust,05/11/2021,(82000) Provisions & Kitchens,(id:41914) Evelina Surgery Theatres & PICU,NHS SUPPLY CHAIN (MAIDSTONE),id:14526935    ,   6.29
Department of Health,Guys and St Thomas NHS Foundation Trust,12/11/2021,(82000) Provisions & Kitchens,(id:41914) Evelina Surgery Theatres & PICU,NHS SUPPLY CHAIN (MAIDSTONE),id:14555946    ,   6.98
Department of Health,Guys and St Thomas NHS Foundation Trust,05/11/2021,(82800) Bedding & Linen,(id:41914) Evelina Surgery Theatres & PICU,NHS SUPPLY CHAIN (MAIDSTONE),id:14526935,  91.06
Department of Health,Guys and St Thomas NHS Foundation Trust,05/11/2021,(50562) Qualified Nursing Staff,(id:41914) Evelina Surgery Theatres & PICU,MEDICSPRO LTD,id:14598141  ,1206.70
Department of Health,Guys and St Thomas NHS Foundation Trust,26/11/2021,(81225) Medical Surgical Supplies & Equipment,(id:41914) Evelina Surgery Theatres & PICU,NHS SUPPLY CHAIN (MAIDSTONE),id:14593975   ,  29.36
Department of Health,Guys and St Thomas NHS Foundation Trust,05/11/2021,(81225) Medical Surgical Supplies & Equipment,(id:41914) Evelina Surgery Theatres & PICU,NHS SUPPLY CHAIN (MAIDSTONE),id:14526935   ,  14.68
Department of Health,Guys and St Thomas NHS Foundation Trust,26/11/2021,(81200) Medical Surgical Supplies & Equipment,(id:41910) Evelina Surgery Theatres & PICU,NHS SUPPLY CHAIN (MAIDSTONE),id:14593975   ,2582.66
Department of Health,Guys and St Thomas NHS Foundation Trust,12/11/2021,(83400) Office Equipment,(id:41910) Evelina Surgery Theatres & PICU,NHS SUPPLY CHAIN (MAIDSTONE),id:14555946    ,  79.01
Department of Health,Guys and St Thomas NHS Foundation Trust,05/11/2021,(81200) Medical Surgical Supplies & Equipment,(id:1196421) Evelina Surgery Theatres & PICU,NUVASIVE UK LTD,id:14591369    ,7874.40
Department of Health,Guys and St Thomas NHS Foundation Trust,26/11/2021,(81200) Medical Surgical Supplies & Equipment,(id:1196421) Evelina Surgery Theatres & PICU,NUVASIVE UK LTD,id:14652335    ,    12352.20
Department of Health,Guys and St Thomas NHS Foundation Trust,26/11/2021,(83400) Office Equipment,(id:2498419) Evelina Surgery Theatres & PICU,NHS SUPPLY CHAIN (MAIDSTONE),id:14577034  ,   3.72
Department of Health,Guys and St Thomas NHS Foundation Trust,12/11/2021,(81100) Dressings,(id:2498419) Evelina Surgery Theatres & PICU,NHS SUPPLY CHAIN (MAIDSTONE),id:14555946    , 189.32
Department of Health,Guys and St Thomas NHS Foundation Trust,05/11/2021,(81100) Dressings,(id:2498419) Evelina Surgery Theatres & PICU,NHS SUPPLY CHAIN (MAIDSTONE),id:14526935    ,  58.97
Department of Health,Guys and St Thomas NHS Foundation Trust,05/11/2021,(81225) Medical Surgical Supplies & Equipment,(id:2498419) Evelina Surgery Theatres & PICU,NHS SUPPLY CHAIN (MAIDSTONE),id:14526935 , 101.81
Department of Health,Guys and St Thomas NHS Foundation Trust,26/11/2021,(81200) Medical Surgical Supplies & Equipment,(id:431409) Evelina Surgery Theatres & PICU,ORTHOPEDIATRICS EU LIMITED,id:14652338    ,2022.30
Department of Health,Guys and St Thomas NHS Foundation Trust,26/11/2021,(81200) Medical Surgical Supplies & Equipment,(id:431409) Evelina Surgery Theatres & PICU,LAVENDER MEDICAL LTD,id:14325234,4233.60
Department of Health,Guys and St Thomas NHS Foundation Trust,05/11/2021,(81000) Surgical Appliances,(id:431409) Evelina Surgery Theatres & PICU,TALAR MADE ORTHOTICS LTD,id:14592575    ,  46.50
Department of Health,Guys and St Thomas NHS Foundation Trust,05/11/2021,(81000) Surgical Appliances,(id:431409) Evelina Surgery Theatres & PICU,TALAR MADE ORTHOTICS LTD,id:14592507    ,  87.31
Department of Health,Guys and St Thomas NHS Foundation Trust,05/11/2021,(81000) Surgical Appliances,(id:431409) Evelina Surgery Theatres & PICU,NHS SUPPLY CHAIN (MAIDSTONE),id:14526935, 284.76
Department of Health,Guys and St Thomas NHS Foundation Trust,05/11/2021,(81000) Surgical Appliances,(id:431409) Evelina Surgery Theatres & PICU,TALAR MADE ORTHOTICS LTD,id:14590674    , 859.36
Department of Health,Guys and St Thomas NHS Foundation Trust,25/11/2021,(81000) Surgical Appliances,(id:431409) Evelina Surgery Theatres & PICU,JOHN FLORENCE LTD,id:14665814 , 843.79
Department of Health,Guys and St Thomas NHS Foundation Trust,25/11/2021,(81000) Surgical Appliances,(id:431409) Evelina Surgery Theatres & PICU,JOHN FLORENCE LTD,id:14665827 , 861.58
Department of Health,Guys and St Thomas NHS Foundation Trust,25/11/2021,(81000) Surgical Appliances,(id:431409) Evelina Surgery Theatres & PICU,JOHN FLORENCE LTD,id:14665838 , 882.20
Department of Health,Guys and St Thomas NHS Foundation Trust,25/11/2021,(81000) Surgical Appliances,(id:431409) Evelina Surgery Theatres & PICU,JOHN FLORENCE LTD,id:14665837 , 917.86
Department of Health,Guys and St Thomas NHS Foundation Trust,25/11/2021,(81000) Surgical Appliances,(id:431409) Evelina Surgery Theatres & PICU,JOHN FLORENCE LTD,id:14665818 ,1000.58
Department of Health,Guys and St Thomas NHS Foundation Trust,25/11/2021,(81000) Surgical Appliances,(id:431409) Evelina Surgery Theatres & PICU,JOHN FLORENCE LTD,id:14665852 ,1024.88
Department of Health,Guys and St Thomas NHS Foundation Trust,26/11/2021,(83410) Office Equipment,(id:431409) Evelina Surgery Theatres & PICU,RICOH UK LTD,id:14642827    ,  83.38
Department of Health,Guys and St Thomas NHS Foundation Trust,05/11/2021,(81200) Medical Surgical Supplies & Equipment,(id:468409) Evelina Surgery Theatres & PICU,NHS SUPPLY CHAIN (MAIDSTONE),id:14526935  , 542.21
Department of Health,Guys and St Thomas NHS Foundation Trust,26/11/2021,(81200) Medical Surgical Supplies & Equipment,(id:468409) Evelina Surgery Theatres & PICU,NHS SUPPLY CHAIN (MAIDSTONE),id:14577034  , 125.66
Department of Health,Guys and St Thomas NHS Foundation Trust,12/11/2021,(81000) Surgical Appliances,(id:468409) Evelina Surgery Theatres & PICU,NHS SUPPLY CHAIN (MAIDSTONE),id:14555946, 543.60
Department of Health,Guys and St Thomas NHS Foundation Trust,30/11/2021,(53072) Speech Therapists,(id:468409) Evelina Surgery Theatres & PICU,PRICEWATERHOUSECOOPERS LLP,id:14685074    ,1322.92
Department of Health,Guys and St Thomas NHS Foundation Trust,26/11/2021,(81225) Medical Surgical Supplies & Equipment,(id:2495421) Evelina Surgery Theatres & PICU,NHS SUPPLY CHAIN (MAIDSTONE),id:14577034 , 227.02
Department of Health,Guys and St Thomas NHS Foundation Trust,26/11/2021,(81100) Dressings,(id:42347) Evelina Surgery Theatres & PICU,NHS SUPPLY CHAIN (MAIDSTONE),id:14593975 ,  19.07
Department of Health,Guys and St Thomas NHS Foundation Trust,17/11/2021,(81200) Medical Surgical Supplies & Equipment,(id:42347) Evelina Surgery Theatres & PICU,NHS SUPPLY CHAIN (MAIDSTONE),id:14617322   ,  41.30
Department of Health,Guys and St Thomas NHS Foundation Trust,26/11/2021,(81200) Medical Surgical Supplies & Equipment,(id:42347) Evelina Surgery Theatres & PICU,NHS SUPPLY CHAIN (MAIDSTONE),id:14577034   ,1212.57
Department of Health,Guys and St Thomas NHS Foundation Trust,26/11/2021,(81200) Medical Surgical Supplies & Equipment,(id:42347) Evelina Surgery Theatres & PICU,MEDTRONIC LTD,id:14600997   , 752.26
Department of Health,Guys and St Thomas NHS Foundation Trust,05/11/2021,(89270) Establishment,(id:42344) Evelina Surgery Theatres & PICU,ST JOHN AMBULANCE ASSOCIATION,id:14580295 ,    50388.00
Department of Health,Guys and St Thomas NHS Foundation Trust,05/11/2021,(89270) Establishment,(id:42344) Evelina Surgery Theatres & PICU,ST JOHN AMBULANCE ASSOCIATION,id:14597775 ,    50388.00
Department of Health,Guys and St Thomas NHS Foundation Trust,26/11/2021,(82000) Provisions & Kitchens,(id:42344) Evelina Surgery Theatres & PICU,NHS SUPPLY CHAIN (MAIDSTONE),id:14577034    ,  10.32
Department of Health,Guys and St Thomas NHS Foundation Trust,17/11/2021,(81200) Medical Surgical Supplies & Equipment,(id:42344) Evelina Surgery Theatres & PICU,NHS SUPPLY CHAIN (MAIDSTONE),id:14617322   ,1635.00
Department of Health,Guys and St Thomas NHS Foundation Trust,05/11/2021,(82700) Uniforms & Clothing,(id:42339) Evelina Surgery Theatres & PICU,NHS SUPPLY CHAIN (MAIDSTONE),id:14526935 ,  52.14
Department of Health,Guys and St Thomas NHS Foundation Trust,26/11/2021,(82000) Provisions & Kitchens,(id:42339) Evelina Surgery Theatres & PICU,NHS SUPPLY CHAIN (MAIDSTONE),id:14577034    , 136.56
Department of Health,Guys and St Thomas NHS Foundation Trust,12/11/2021,(82600) Uniforms & Clothing,(id:42339) Evelina Surgery Theatres & PICU,NHS SUPPLY CHAIN (MAIDSTONE),id:14555946 ,  27.00
Department of Health,Guys and St Thomas NHS Foundation Trust,26/11/2021,(82600) Uniforms & Clothing,(id:42339) Evelina Surgery Theatres & PICU,NHS SUPPLY CHAIN (MAIDSTONE),id:14577034 ,  28.80
Department of Health,Guys and St Thomas NHS Foundation Trust,17/11/2021,(81255) Medical Surgical Supplies & Equipment,(id:42339) Evelina Surgery Theatres & PICU,NHS SUPPLY CHAIN (MAIDSTONE),id:14617322   ,   7.20
Department of Health,Guys and St Thomas NHS Foundation Trust,12/11/2021,(80100) Drug Costs,(id:42339) Evelina Surgery Theatres & PICU,BOC LTD :02107500,id:14495954 ,5602.86
Department of Health,Guys and St Thomas NHS Foundation Trust,05/11/2021,(81200) Medical Surgical Supplies & Equipment,(id:42339) Evelina Surgery Theatres & PICU,GETINGE LTD,id:14588030, 547.20
Department of Health,Guys and St Thomas NHS Foundation Trust,05/11/2021,(84600) Establishment,(id:42339) Evelina Surgery Theatres & PICU,CLARITY TRAVEL MANAGEMENT,id:14594275,  73.03
Department of Health,Guys and St Thomas NHS Foundation Trust,26/11/2021,(81230) Medical Surgical Supplies & Equipment,(id:42339) Evelina Surgery Theatres & PICU,NHS SUPPLY CHAIN (MAIDSTONE),id:14593975   ,1510.92
Department of Health,Guys and St Thomas NHS Foundation Trust,26/11/2021,(81275) Medical Surgical Supplies & Equipment,(id:42339) Evelina Surgery Theatres & PICU,NHS SUPPLY CHAIN (MAIDSTONE),id:14593975   ,  43.38
Department of Health,Guys and St Thomas NHS Foundation Trust,19/11/2021,(50200) Consultants,(id:2626419) Evelina R&D and Charity,KINGS COLLEGE LONDON:03529700,id:14483274    ,7154.36
Department of Health,Guys and St Thomas NHS Foundation Trust,12/11/2021,(81700) Lab Equipment Purchase,(id:3805419) Evelina R&D and Charity,THE DOCTORS LABORATORY LTD,id:14616057 ,9486.00
Department of Health,Guys and St Thomas NHS Foundation Trust,19/11/2021,(80010) Drug Costs,(id:375410) Evelina R&D and Charity,CVENT EUROPE LTD,id:14643174    ,3979.42
Department of Health,Guys and St Thomas NHS Foundation Trust,12/11/2021,(86300) Healthcare from non-NHS bodies,(id:2634419) Evelina R&D and Charity,IMPROVING HEALTH LTD,id:14613975    ,1796.52
Department of Health,Guys and St Thomas NHS Foundation Trust,26/11/2021,(81100) Dressings,(id:1127419) Cardiovascular Services,NHS SUPPLY CHAIN (MAIDSTONE),id:14577034  ,  69.00
Department of Health,Guys and St Thomas NHS Foundation Trust,05/11/2021,(82600) Uniforms & Clothing,(id:780420) Cardiovascular Services,NHS SUPPLY CHAIN (MAIDSTONE),id:14526935   ,  88.90
Department of Health,Guys and St Thomas NHS Foundation Trust,12/11/2021,(82600) Uniforms & Clothing,(id:780420) Cardiovascular Services,NHS SUPPLY CHAIN (MAIDSTONE),id:14555946   ,   4.21
Department of Health,Guys and St Thomas NHS Foundation Trust,26/11/2021,(81700) Lab Equipment Purchase,(id:780420) Cardiovascular Services,NHS SUPPLY CHAIN (MAIDSTONE),id:14577034,   8.47
Department of Health,Guys and St Thomas NHS Foundation Trust,26/11/2021,(81275) Medical Surgical Supplies & Equipment,(id:780420) Cardiovascular Services,NHS SUPPLY CHAIN (MAIDSTONE),id:14593975,  14.46
Department of Health,Guys and St Thomas NHS Foundation Trust,17/11/2021,(81275) Medical Surgical Supplies & Equipment,(id:780420) Cardiovascular Services,NHS SUPPLY CHAIN (MAIDSTONE),id:14617322,  14.46
Department of Health,Guys and St Thomas NHS Foundation Trust,12/11/2021,(50552) Qualified Nursing Staff,(id:780420) Cardiovascular Services,CARE PROVIDERS HEALTHCARE,id:14629650  , 343.95
Department of Health,Guys and St Thomas NHS Foundation Trust,26/11/2021,(50522) Unqualified Nursing Staff,(id:780420) Cardiovascular Services,MSI GROUP LTD,id:14669243  , 258.37
Department of Health,Guys and St Thomas NHS Foundation Trust,26/11/2021,(82800) Bedding & Linen,(id:780420) Cardiovascular Services,NHS SUPPLY CHAIN (MAIDSTONE),id:14577034  , 180.15
Department of Health,Guys and St Thomas NHS Foundation Trust,19/11/2021,(81200) Medical Surgical Supplies & Equipment,(id:639421) Cardiovascular Services,BENTLEY INNOMED GMBH,id:14644774   ,1020.00
Department of Health,Guys and St Thomas NHS Foundation Trust,19/11/2021,(81200) Medical Surgical Supplies & Equipment,(id:639421) Cardiovascular Services,BENTLEY INNOMED GMBH,id:14644837   ,1020.00
Department of Health,Guys and St Thomas NHS Foundation Trust,19/11/2021,(81200) Medical Surgical Supplies & Equipment,(id:639421) Cardiovascular Services,BENTLEY INNOMED GMBH,id:14633783   ,2730.00
Department of Health,Guys and St Thomas NHS Foundation Trust,12/11/2021,(81200) Medical Surgical Supplies & Equipment,(id:639421) Cardiovascular Services,BOSTON SCIENTIFIC LTD,id:14581862  ,1404.00
Department of Health,Guys and St Thomas NHS Foundation Trust,12/11/2021,(81200) Medical Surgical Supplies & Equipment,(id:639421) Cardiovascular Services,BENTLEY INNOMED GMBH,id:14609275   ,    16710.00
Department of Health,Guys and St Thomas NHS Foundation Trust,26/11/2021,(81200) Medical Surgical Supplies & Equipment,(id:639421) Cardiovascular Services,MEDTRONIC LTD,id:14618214, 600.00
Department of Health,Guys and St Thomas NHS Foundation Trust,05/11/2021,(81200) Medical Surgical Supplies & Equipment,(id:639421) Cardiovascular Services,NHS SUPPLY CHAIN (MAIDSTONE),id:14526935,8989.50
Department of Health,Guys and St Thomas NHS Foundation Trust,26/11/2021,(81400) Medical Surgical Supplies & Equipment,(id:639421) Cardiovascular Services,NHS SUPPLY CHAIN (MAIDSTONE),id:14577034,1200.00
Department of Health,Guys and St Thomas NHS Foundation Trust,19/11/2021,(81280) Medical Surgical Supplies & Equipment,(id:639421) Cardiovascular Services,CRYOLIFE EUROPA LTD,id:14614447    ,2400.00
Department of Health,Guys and St Thomas NHS Foundation Trust,26/11/2021,(84500) Establishment,(id:42299) Cardiovascular Services,CDP  PRINT MANAGEMENT,id:14642475  ,   9.30
Department of Health,Guys and St Thomas NHS Foundation Trust,26/11/2021,(81275) Medical Surgical Supplies & Equipment,(id:41952) Cardiovascular Services,NHS SUPPLY CHAIN (MAIDSTONE),id:14593975 ,  14.46
Department of Health,Guys and St Thomas NHS Foundation Trust,26/11/2021,(82600) Uniforms & Clothing,(id:41952) Cardiovascular Services,NHS SUPPLY CHAIN (MAIDSTONE),id:14577034    , 106.26
Department of Health,Guys and St Thomas NHS Foundation Trust,17/11/2021,(83400) Office Equipment,(id:41952) Cardiovascular Services,NHS SUPPLY CHAIN (MAIDSTONE),id:14617322  ,  55.01
Department of Health,Guys and St Thomas NHS Foundation Trust,26/11/2021,(81200) Medical Surgical Supplies & Equipment,(id:41950) Cardiovascular Services,MEDTRONIC LTD,id:14598984 ,1680.00
Department of Health,Guys and St Thomas NHS Foundation Trust,26/11/2021,(81200) Medical Surgical Supplies & Equipment,(id:41950) Cardiovascular Services,MEDTRONIC LTD,id:14598988 ,1680.00
Department of Health,Guys and St Thomas NHS Foundation Trust,05/11/2021,(81200) Medical Surgical Supplies & Equipment,(id:41950) Cardiovascular Services,NHS SUPPLY CHAIN (MAIDSTONE),id:14526935 ,8671.21
Department of Health,Guys and St Thomas NHS Foundation Trust,19/11/2021,(81200) Medical Surgical Supplies & Equipment,(id:41950) Cardiovascular Services,COOK UK LTD,id:14539746   , 798.00
Department of Health,Guys and St Thomas NHS Foundation Trust,12/11/2021,(81230) Medical Surgical Supplies & Equipment,(id:41950) Cardiovascular Services,FRONTMED TRADING LTD,id:14583875    ,3811.50
Department of Health,Guys and St Thomas NHS Foundation Trust,19/11/2021,(81235) Medical Surgical Supplies & Equipment,(id:41950) Cardiovascular Services,BOSTON SCIENTIFIC LTD,id:14598780   , 612.00
Department of Health,Guys and St Thomas NHS Foundation Trust,12/11/2021,(81235) Medical Surgical Supplies & Equipment,(id:41950) Cardiovascular Services,BARD LTD,id:14620543 ,1270.55
Department of Health,Guys and St Thomas NHS Foundation Trust,12/11/2021,(81235) Medical Surgical Supplies & Equipment,(id:41950) Cardiovascular Services,BARD LTD,id:14620698 , 881.82
Department of Health,Guys and St Thomas NHS Foundation Trust,05/11/2021,(81000) Surgical Appliances,(id:41950) Cardiovascular Services,TALAR MADE ORTHOTICS LTD,id:14592494   ,  43.66
Department of Health,Guys and St Thomas NHS Foundation Trust,05/11/2021,(81000) Surgical Appliances,(id:41950) Cardiovascular Services,TALAR MADE ORTHOTICS LTD,id:14592697   , 862.50
Department of Health,Guys and St Thomas NHS Foundation Trust,26/11/2021,(81100) Dressings,(id:41950) Cardiovascular Services,NHS SUPPLY CHAIN (MAIDSTONE),id:14593975    , 274.71
Department of Health,Guys and St Thomas NHS Foundation Trust,12/11/2021,(81100) Dressings,(id:41950) Cardiovascular Services,NHS SUPPLY CHAIN (MAIDSTONE),id:14555946    ,  12.28
Department of Health,Guys and St Thomas NHS Foundation Trust,19/11/2021,(81100) Dressings,(id:41948) Cardiovascular Services,LEMAITRE VASCULAR LTD,id:14603058 ,3552.00
Department of Health,Guys and St Thomas NHS Foundation Trust,17/11/2021,(81100) Dressings,(id:41948) Cardiovascular Services,NHS SUPPLY CHAIN (MAIDSTONE),id:14617322    , 253.08
Department of Health,Guys and St Thomas NHS Foundation Trust,26/11/2021,(81200) Medical Surgical Supplies & Equipment,(id:41948) Cardiovascular Services,VASCUTEK LTD,id:14616644  , 642.60
Department of Health,Guys and St Thomas NHS Foundation Trust,19/11/2021,(81200) Medical Surgical Supplies & Equipment,(id:41948) Cardiovascular Services,LEMAITRE VASCULAR LTD,id:14552837   ,4902.00
Department of Health,Guys and St Thomas NHS Foundation Trust,05/11/2021,(84600) Establishment,(id:41947) Cardiovascular Services,CLARITY TRAVEL MANAGEMENT,id:14594275   ,1327.20
Department of Health,Guys and St Thomas NHS Foundation Trust,12/11/2021,(83630) IT Costs,(id:42305) Cardiovascular Services,DICT8 LIMITED,id:14594174, 708.00
Department of Health,Guys and St Thomas NHS Foundation Trust,19/11/2021,(83410) Office Equipment,(id:42305) Cardiovascular Services,RICOH UK LTD,id:14642883   , 615.32
Department of Health,Guys and St Thomas NHS Foundation Trust,12/11/2021,(81200) Medical Surgical Supplies & Equipment,(id:3923419) Cardiovascular Services,NHS SUPPLY CHAIN (MAIDSTONE),id:14555946    , 538.48
Department of Health,Guys and St Thomas NHS Foundation Trust,17/11/2021,(81200) Medical Surgical Supplies & Equipment,(id:3923419) Cardiovascular Services,NHS SUPPLY CHAIN (MAIDSTONE),id:14617322    , 633.43
Department of Health,Guys and St Thomas NHS Foundation Trust,12/11/2021,(82000) Provisions & Kitchens,(id:3923419) Cardiovascular Services,NHS SUPPLY CHAIN (MAIDSTONE),id:14555946, 299.82
Department of Health,Guys and St Thomas NHS Foundation Trust,17/11/2021,(81225) Medical Surgical Supplies & Equipment,(id:3923419) Cardiovascular Services,NHS SUPPLY CHAIN (MAIDSTONE),id:14617322    ,  18.42
Department of Health,Guys and St Thomas NHS Foundation Trust,17/11/2021,(81275) Medical Surgical Supplies & Equipment,(id:3923419) Cardiovascular Services,NHS SUPPLY CHAIN (MAIDSTONE),id:14617322    ,  14.46
Department of Health,Guys and St Thomas NHS Foundation Trust,26/11/2021,(81275) Medical Surgical Supplies & Equipment,(id:3923419) Cardiovascular Services,NHS SUPPLY CHAIN (MAIDSTONE),id:14577034    ,  14.46
Department of Health,Guys and St Thomas NHS Foundation Trust,12/11/2021,(50522) Unqualified Nursing Staff,(id:3923419) Cardiovascular Services,GLOBE LOCUMS LTD,id:14624083   , 231.68
Department of Health,Guys and St Thomas NHS Foundation Trust,26/11/2021,(82600) Uniforms & Clothing,(id:3923419) Cardiovascular Services,NHS SUPPLY CHAIN (MAIDSTONE),id:14593975  ,   4.21
Department of Health,Guys and St Thomas NHS Foundation Trust,15/11/2021,(54072) Technical Officers,(id:1243420) Cardiovascular Services,PRICEWATERHOUSECOOPERS LLP,id:14635015,1748.46
